Organisation Code,Organisation Label,Effective Date,Organisational Unit,Service Division Label,Category Internal Name,Purpose,Detailed Expenditure Code,Payment Date,Transaction Number,Irrecoverable VAT Amount,Amount,Capital Or Revenue,Beneficiary Name,Procurement Card
Http://opendatacommunities.org/id/metropolitan-district-council/leeds,Leeds City Council,31/12/2021,Resources and Housing,Strategic Housing Partnerships,Capital,CONSTRUCTION,3,02/12/2021,2112-00001,0.00,14975.00,C,A & C Galley,No
Http://opendatacommunities.org/id/metropolitan-district-council/leeds,Leeds City Council,31/12/2021,Adults and Health,Services For Older People Under 65 P/Dis,Agency Payments,Sheltered Accommodation,569,08/12/2021,2112-00002,0.00,5400.00,R,A & V TRANSITIONAL HOMES,No
Http://opendatacommunities.org/id/metropolitan-district-council/leeds,Leeds City Council,31/12/2021,City Development,Recreation,External Income,Income from Hire Of Rooms & Equipment,956,13/12/2021,2112-00003,0.00,150.00,R,A and R L French,No
Http://opendatacommunities.org/id/metropolitan-district-council/leeds,Leeds City Council,31/12/2021,Children and Families,Social Care,Agency Payments,Services Rendered By Other Organisations,511,01/12/2021,2112-00004,0.00,321.60,R,REDACTED PERSONAL DATA,No
Http://opendatacommunities.org/id/metropolitan-district-council/leeds,Leeds City Council,31/12/2021,Children and Families,Social Care,Agency Payments,Services Rendered By Other Organisations,511,03/12/2021,2112-00005,0.00,217.42,R,REDACTED PERSONAL DATA,No
Http://opendatacommunities.org/id/metropolitan-district-council/leeds,Leeds City Council,31/12/2021,Communities and Environment,Benefits Welfare and Poverty,Supplies and Services,Grant Related Expenditure,290,13/12/2021,2112-00006,0.00,500.00,R,REDACTED PERSONAL DATA,No
Http://opendatacommunities.org/id/metropolitan-district-council/leeds,Leeds City Council,31/12/2021,City Development,Libraries Arts & Heritage,Supplies and Services,Operational Materials,205,17/12/2021,2112-00007,0.00,157.68,R,A C Entertainment Technologies Ltd,No
Http://opendatacommunities.org/id/metropolitan-district-council/leeds,Leeds City Council,31/12/2021,City Development,Libraries Arts & Heritage,Supplies and Services,Operational Materials,205,17/12/2021,2112-00008,0.00,64.52,R,A C Entertainment Technologies Ltd,No
Http://opendatacommunities.org/id/metropolitan-district-council/leeds,Leeds City Council,31/12/2021,City Development,Libraries Arts & Heritage,Supplies and Services,Operational Furniture And Equipment,203,23/12/2021,2112-00009,0.00,133.80,R,A C Entertainment Technologies Ltd,No
Http://opendatacommunities.org/id/metropolitan-district-council/leeds,Leeds City Council,31/12/2021,City Development,Libraries Arts & Heritage,Supplies and Services,Operational Furniture And Equipment,203,24/12/2021,2112-00010,0.00,144.05,R,A C Entertainment Technologies Ltd,No
Http://opendatacommunities.org/id/metropolitan-district-council/leeds,Leeds City Council,31/12/2021,Children and Families,Social Care,Agency Payments,Services Rendered By Other Organisations,511,03/12/2021,2112-00011,0.00,217.42,R,REDACTED PERSONAL DATA,No
Http://opendatacommunities.org/id/metropolitan-district-council/leeds,Leeds City Council,31/12/2021,Resources and Housing,HRA Housing Leeds,Capital,CONSTRUCTION,3,09/12/2021,2112-00012,0.00,53150.11,C,A Connolly Limited,No
Http://opendatacommunities.org/id/metropolitan-district-council/leeds,Leeds City Council,31/12/2021,Resources and Housing,HRA Housing Leeds,Capital,CONSTRUCTION,3,21/12/2021,2112-00013,0.00,51416.03,C,A Connolly Limited,No
Http://opendatacommunities.org/id/metropolitan-district-council/leeds,Leeds City Council,31/12/2021,Resources and Housing,HRA Housing Leeds,Capital,CONSTRUCTION,3,21/12/2021,2112-00014,0.00,124797.84,C,A Connolly Limited,No
Http://opendatacommunities.org/id/metropolitan-district-council/leeds,Leeds City Council,31/12/2021,Resources and Housing,Leeds Building Services,Supplies and Services,Other Hired And Contracted Services,265,02/12/2021,2112-00015,0.00,7807.00,R,A Coole Electrical Ltd,No
Http://opendatacommunities.org/id/metropolitan-district-council/leeds,Leeds City Council,31/12/2021,Resources and Housing,Leeds Building Services,Supplies and Services,Other Hired And Contracted Services,265,03/12/2021,2112-00016,0.00,3380.00,R,A Coole Electrical Ltd,No
Http://opendatacommunities.org/id/metropolitan-district-council/leeds,Leeds City Council,31/12/2021,Resources and Housing,Leeds Building Services,Supplies and Services,Other Hired And Contracted Services,265,03/12/2021,2112-00017,0.00,3233.00,R,A Coole Electrical Ltd,No
Http://opendatacommunities.org/id/metropolitan-district-council/leeds,Leeds City Council,31/12/2021,Resources and Housing,Leeds Building Services,Supplies and Services,Other Hired And Contracted Services,265,08/12/2021,2112-00018,0.00,2743.00,R,A Coole Electrical Ltd,No
Http://opendatacommunities.org/id/metropolitan-district-council/leeds,Leeds City Council,31/12/2021,Resources and Housing,Leeds Building Services,Supplies and Services,Other Hired And Contracted Services,265,08/12/2021,2112-00019,0.00,17835.00,R,A Coole Electrical Ltd,No
Http://opendatacommunities.org/id/metropolitan-district-council/leeds,Leeds City Council,31/12/2021,Resources and Housing,Leeds Building Services,Supplies and Services,Other Hired And Contracted Services,265,09/12/2021,2112-00020,0.00,1615.00,R,A Coole Electrical Ltd,No
Http://opendatacommunities.org/id/metropolitan-district-council/leeds,Leeds City Council,31/12/2021,Resources and Housing,Leeds Building Services,Supplies and Services,Other Hired And Contracted Services,265,09/12/2021,2112-00021,0.00,1873.00,R,A Coole Electrical Ltd,No
Http://opendatacommunities.org/id/metropolitan-district-council/leeds,Leeds City Council,31/12/2021,Resources and Housing,Leeds Building Services,Supplies and Services,Other Hired And Contracted Services,265,09/12/2021,2112-00022,0.00,10578.00,R,A Coole Electrical Ltd,No
Http://opendatacommunities.org/id/metropolitan-district-council/leeds,Leeds City Council,31/12/2021,Resources and Housing,Leeds Building Services,Supplies and Services,Other Hired And Contracted Services,265,15/12/2021,2112-00023,0.00,3193.00,R,A Coole Electrical Ltd,No
Http://opendatacommunities.org/id/metropolitan-district-council/leeds,Leeds City Council,31/12/2021,Resources and Housing,Leeds Building Services,Supplies and Services,Other Hired And Contracted Services,265,15/12/2021,2112-00024,0.00,3250.00,R,A Coole Electrical Ltd,No
Http://opendatacommunities.org/id/metropolitan-district-council/leeds,Leeds City Council,31/12/2021,Resources and Housing,Leeds Building Services,Supplies and Services,Other Hired And Contracted Services,265,16/12/2021,2112-00025,0.00,1043.00,R,A Coole Electrical Ltd,No
Http://opendatacommunities.org/id/metropolitan-district-council/leeds,Leeds City Council,31/12/2021,Resources and Housing,Leeds Building Services,Supplies and Services,Other Hired And Contracted Services,265,16/12/2021,2112-00026,0.00,13247.00,R,A Coole Electrical Ltd,No
Http://opendatacommunities.org/id/metropolitan-district-council/leeds,Leeds City Council,31/12/2021,Resources and Housing,Leeds Building Services,Supplies and Services,Other Hired And Contracted Services,265,22/12/2021,2112-00027,0.00,2135.00,R,A Coole Electrical Ltd,No
Http://opendatacommunities.org/id/metropolitan-district-council/leeds,Leeds City Council,31/12/2021,Resources and Housing,Leeds Building Services,Supplies and Services,Other Hired And Contracted Services,265,30/12/2021,2112-00028,0.00,16615.00,R,A Coole Electrical Ltd,No
Http://opendatacommunities.org/id/metropolitan-district-council/leeds,Leeds City Council,31/12/2021,Communities and Environment,Customer Access,Supplies and Services,Bought In Professional Services,277,01/12/2021,2112-00029,0.00,18.00,R,A D Dumitru,No
Http://opendatacommunities.org/id/metropolitan-district-council/leeds,Leeds City Council,31/12/2021,Communities and Environment,Customer Access,Supplies and Services,Bought In Professional Services,277,08/12/2021,2112-00030,0.00,27.00,R,A D Dumitru,No
Http://opendatacommunities.org/id/metropolitan-district-council/leeds,Leeds City Council,31/12/2021,Communities and Environment,Customer Access,Supplies and Services,Bought In Professional Services,277,08/12/2021,2112-00031,0.00,42.00,R,A D Dumitru,No
Http://opendatacommunities.org/id/metropolitan-district-council/leeds,Leeds City Council,31/12/2021,Communities and Environment,Customer Access,Supplies and Services,Bought In Professional Services,277,08/12/2021,2112-00032,0.00,18.00,R,A D Dumitru,No
Http://opendatacommunities.org/id/metropolitan-district-council/leeds,Leeds City Council,31/12/2021,Communities and Environment,Customer Access,Supplies and Services,Bought In Professional Services,277,08/12/2021,2112-00033,0.00,9.00,R,A D Dumitru,No
Http://opendatacommunities.org/id/metropolitan-district-council/leeds,Leeds City Council,31/12/2021,Communities and Environment,Customer Access,Supplies and Services,Bought In Professional Services,277,15/12/2021,2112-00034,0.00,18.00,R,A D Dumitru,No
Http://opendatacommunities.org/id/metropolitan-district-council/leeds,Leeds City Council,31/12/2021,Communities and Environment,Customer Access,Supplies and Services,Bought In Professional Services,277,15/12/2021,2112-00035,0.00,18.00,R,A D Dumitru,No
Http://opendatacommunities.org/id/metropolitan-district-council/leeds,Leeds City Council,31/12/2021,Communities and Environment,Customer Access,Supplies and Services,Bought In Professional Services,277,22/12/2021,2112-00036,0.00,36.00,R,A D Dumitru,No
Http://opendatacommunities.org/id/metropolitan-district-council/leeds,Leeds City Council,31/12/2021,Communities and Environment,Customer Access,Supplies and Services,Bought In Professional Services,277,22/12/2021,2112-00037,0.00,18.00,R,A D Dumitru,No
Http://opendatacommunities.org/id/metropolitan-district-council/leeds,Leeds City Council,31/12/2021,Children and Families,Social Care,Agency Payments,Services Rendered By Other Organisations,511,01/12/2021,2112-00038,0.00,221.10,R,REDACTED PERSONAL DATA,No
Http://opendatacommunities.org/id/metropolitan-district-council/leeds,Leeds City Council,31/12/2021,Children and Families,Social Care,Agency Payments,Services Rendered By Other Organisations,511,03/12/2021,2112-00039,0.00,1063.71,R,REDACTED PERSONAL DATA,No
Http://opendatacommunities.org/id/metropolitan-district-council/leeds,Leeds City Council,31/12/2021,Children and Families,Social Care,Agency Payments,Services Rendered By Voluntary Sector,505,03/12/2021,2112-00040,0.00,282.00,R,REDACTED PERSONAL DATA,No
Http://opendatacommunities.org/id/metropolitan-district-council/leeds,Leeds City Council,31/12/2021,Children and Families,Social Care,Agency Payments,Placement Support,550,24/12/2021,2112-00041,0.00,200.00,R,REDACTED PERSONAL DATA,No
Http://opendatacommunities.org/id/metropolitan-district-council/leeds,Leeds City Council,31/12/2021,Children and Families,Social Care,Internal Recharges,Legal Disbursements,411,02/12/2021,2112-00042,0.00,432.00,R,A F F Ghaly,No
Http://opendatacommunities.org/id/metropolitan-district-council/leeds,Leeds City Council,31/12/2021,City Development,Libraries Arts & Heritage,Supplies and Services,Other Hired And Contracted Services,265,24/12/2021,2112-00043,0.00,300.00,R,A G Design Studio,No
Http://opendatacommunities.org/id/metropolitan-district-council/leeds,Leeds City Council,31/12/2021,Children and Families,Social Care,Agency Payments,Services Rendered By Other Organisations,511,01/12/2021,2112-00044,0.00,201.00,R,REDACTED PERSONAL DATA,No
Http://opendatacommunities.org/id/metropolitan-district-council/leeds,Leeds City Council,31/12/2021,Children and Families,Social Care,Agency Payments,Section 17,551,03/12/2021,2112-00045,0.00,82.80,R,REDACTED PERSONAL DATA,No
Http://opendatacommunities.org/id/metropolitan-district-council/leeds,Leeds City Council,31/12/2021,Children and Families,Social Care,Agency Payments,Section 17,551,13/12/2021,2112-00046,0.00,124.80,R,REDACTED PERSONAL DATA,No
Http://opendatacommunities.org/id/metropolitan-district-council/leeds,Leeds City Council,31/12/2021,Children and Families,Social Care,Agency Payments,Section 17,551,17/12/2021,2112-00047,0.00,124.80,R,REDACTED PERSONAL DATA,No
Http://opendatacommunities.org/id/metropolitan-district-council/leeds,Leeds City Council,31/12/2021,Children and Families,Social Care,Agency Payments,Section 17,551,23/12/2021,2112-00048,0.00,50.00,R,REDACTED PERSONAL DATA,No
Http://opendatacommunities.org/id/metropolitan-district-council/leeds,Leeds City Council,31/12/2021,Children and Families,Social Care,Agency Payments,Section 17,551,30/12/2021,2112-00049,0.00,50.00,R,REDACTED PERSONAL DATA,No
Http://opendatacommunities.org/id/metropolitan-district-council/leeds,Leeds City Council,31/12/2021,Children and Families,Social Care,Agency Payments,Services Rendered By Other Organisations,511,03/12/2021,2112-00050,0.00,178.40,R,REDACTED PERSONAL DATA,No
Http://opendatacommunities.org/id/metropolitan-district-council/leeds,Leeds City Council,31/12/2021,Resources and Housing,HRA Housing Leeds,Capital,OTHER COSTS,7,14/12/2021,2112-00051,0.00,80.00,C,REDACTED PERSONAL DATA,No
Http://opendatacommunities.org/id/metropolitan-district-council/leeds,Leeds City Council,31/12/2021,Children and Families,Social Care,Agency Payments,Services Rendered By Other Organisations,511,03/12/2021,2112-00052,0.00,1191.37,R,REDACTED PERSONAL DATA,No
Http://opendatacommunities.org/id/metropolitan-district-council/leeds,Leeds City Council,31/12/2021,Adults and Health,Other Generic Services,Agency Payments,Fees To Carers,563,03/12/2021,2112-00053,0.00,122.85,R,REDACTED PERSONAL DATA,No
Http://opendatacommunities.org/id/metropolitan-district-council/leeds,Leeds City Council,31/12/2021,Adults and Health,Other Generic Services,Agency Payments,Fees To Carers,563,16/12/2021,2112-00054,0.00,509.22,R,REDACTED PERSONAL DATA,No
Http://opendatacommunities.org/id/metropolitan-district-council/leeds,Leeds City Council,31/12/2021,Adults and Health,Other Generic Services,Agency Payments,Fees To Carers,563,16/12/2021,2112-00055,0.00,56.70,R,REDACTED PERSONAL DATA,No
Http://opendatacommunities.org/id/metropolitan-district-council/leeds,Leeds City Council,31/12/2021,Adults and Health,Other Generic Services,Agency Payments,Fees To Carers,563,17/12/2021,2112-00056,0.00,163.80,R,REDACTED PERSONAL DATA,No
Http://opendatacommunities.org/id/metropolitan-district-council/leeds,Leeds City Council,31/12/2021,Adults and Health,Other Generic Services,Agency Payments,Fees To Carers,563,17/12/2021,2112-00057,0.00,81.90,R,REDACTED PERSONAL DATA,No
Http://opendatacommunities.org/id/metropolitan-district-council/leeds,Leeds City Council,31/12/2021,Resources and Housing,Leeds Building Services,Supplies and Services,Operational Materials,205,10/12/2021,2112-00058,0.00,795.00,R,A J H  Pump Supply & Repair Ltd,No
Http://opendatacommunities.org/id/metropolitan-district-council/leeds,Leeds City Council,31/12/2021,Resources and Housing,Leeds Building Services,Supplies and Services,Operational Materials,205,20/12/2021,2112-00059,0.00,5499.65,R,A J H  Pump Supply & Repair Ltd,No
Http://opendatacommunities.org/id/metropolitan-district-council/leeds,Leeds City Council,31/12/2021,Resources and Housing,Leeds Building Services,Supplies and Services,Operational Materials,205,20/12/2021,2112-00060,0.00,1235.00,R,A J H  Pump Supply & Repair Ltd,No
Http://opendatacommunities.org/id/metropolitan-district-council/leeds,Leeds City Council,31/12/2021,Resources and Housing,Leeds Building Services,Supplies and Services,Operational Materials,205,20/12/2021,2112-00061,0.00,536.95,R,A J H  Pump Supply & Repair Ltd,No
Http://opendatacommunities.org/id/metropolitan-district-council/leeds,Leeds City Council,31/12/2021,Resources and Housing,Leeds Building Services,Supplies and Services,Operational Materials,205,20/12/2021,2112-00062,0.00,1765.00,R,A J H  Pump Supply & Repair Ltd,No
Http://opendatacommunities.org/id/metropolitan-district-council/leeds,Leeds City Council,31/12/2021,Resources and Housing,Leeds Building Services,Supplies and Services,Operational Materials,205,31/12/2021,2112-00063,0.00,193.00,R,A J H  Pump Supply & Repair Ltd,No
Http://opendatacommunities.org/id/metropolitan-district-council/leeds,Leeds City Council,31/12/2021,Communities and Environment,Parks and Countryside,Supplies and Services,Resaleable Materials,204,10/12/2021,2112-00064,0.00,450.00,R,A J PROMOTIONS,No
Http://opendatacommunities.org/id/metropolitan-district-council/leeds,Leeds City Council,31/12/2021,Communities and Environment,Parks and Countryside,Supplies and Services,Resaleable Materials,204,10/12/2021,2112-00065,0.00,273.00,R,A J PROMOTIONS,No
Http://opendatacommunities.org/id/metropolitan-district-council/leeds,Leeds City Council,31/12/2021,Communities and Environment,Parks and Countryside,Supplies and Services,Resaleable Materials,204,16/12/2021,2112-00066,0.00,2646.20,R,A J PROMOTIONS,No
Http://opendatacommunities.org/id/metropolitan-district-council/leeds,Leeds City Council,31/12/2021,Communities and Environment,Parks and Countryside,Supplies and Services,Resaleable Materials,204,23/12/2021,2112-00067,0.00,65.50,R,A J PROMOTIONS,No
Http://opendatacommunities.org/id/metropolitan-district-council/leeds,Leeds City Council,31/12/2021,Communities and Environment,Parks and Countryside,Supplies and Services,Resaleable Materials,204,24/12/2021,2112-00068,0.00,3033.94,R,A J PROMOTIONS,No
Http://opendatacommunities.org/id/metropolitan-district-council/leeds,Leeds City Council,31/12/2021,City Development,Libraries Arts & Heritage,Supplies and Services,Resaleable Materials,204,30/12/2021,2112-00069,0.00,337.10,R,A J PROMOTIONS,No
Http://opendatacommunities.org/id/metropolitan-district-council/leeds,Leeds City Council,31/12/2021,Children and Families,Social Care,Agency Payments,Services Rendered By Other Organisations,511,03/12/2021,2112-00070,0.00,869.70,R,REDACTED PERSONAL DATA,No
Http://opendatacommunities.org/id/metropolitan-district-council/leeds,Leeds City Council,31/12/2021,Children and Families,Social Care,Agency Payments,Services Rendered By Other Organisations,511,03/12/2021,2112-00071,0.00,58.50,R,REDACTED PERSONAL DATA,No
Http://opendatacommunities.org/id/metropolitan-district-council/leeds,Leeds City Council,31/12/2021,City Development,Economic Development,Supplies and Services,Grant Related Expenditure,290,02/12/2021,2112-00072,0.00,1057.00,R,A Little Something Extra Ltd,No
Http://opendatacommunities.org/id/metropolitan-district-council/leeds,Leeds City Council,31/12/2021,Children and Families,Social Care,Employees,Agency Staff,8,14/12/2021,2112-00073,0.00,-70.00,R,A Little Something Extra Ltd,No
Http://opendatacommunities.org/id/metropolitan-district-council/leeds,Leeds City Council,31/12/2021,Children and Families,Social Care,Employees,Agency Staff,8,14/12/2021,2112-00074,0.00,420.00,R,A Little Something Extra Ltd,No
Http://opendatacommunities.org/id/metropolitan-district-council/leeds,Leeds City Council,31/12/2021,Children and Families,Social Care,Employees,Agency Staff,8,14/12/2021,2112-00075,0.00,332.50,R,A Little Something Extra Ltd,No
Http://opendatacommunities.org/id/metropolitan-district-council/leeds,Leeds City Council,31/12/2021,Children and Families,Social Care,Agency Payments,Services Rendered By Other Organisations,511,20/12/2021,2112-00076,0.00,70.00,R,A Little Something Extra Ltd,No
Http://opendatacommunities.org/id/metropolitan-district-council/leeds,Leeds City Council,31/12/2021,Children and Families,Social Care,Employees,Agency Staff,8,24/12/2021,2112-00077,0.00,525.00,R,A Little Something Extra Ltd,No
Http://opendatacommunities.org/id/metropolitan-district-council/leeds,Leeds City Council,31/12/2021,Communities and Environment,Customer Access,Supplies and Services,Bought In Professional Services,277,01/12/2021,2112-00078,0.00,18.00,R,A MOHAMMED,No
Http://opendatacommunities.org/id/metropolitan-district-council/leeds,Leeds City Council,31/12/2021,Communities and Environment,Customer Access,Supplies and Services,Bought In Professional Services,277,01/12/2021,2112-00079,0.00,18.00,R,A MOHAMMED,No
Http://opendatacommunities.org/id/metropolitan-district-council/leeds,Leeds City Council,31/12/2021,Communities and Environment,Customer Access,Supplies and Services,Bought In Professional Services,277,01/12/2021,2112-00080,0.00,18.00,R,A MOHAMMED,No
Http://opendatacommunities.org/id/metropolitan-district-council/leeds,Leeds City Council,31/12/2021,Communities and Environment,Customer Access,Supplies and Services,Bought In Professional Services,277,01/12/2021,2112-00081,0.00,18.00,R,A MOHAMMED,No
Http://opendatacommunities.org/id/metropolitan-district-council/leeds,Leeds City Council,31/12/2021,Communities and Environment,Customer Access,Supplies and Services,Bought In Professional Services,277,01/12/2021,2112-00082,0.00,27.00,R,A MOHAMMED,No
Http://opendatacommunities.org/id/metropolitan-district-council/leeds,Leeds City Council,31/12/2021,Communities and Environment,Customer Access,Supplies and Services,Bought In Professional Services,277,01/12/2021,2112-00083,0.00,18.00,R,A MOHAMMED,No
Http://opendatacommunities.org/id/metropolitan-district-council/leeds,Leeds City Council,31/12/2021,Communities and Environment,Customer Access,Supplies and Services,Bought In Professional Services,277,01/12/2021,2112-00084,0.00,18.00,R,A MOHAMMED,No
Http://opendatacommunities.org/id/metropolitan-district-council/leeds,Leeds City Council,31/12/2021,Communities and Environment,Customer Access,Supplies and Services,Bought In Professional Services,277,01/12/2021,2112-00085,0.00,9.00,R,A MOHAMMED,No
Http://opendatacommunities.org/id/metropolitan-district-council/leeds,Leeds City Council,31/12/2021,Communities and Environment,Customer Access,Supplies and Services,Bought In Professional Services,277,08/12/2021,2112-00086,0.00,18.00,R,A MOHAMMED,No
Http://opendatacommunities.org/id/metropolitan-district-council/leeds,Leeds City Council,31/12/2021,Communities and Environment,Customer Access,Supplies and Services,Bought In Professional Services,277,08/12/2021,2112-00087,0.00,18.00,R,A MOHAMMED,No
Http://opendatacommunities.org/id/metropolitan-district-council/leeds,Leeds City Council,31/12/2021,Communities and Environment,Customer Access,Supplies and Services,Bought In Professional Services,277,08/12/2021,2112-00088,0.00,23.00,R,A MOHAMMED,No
Http://opendatacommunities.org/id/metropolitan-district-council/leeds,Leeds City Council,31/12/2021,Communities and Environment,Customer Access,Supplies and Services,Bought In Professional Services,277,08/12/2021,2112-00089,0.00,18.00,R,A MOHAMMED,No
Http://opendatacommunities.org/id/metropolitan-district-council/leeds,Leeds City Council,31/12/2021,Communities and Environment,Customer Access,Supplies and Services,Bought In Professional Services,277,08/12/2021,2112-00090,0.00,18.00,R,A MOHAMMED,No
Http://opendatacommunities.org/id/metropolitan-district-council/leeds,Leeds City Council,31/12/2021,Communities and Environment,Customer Access,Supplies and Services,Bought In Professional Services,277,08/12/2021,2112-00091,0.00,58.50,R,A MOHAMMED,No
Http://opendatacommunities.org/id/metropolitan-district-council/leeds,Leeds City Council,31/12/2021,Communities and Environment,Customer Access,Supplies and Services,Bought In Professional Services,277,08/12/2021,2112-00092,0.00,13.50,R,A MOHAMMED,No
Http://opendatacommunities.org/id/metropolitan-district-council/leeds,Leeds City Council,31/12/2021,Communities and Environment,Customer Access,Supplies and Services,Bought In Professional Services,277,08/12/2021,2112-00093,0.00,18.00,R,A MOHAMMED,No
Http://opendatacommunities.org/id/metropolitan-district-council/leeds,Leeds City Council,31/12/2021,Communities and Environment,Customer Access,Supplies and Services,Bought In Professional Services,277,15/12/2021,2112-00094,0.00,45.00,R,A MOHAMMED,No
Http://opendatacommunities.org/id/metropolitan-district-council/leeds,Leeds City Council,31/12/2021,Communities and Environment,Customer Access,Supplies and Services,Bought In Professional Services,277,15/12/2021,2112-00095,0.00,18.00,R,A MOHAMMED,No
Http://opendatacommunities.org/id/metropolitan-district-council/leeds,Leeds City Council,31/12/2021,Communities and Environment,Customer Access,Supplies and Services,Bought In Professional Services,277,15/12/2021,2112-00096,0.00,18.00,R,A MOHAMMED,No
Http://opendatacommunities.org/id/metropolitan-district-council/leeds,Leeds City Council,31/12/2021,Communities and Environment,Customer Access,Supplies and Services,Bought In Professional Services,277,15/12/2021,2112-00097,0.00,18.00,R,A MOHAMMED,No
Http://opendatacommunities.org/id/metropolitan-district-council/leeds,Leeds City Council,31/12/2021,Communities and Environment,Customer Access,Supplies and Services,Bought In Professional Services,277,15/12/2021,2112-00098,0.00,18.00,R,A MOHAMMED,No
Http://opendatacommunities.org/id/metropolitan-district-council/leeds,Leeds City Council,31/12/2021,Communities and Environment,Customer Access,Supplies and Services,Bought In Professional Services,277,15/12/2021,2112-00099,0.00,9.00,R,A MOHAMMED,No
Http://opendatacommunities.org/id/metropolitan-district-council/leeds,Leeds City Council,31/12/2021,Communities and Environment,Customer Access,Supplies and Services,Bought In Professional Services,277,15/12/2021,2112-00100,0.00,18.00,R,A MOHAMMED,No
Http://opendatacommunities.org/id/metropolitan-district-council/leeds,Leeds City Council,31/12/2021,Communities and Environment,Customer Access,Supplies and Services,Bought In Professional Services,277,15/12/2021,2112-00101,0.00,18.00,R,A MOHAMMED,No
Http://opendatacommunities.org/id/metropolitan-district-council/leeds,Leeds City Council,31/12/2021,Communities and Environment,Customer Access,Supplies and Services,Bought In Professional Services,277,15/12/2021,2112-00102,0.00,18.00,R,A MOHAMMED,No
Http://opendatacommunities.org/id/metropolitan-district-council/leeds,Leeds City Council,31/12/2021,Communities and Environment,Customer Access,Supplies and Services,Bought In Professional Services,277,15/12/2021,2112-00103,0.00,18.00,R,A MOHAMMED,No
Http://opendatacommunities.org/id/metropolitan-district-council/leeds,Leeds City Council,31/12/2021,Communities and Environment,Customer Access,Supplies and Services,Bought In Professional Services,277,15/12/2021,2112-00104,0.00,18.00,R,A MOHAMMED,No
Http://opendatacommunities.org/id/metropolitan-district-council/leeds,Leeds City Council,31/12/2021,Communities and Environment,Customer Access,Supplies and Services,Bought In Professional Services,277,22/12/2021,2112-00105,0.00,9.00,R,A MOHAMMED,No
Http://opendatacommunities.org/id/metropolitan-district-council/leeds,Leeds City Council,31/12/2021,Communities and Environment,Customer Access,Supplies and Services,Bought In Professional Services,277,22/12/2021,2112-00106,0.00,18.00,R,A MOHAMMED,No
Http://opendatacommunities.org/id/metropolitan-district-council/leeds,Leeds City Council,31/12/2021,Communities and Environment,Customer Access,Supplies and Services,Bought In Professional Services,277,22/12/2021,2112-00107,0.00,18.00,R,A MOHAMMED,No
Http://opendatacommunities.org/id/metropolitan-district-council/leeds,Leeds City Council,31/12/2021,Communities and Environment,Customer Access,Supplies and Services,Bought In Professional Services,277,22/12/2021,2112-00108,0.00,18.00,R,A MOHAMMED,No
Http://opendatacommunities.org/id/metropolitan-district-council/leeds,Leeds City Council,31/12/2021,Communities and Environment,Customer Access,Supplies and Services,Bought In Professional Services,277,22/12/2021,2112-00109,0.00,9.00,R,A MOHAMMED,No
Http://opendatacommunities.org/id/metropolitan-district-council/leeds,Leeds City Council,31/12/2021,Communities and Environment,Customer Access,Supplies and Services,Bought In Professional Services,277,22/12/2021,2112-00110,0.00,18.00,R,A MOHAMMED,No
Http://opendatacommunities.org/id/metropolitan-district-council/leeds,Leeds City Council,31/12/2021,Communities and Environment,Customer Access,Supplies and Services,Bought In Professional Services,277,22/12/2021,2112-00111,0.00,18.00,R,A MOHAMMED,No
Http://opendatacommunities.org/id/metropolitan-district-council/leeds,Leeds City Council,31/12/2021,Communities and Environment,Customer Access,Supplies and Services,Bought In Professional Services,277,22/12/2021,2112-00112,0.00,22.50,R,A MOHAMMED,No
Http://opendatacommunities.org/id/metropolitan-district-council/leeds,Leeds City Council,31/12/2021,Children and Families,Social Care,Agency Payments,Services Rendered By Other Organisations,511,01/12/2021,2112-00113,0.00,1567.80,R,REDACTED PERSONAL DATA,No
Http://opendatacommunities.org/id/metropolitan-district-council/leeds,Leeds City Council,31/12/2021,Children and Families,Social Care,Agency Payments,Services Rendered By Other Organisations,511,03/12/2021,2112-00114,0.00,1672.50,R,REDACTED PERSONAL DATA,No
Http://opendatacommunities.org/id/metropolitan-district-council/leeds,Leeds City Council,31/12/2021,Children and Families,Social Care,Agency Payments,Services Rendered By Other Organisations,511,03/12/2021,2112-00115,0.00,943.50,R,REDACTED PERSONAL DATA,No
Http://opendatacommunities.org/id/metropolitan-district-council/leeds,Leeds City Council,31/12/2021,Children and Families,Social Care,Agency Payments,Services Rendered By Other Organisations,511,03/12/2021,2112-00116,0.00,413.40,R,REDACTED PERSONAL DATA,No
Http://opendatacommunities.org/id/metropolitan-district-council/leeds,Leeds City Council,31/12/2021,Communities and Environment,Customer Access,Supplies and Services,Bought In Professional Services,277,01/12/2021,2112-00117,0.00,18.00,R,A NAMAKI,No
Http://opendatacommunities.org/id/metropolitan-district-council/leeds,Leeds City Council,31/12/2021,Communities and Environment,Customer Access,Supplies and Services,Bought In Professional Services,277,01/12/2021,2112-00118,0.00,9.00,R,A NAMAKI,No
Http://opendatacommunities.org/id/metropolitan-district-council/leeds,Leeds City Council,31/12/2021,Communities and Environment,Customer Access,Supplies and Services,Bought In Professional Services,277,01/12/2021,2112-00119,0.00,18.00,R,A NAMAKI,No
Http://opendatacommunities.org/id/metropolitan-district-council/leeds,Leeds City Council,31/12/2021,Communities and Environment,Customer Access,Supplies and Services,Bought In Professional Services,277,08/12/2021,2112-00120,0.00,13.50,R,A NAMAKI,No
Http://opendatacommunities.org/id/metropolitan-district-council/leeds,Leeds City Council,31/12/2021,Communities and Environment,Customer Access,Supplies and Services,Bought In Professional Services,277,08/12/2021,2112-00121,0.00,18.00,R,A NAMAKI,No
Http://opendatacommunities.org/id/metropolitan-district-council/leeds,Leeds City Council,31/12/2021,Communities and Environment,Customer Access,Supplies and Services,Bought In Professional Services,277,08/12/2021,2112-00122,0.00,18.00,R,A NAMAKI,No
Http://opendatacommunities.org/id/metropolitan-district-council/leeds,Leeds City Council,31/12/2021,Communities and Environment,Customer Access,Supplies and Services,Bought In Professional Services,277,15/12/2021,2112-00123,0.00,126.00,R,A NAMAKI,No
Http://opendatacommunities.org/id/metropolitan-district-council/leeds,Leeds City Council,31/12/2021,Communities and Environment,Customer Access,Supplies and Services,Bought In Professional Services,277,15/12/2021,2112-00124,0.00,36.00,R,A NAMAKI,No
Http://opendatacommunities.org/id/metropolitan-district-council/leeds,Leeds City Council,31/12/2021,Communities and Environment,Customer Access,Supplies and Services,Bought In Professional Services,277,15/12/2021,2112-00125,0.00,18.00,R,A NAMAKI,No
Http://opendatacommunities.org/id/metropolitan-district-council/leeds,Leeds City Council,31/12/2021,Communities and Environment,Customer Access,Supplies and Services,Bought In Professional Services,277,15/12/2021,2112-00126,0.00,72.00,R,A NAMAKI,No
Http://opendatacommunities.org/id/metropolitan-district-council/leeds,Leeds City Council,31/12/2021,Communities and Environment,Customer Access,Supplies and Services,Bought In Professional Services,277,15/12/2021,2112-00127,0.00,18.00,R,A NAMAKI,No
Http://opendatacommunities.org/id/metropolitan-district-council/leeds,Leeds City Council,31/12/2021,Communities and Environment,Customer Access,Supplies and Services,Bought In Professional Services,277,15/12/2021,2112-00128,0.00,18.00,R,A NAMAKI,No
Http://opendatacommunities.org/id/metropolitan-district-council/leeds,Leeds City Council,31/12/2021,Communities and Environment,Customer Access,Supplies and Services,Bought In Professional Services,277,15/12/2021,2112-00129,0.00,27.00,R,A NAMAKI,No
Http://opendatacommunities.org/id/metropolitan-district-council/leeds,Leeds City Council,31/12/2021,Communities and Environment,Customer Access,Supplies and Services,Bought In Professional Services,277,15/12/2021,2112-00130,0.00,18.00,R,A NAMAKI,No
Http://opendatacommunities.org/id/metropolitan-district-council/leeds,Leeds City Council,31/12/2021,Communities and Environment,Customer Access,Supplies and Services,Bought In Professional Services,277,15/12/2021,2112-00131,0.00,18.00,R,A NAMAKI,No
Http://opendatacommunities.org/id/metropolitan-district-council/leeds,Leeds City Council,31/12/2021,Communities and Environment,Customer Access,Supplies and Services,Bought In Professional Services,277,15/12/2021,2112-00132,0.00,18.00,R,A NAMAKI,No
Http://opendatacommunities.org/id/metropolitan-district-council/leeds,Leeds City Council,31/12/2021,Communities and Environment,Customer Access,Supplies and Services,Bought In Professional Services,277,22/12/2021,2112-00133,0.00,72.00,R,A NAMAKI,No
Http://opendatacommunities.org/id/metropolitan-district-council/leeds,Leeds City Council,31/12/2021,Communities and Environment,Customer Access,Supplies and Services,Bought In Professional Services,277,22/12/2021,2112-00134,0.00,22.50,R,A NAMAKI,No
Http://opendatacommunities.org/id/metropolitan-district-council/leeds,Leeds City Council,31/12/2021,Communities and Environment,Customer Access,Supplies and Services,Bought In Professional Services,277,22/12/2021,2112-00135,0.00,81.00,R,A NAMAKI,No
Http://opendatacommunities.org/id/metropolitan-district-council/leeds,Leeds City Council,31/12/2021,Communities and Environment,Customer Access,Supplies and Services,Bought In Professional Services,277,22/12/2021,2112-00136,0.00,18.00,R,A NAMAKI,No
Http://opendatacommunities.org/id/metropolitan-district-council/leeds,Leeds City Council,31/12/2021,Communities and Environment,Customer Access,Supplies and Services,Bought In Professional Services,277,22/12/2021,2112-00137,0.00,36.00,R,A NAMAKI,No
Http://opendatacommunities.org/id/metropolitan-district-council/leeds,Leeds City Council,31/12/2021,Strategic Landlord,Housing Management,Supplies and Services,Compensation Claims,200,29/12/2021,2112-00138,0.00,100.00,R,REDACTED PERSONAL DATA,No
Http://opendatacommunities.org/id/metropolitan-district-council/leeds,Leeds City Council,31/12/2021,Communities and Environment,Parks and Countryside,Supplies and Services,Operational Materials,205,15/12/2021,2112-00139,0.00,2059.00,R,A NEWTON,No
Http://opendatacommunities.org/id/metropolitan-district-council/leeds,Leeds City Council,31/12/2021,City Development,Libraries Arts & Heritage,Supplies and Services,Non-Recurring Grants,227,22/12/2021,2112-00140,0.00,1000.00,R,A Quiet Word Ltd,No
Http://opendatacommunities.org/id/metropolitan-district-council/leeds,Leeds City Council,31/12/2021,Resources and Housing,HRA Housing Leeds,Capital,OTHER COSTS,7,16/12/2021,2112-00141,0.00,100.00,C,REDACTED PERSONAL DATA,No
Http://opendatacommunities.org/id/metropolitan-district-council/leeds,Leeds City Council,31/12/2021,Resources and Housing,Commercial Services,Supplies and Services,Other Hired And Contracted Services,265,08/12/2021,2112-00142,0.00,132.00,R,REDACTED PERSONAL DATA,No
Http://opendatacommunities.org/id/metropolitan-district-council/leeds,Leeds City Council,31/12/2021,Resources and Housing,Commercial Services,Supplies and Services,Other Hired And Contracted Services,265,13/12/2021,2112-00143,0.00,167.20,R,REDACTED PERSONAL DATA,No
Http://opendatacommunities.org/id/metropolitan-district-council/leeds,Leeds City Council,31/12/2021,Children and Families,Social Care,Agency Payments,Services Rendered By Other Organisations,511,03/12/2021,2112-00144,0.00,1605.60,R,REDACTED PERSONAL DATA,No
Http://opendatacommunities.org/id/metropolitan-district-council/leeds,Leeds City Council,31/12/2021,Children and Families,Social Care,Agency Payments,Services Rendered By Other Organisations,511,03/12/2021,2112-00145,0.00,95.40,R,REDACTED PERSONAL DATA,No
Http://opendatacommunities.org/id/metropolitan-district-council/leeds,Leeds City Council,31/12/2021,Children and Families,Social Care,Agency Payments,Independent Fostering Agencies,509,06/12/2021,2112-00146,0.00,1152.00,R,A Taxis,No
Http://opendatacommunities.org/id/metropolitan-district-council/leeds,Leeds City Council,31/12/2021,Children and Families,Social Care,Agency Payments,Services Rendered By Other Organisations,511,03/12/2021,2112-00147,0.00,869.70,R,REDACTED PERSONAL DATA,No
Http://opendatacommunities.org/id/metropolitan-district-council/leeds,Leeds City Council,31/12/2021,Children and Families,Social Care,Agency Payments,Services Rendered By Other Organisations,511,03/12/2021,2112-00148,0.00,253.50,R,REDACTED PERSONAL DATA,No
Http://opendatacommunities.org/id/metropolitan-district-council/leeds,Leeds City Council,31/12/2021,Children and Families,Social Care,Appropriations,Leaving Care Allowances,634,02/12/2021,2112-00149,0.00,235.00,R,A Wilderness Way Ltd,No
Http://opendatacommunities.org/id/metropolitan-district-council/leeds,Leeds City Council,31/12/2021,Children and Families,Social Care,Agency Payments,General External Residential Placements,507,31/12/2021,2112-00150,0.00,30114.33,R,A Wilderness Way Ltd,No
Http://opendatacommunities.org/id/metropolitan-district-council/leeds,Leeds City Council,31/12/2021,City Development,Highways,Employees,Study Books & Equipment,72,05/11/2021,2112-00151,0.00,48.17,R,A.C.E.,Yes
Http://opendatacommunities.org/id/metropolitan-district-council/leeds,Leeds City Council,31/12/2021,Resources and Housing,Leeds Building Services,Supplies and Services,Operational Materials,205,24/12/2021,2112-00152,0.00,175.00,R,A1 STAIR LIFT SERVICES,No
Http://opendatacommunities.org/id/metropolitan-district-council/leeds,Leeds City Council,31/12/2021,Resources and Housing,Leeds Building Services,Supplies and Services,Other Hired And Contracted Services,265,24/12/2021,2112-00153,0.00,321.20,R,A1 STAIR LIFT SERVICES,No
Http://opendatacommunities.org/id/metropolitan-district-council/leeds,Leeds City Council,31/12/2021,Resources and Housing,Leeds Building Services,Supplies and Services,Other Hired And Contracted Services,265,31/12/2021,2112-00154,0.00,1509.01,R,A1 STAIR LIFT SERVICES,No
Http://opendatacommunities.org/id/metropolitan-district-council/leeds,Leeds City Council,31/12/2021,Communities and Environment,Communities,Supplies and Services,Non-Recurring Grants,227,30/12/2021,2112-00155,0.00,3926.90,R,Aalfy Ltd,No
Http://opendatacommunities.org/id/metropolitan-district-council/leeds,Leeds City Council,31/12/2021,Children and Families,Social Care,Supplies and Services,Operational Materials,205,24/11/2021,2112-00156,0.00,307.72,R,Aardvark Archery,Yes
Http://opendatacommunities.org/id/metropolitan-district-council/leeds,Leeds City Council,31/12/2021,Children and Families,Social Care,Appropriations,Leaving Care Allowances,634,09/12/2021,2112-00157,0.00,50.00,R,REDACTED PERSONAL DATA,No
Http://opendatacommunities.org/id/metropolitan-district-council/leeds,Leeds City Council,31/12/2021,Children and Families,Social Care,Appropriations,Leaving Care Allowances,634,13/12/2021,2112-00158,0.00,20.00,R,REDACTED PERSONAL DATA,No
Http://opendatacommunities.org/id/metropolitan-district-council/leeds,Leeds City Council,31/12/2021,Adults and Health,Services For Older People - 65 And Over,Agency Payments,Residential Care Dementia,571,08/12/2021,2112-00159,0.00,1245.20,R,Aaron Court Care Home,No
Http://opendatacommunities.org/id/metropolitan-district-council/leeds,Leeds City Council,31/12/2021,Children and Families,Social Care,Appropriations,Leaving Care Allowances,634,06/12/2021,2112-00160,0.00,50.00,R,REDACTED PERSONAL DATA,No
Http://opendatacommunities.org/id/metropolitan-district-council/leeds,Leeds City Council,31/12/2021,Communities and Environment,Benefits Welfare and Poverty,Supplies and Services,Grant Related Expenditure,298,06/12/2021,2112-00161,0.00,500.00,R,REDACTED PERSONAL DATA,No
Http://opendatacommunities.org/id/metropolitan-district-council/leeds,Leeds City Council as Accountable Body,31/12/2021,Social Services Pooled Budgets,Jcs For People With Learning Disabilitie,Supplies and Services,Other Equipment,203,24/12/2021,2112-00162,0.00,854.00,R,AAT (GB) LTD,No
Http://opendatacommunities.org/id/metropolitan-district-council/leeds,Leeds City Council as Accountable Body,31/12/2021,Social Services Pooled Budgets,Leeds Community Equip Store Pooled Budgt,Supplies and Services,Other Equipment,203,24/12/2021,2112-00163,0.00,450.00,R,AAT (GB) LTD,No
Http://opendatacommunities.org/id/metropolitan-district-council/leeds,Leeds City Council,31/12/2021,Children and Families,Social Care,Agency Payments,Services Rendered By Other Organisations,511,03/12/2021,2112-00164,0.00,47249.24,R,Abbey Multi Academy Trust,No
Http://opendatacommunities.org/id/metropolitan-district-council/leeds,Leeds City Council,31/12/2021,Children and Families,Social Care,Agency Payments,Services Rendered By Other Organisations,511,03/12/2021,2112-00165,0.00,1130.90,R,Abbey Multi Academy Trust,No
Http://opendatacommunities.org/id/metropolitan-district-council/leeds,Leeds City Council,31/12/2021,Children and Families,Social Care,Agency Payments,Services Rendered By Other Organisations,511,03/12/2021,2112-00166,0.00,159.00,R,Abbey Multi Academy Trust,No
Http://opendatacommunities.org/id/metropolitan-district-council/leeds,Leeds City Council,31/12/2021,Children and Families,Learning,Supplies and Services,Other Hired And Contracted Services,265,17/12/2021,2112-00167,0.00,2465.25,R,Abbey Multi Academy Trust,No
Http://opendatacommunities.org/id/metropolitan-district-council/leeds,Leeds City Council,31/12/2021,Children and Families,Learning,Supplies and Services,Other Hired And Contracted Services,265,17/12/2021,2112-00168,0.00,91.27,R,Abbey Multi Academy Trust,No
Http://opendatacommunities.org/id/metropolitan-district-council/leeds,Leeds City Council,31/12/2021,Communities and Environment,Benefits Welfare and Poverty,Supplies and Services,Schools related grant expenditure,299,20/12/2021,2112-00169,0.00,21855.00,R,Abbey Multi Academy Trust,No
Http://opendatacommunities.org/id/metropolitan-district-council/leeds,Leeds City Council,31/12/2021,Communities and Environment,Benefits Welfare and Poverty,Supplies and Services,Schools related grant expenditure,299,20/12/2021,2112-00170,0.00,1650.00,R,Abbey Multi Academy Trust,No
Http://opendatacommunities.org/id/metropolitan-district-council/leeds,Leeds City Council,31/12/2021,Communities and Environment,Benefits Welfare and Poverty,Supplies and Services,Schools related grant expenditure,299,20/12/2021,2112-00171,0.00,13185.00,R,Abbey Multi Academy Trust,No
Http://opendatacommunities.org/id/metropolitan-district-council/leeds,Leeds City Council,31/12/2021,Communities and Environment,Benefits Welfare and Poverty,Supplies and Services,Schools related grant expenditure,299,20/12/2021,2112-00172,0.00,4800.00,R,Abbey Multi Academy Trust,No
Http://opendatacommunities.org/id/metropolitan-district-council/leeds,Leeds City Council,31/12/2021,Communities and Environment,Benefits Welfare and Poverty,Supplies and Services,Schools related grant expenditure,299,20/12/2021,2112-00173,0.00,2805.00,R,Abbey Multi Academy Trust,No
Http://opendatacommunities.org/id/metropolitan-district-council/leeds,Leeds City Council,31/12/2021,Children and Families,Social Care,Agency Payments,Services Rendered By Other Organisations,511,01/12/2021,2112-00174,0.00,1393.60,R,REDACTED PERSONAL DATA,No
Http://opendatacommunities.org/id/metropolitan-district-council/leeds,Leeds City Council,31/12/2021,Communities and Environment,Benefits Welfare and Poverty,Supplies and Services,Grant Related Expenditure,298,15/12/2021,2112-00175,0.00,500.00,R,REDACTED PERSONAL DATA,No
Http://opendatacommunities.org/id/metropolitan-district-council/leeds,Leeds City Council,31/12/2021,Communities and Environment,Parks and Countryside,Supplies and Services,Other Hired And Contracted Services,265,16/12/2021,2112-00176,0.00,1100.00,R,Abbotts Memorials,No
Http://opendatacommunities.org/id/metropolitan-district-council/leeds,Leeds City Council,31/12/2021,Communities and Environment,Parks and Countryside,Supplies and Services,Other Hired And Contracted Services,265,16/12/2021,2112-00177,0.00,550.00,R,Abbotts Memorials,No
Http://opendatacommunities.org/id/metropolitan-district-council/leeds,Leeds City Council,31/12/2021,Communities and Environment,Parks and Countryside,Supplies and Services,Other Hired And Contracted Services,265,16/12/2021,2112-00178,0.00,550.00,R,Abbotts Memorials,No
Http://opendatacommunities.org/id/metropolitan-district-council/leeds,Leeds City Council,31/12/2021,Communities and Environment,Parks and Countryside,Supplies and Services,Other Hired And Contracted Services,265,16/12/2021,2112-00179,0.00,550.00,R,Abbotts Memorials,No
Http://opendatacommunities.org/id/metropolitan-district-council/leeds,Leeds City Council,31/12/2021,Communities and Environment,Parks and Countryside,Supplies and Services,Other Hired And Contracted Services,265,16/12/2021,2112-00180,0.00,550.00,R,Abbotts Memorials,No
Http://opendatacommunities.org/id/metropolitan-district-council/leeds,Leeds City Council,31/12/2021,Communities and Environment,Parks and Countryside,Supplies and Services,Other Hired And Contracted Services,265,16/12/2021,2112-00181,0.00,550.00,R,Abbotts Memorials,No
Http://opendatacommunities.org/id/metropolitan-district-council/leeds,Leeds City Council,31/12/2021,Communities and Environment,Parks and Countryside,Supplies and Services,Other Hired And Contracted Services,265,21/12/2021,2112-00182,0.00,550.00,R,Abbotts Memorials,No
Http://opendatacommunities.org/id/metropolitan-district-council/leeds,Leeds City Council,31/12/2021,Communities and Environment,Parks and Countryside,Supplies and Services,Other Hired And Contracted Services,265,21/12/2021,2112-00183,0.00,550.00,R,Abbotts Memorials,No
Http://opendatacommunities.org/id/metropolitan-district-council/leeds,Leeds City Council,31/12/2021,Communities and Environment,Parks and Countryside,Supplies and Services,Schools related grant expenditure,299,21/12/2021,2112-00184,0.00,550.00,R,Abbotts Memorials,No
Http://opendatacommunities.org/id/metropolitan-district-council/leeds,Leeds City Council,31/12/2021,Communities and Environment,Parks and Countryside,Supplies and Services,Schools related grant expenditure,299,21/12/2021,2112-00185,0.00,550.00,R,Abbotts Memorials,No
Http://opendatacommunities.org/id/metropolitan-district-council/leeds,Leeds City Council,31/12/2021,Communities and Environment,Parks and Countryside,Supplies and Services,Other Hired And Contracted Services,265,21/12/2021,2112-00186,0.00,550.00,R,Abbotts Memorials,No
Http://opendatacommunities.org/id/metropolitan-district-council/leeds,Leeds City Council,31/12/2021,Communities and Environment,Parks and Countryside,Supplies and Services,Other Hired And Contracted Services,265,24/12/2021,2112-00187,0.00,2200.00,R,Abbotts Memorials,No
Http://opendatacommunities.org/id/metropolitan-district-council/leeds,Leeds City Council,31/12/2021,Communities and Environment,Parks and Countryside,Supplies and Services,Other Hired And Contracted Services,265,31/12/2021,2112-00188,0.00,2200.00,R,Abbotts Memorials,No
Http://opendatacommunities.org/id/metropolitan-district-council/leeds,Leeds City Council,31/12/2021,Communities and Environment,Parks and Countryside,Supplies and Services,Other Hired And Contracted Services,265,31/12/2021,2112-00189,0.00,3300.00,R,Abbotts Memorials,No
Http://opendatacommunities.org/id/metropolitan-district-council/leeds,Leeds City Council,31/12/2021,Children and Families,Social Care,Agency Payments,General External Residential Placements,507,01/12/2021,2112-00190,0.00,15428.70,R,ABC Care and Educationd LTD,No
Http://opendatacommunities.org/id/metropolitan-district-council/leeds,Leeds City Council,31/12/2021,Children and Families,Social Care,Agency Payments,Services Rendered By Other Organisations,511,01/12/2021,2112-00191,0.00,6009.90,R,ABC NURSERY AT LUFC,No
Http://opendatacommunities.org/id/metropolitan-district-council/leeds,Leeds City Council,31/12/2021,Children and Families,Social Care,Agency Payments,Services Rendered By Other Organisations,511,03/12/2021,2112-00192,0.00,8412.67,R,ABC NURSERY AT LUFC,No
Http://opendatacommunities.org/id/metropolitan-district-council/leeds,Leeds City Council,31/12/2021,Children and Families,Social Care,Agency Payments,Services Rendered By Other Organisations,511,03/12/2021,2112-00193,0.00,1740.00,R,ABC NURSERY AT LUFC,No
Http://opendatacommunities.org/id/metropolitan-district-council/leeds,Leeds City Council,31/12/2021,Children and Families,Social Care,Agency Payments,Services Rendered By Other Organisations,511,03/12/2021,2112-00194,0.00,302.10,R,ABC NURSERY AT LUFC,No
Http://opendatacommunities.org/id/metropolitan-district-council/leeds,Leeds City Council,31/12/2021,Children and Families,Social Care,Agency Payments,Services Rendered By Other Organisations,511,01/12/2021,2112-00195,0.00,522.60,R,Abc@D'S Childcare,No
Http://opendatacommunities.org/id/metropolitan-district-council/leeds,Leeds City Council,31/12/2021,Children and Families,Social Care,Agency Payments,Services Rendered By Other Organisations,511,03/12/2021,2112-00196,0.00,5218.20,R,Abc@D'S Childcare,No
Http://opendatacommunities.org/id/metropolitan-district-council/leeds,Leeds City Council,31/12/2021,Children and Families,Social Care,Agency Payments,Services Rendered By Other Organisations,511,03/12/2021,2112-00197,0.00,1803.75,R,Abc@D'S Childcare,No
Http://opendatacommunities.org/id/metropolitan-district-council/leeds,Leeds City Council,31/12/2021,Resources and Housing,Sustainable Energy & Climate Change,Capital,OTHER COSTS,7,14/12/2021,2112-00198,0.00,2100.00,C,REDACTED COMMERCIAL CONFIDENTIALITY,No
Http://opendatacommunities.org/id/metropolitan-district-council/leeds,Leeds City Council,31/12/2021,Communities and Environment,Customer Access,Supplies and Services,Bought In Professional Services,277,01/12/2021,2112-00199,0.00,22.50,R,Abdul Kalam,No
Http://opendatacommunities.org/id/metropolitan-district-council/leeds,Leeds City Council,31/12/2021,Communities and Environment,Customer Access,Supplies and Services,Bought In Professional Services,277,15/12/2021,2112-00200,0.00,18.00,R,Abdul Kalam,No
Http://opendatacommunities.org/id/metropolitan-district-council/leeds,Leeds City Council,31/12/2021,Communities and Environment,Customer Access,Supplies and Services,Bought In Professional Services,277,22/12/2021,2112-00201,0.00,18.00,R,Abdul Kalam,No
Http://opendatacommunities.org/id/metropolitan-district-council/leeds,Leeds City Council,31/12/2021,Communities and Environment,Customer Access,Supplies and Services,Bought In Professional Services,277,22/12/2021,2112-00202,0.00,18.00,R,Abdul Kalam,No
Http://opendatacommunities.org/id/metropolitan-district-council/leeds,Leeds City Council,31/12/2021,Communities and Environment,Customer Access,Supplies and Services,Bought In Professional Services,277,22/12/2021,2112-00203,0.00,13.50,R,Abdul Kalam,No
Http://opendatacommunities.org/id/metropolitan-district-council/leeds,Leeds City Council,31/12/2021,Communities and Environment,Customer Access,Supplies and Services,Bought In Professional Services,277,22/12/2021,2112-00204,0.00,18.00,R,Abdul Kalam,No
Http://opendatacommunities.org/id/metropolitan-district-council/leeds,Leeds City Council,31/12/2021,Communities and Environment,Elections Licensing and Registration,External Income,Admissions Booking Fees & Ticket Sales,933,23/12/2021,2112-00205,0.00,130.00,R,Abdul Kalam,No
Http://opendatacommunities.org/id/metropolitan-district-council/leeds,Leeds City Council,31/12/2021,Communities and Environment,Customer Access,Supplies and Services,Bought In Professional Services,277,01/12/2021,2112-00206,0.00,18.00,R,Abdulahad Denha,No
Http://opendatacommunities.org/id/metropolitan-district-council/leeds,Leeds City Council,31/12/2021,Communities and Environment,Customer Access,Supplies and Services,Bought In Professional Services,277,08/12/2021,2112-00207,0.00,36.00,R,Abdulahad Denha,No
Http://opendatacommunities.org/id/metropolitan-district-council/leeds,Leeds City Council,31/12/2021,Communities and Environment,Customer Access,Supplies and Services,Bought In Professional Services,277,15/12/2021,2112-00208,0.00,18.00,R,Abdulahad Denha,No
Http://opendatacommunities.org/id/metropolitan-district-council/leeds,Leeds City Council,31/12/2021,Communities and Environment,Customer Access,Supplies and Services,Bought In Professional Services,277,01/12/2021,2112-00209,0.00,33.00,R,Abdulrahim Dastyar,No
Http://opendatacommunities.org/id/metropolitan-district-council/leeds,Leeds City Council,31/12/2021,Communities and Environment,Customer Access,Supplies and Services,Bought In Professional Services,277,01/12/2021,2112-00210,0.00,13.50,R,Abdulrahim Dastyar,No
Http://opendatacommunities.org/id/metropolitan-district-council/leeds,Leeds City Council,31/12/2021,Communities and Environment,Customer Access,Supplies and Services,Bought In Professional Services,277,08/12/2021,2112-00211,0.00,18.00,R,Abdulrahim Dastyar,No
Http://opendatacommunities.org/id/metropolitan-district-council/leeds,Leeds City Council,31/12/2021,Communities and Environment,Customer Access,Supplies and Services,Bought In Professional Services,277,08/12/2021,2112-00212,0.00,23.10,R,Abdulrahim Dastyar,No
Http://opendatacommunities.org/id/metropolitan-district-council/leeds,Leeds City Council,31/12/2021,Communities and Environment,Customer Access,Supplies and Services,Bought In Professional Services,277,08/12/2021,2112-00213,0.00,18.00,R,Abdulrahim Dastyar,No
Http://opendatacommunities.org/id/metropolitan-district-council/leeds,Leeds City Council,31/12/2021,Communities and Environment,Customer Access,Supplies and Services,Bought In Professional Services,277,08/12/2021,2112-00214,0.00,18.00,R,Abdulrahim Dastyar,No
Http://opendatacommunities.org/id/metropolitan-district-council/leeds,Leeds City Council,31/12/2021,Communities and Environment,Customer Access,Supplies and Services,Bought In Professional Services,277,15/12/2021,2112-00215,0.00,13.50,R,Abdulrahim Dastyar,No
Http://opendatacommunities.org/id/metropolitan-district-council/leeds,Leeds City Council,31/12/2021,Communities and Environment,Customer Access,Supplies and Services,Bought In Professional Services,277,15/12/2021,2112-00216,0.00,22.50,R,Abdulrahim Dastyar,No
Http://opendatacommunities.org/id/metropolitan-district-council/leeds,Leeds City Council,31/12/2021,Communities and Environment,Customer Access,Supplies and Services,Bought In Professional Services,277,15/12/2021,2112-00217,0.00,18.00,R,Abdulrahim Dastyar,No
Http://opendatacommunities.org/id/metropolitan-district-council/leeds,Leeds City Council,31/12/2021,Communities and Environment,Customer Access,Supplies and Services,Bought In Professional Services,277,22/12/2021,2112-00218,0.00,18.00,R,Abdulrahim Dastyar,No
Http://opendatacommunities.org/id/metropolitan-district-council/leeds,Leeds City Council,31/12/2021,Communities and Environment,Customer Access,Supplies and Services,Bought In Professional Services,277,22/12/2021,2112-00219,0.00,36.00,R,Abdulrahim Dastyar,No
Http://opendatacommunities.org/id/metropolitan-district-council/leeds,Leeds City Council,31/12/2021,Communities and Environment,Customer Access,Supplies and Services,Bought In Professional Services,277,22/12/2021,2112-00220,0.00,9.00,R,Abdulrahim Dastyar,No
Http://opendatacommunities.org/id/metropolitan-district-council/leeds,Leeds City Council,31/12/2021,Communities and Environment,Customer Access,Supplies and Services,Bought In Professional Services,277,22/12/2021,2112-00221,0.00,18.00,R,Abdulrahim Dastyar,No
Http://opendatacommunities.org/id/metropolitan-district-council/leeds,Leeds City Council,31/12/2021,Communities and Environment,Customer Access,Supplies and Services,Bought In Professional Services,277,22/12/2021,2112-00222,0.00,9.00,R,Abdulrahim Dastyar,No
Http://opendatacommunities.org/id/metropolitan-district-council/leeds,Leeds City Council,31/12/2021,Children and Families,Social Care,Appropriations,16 Plus Top Up Allowance,625,03/12/2021,2112-00223,0.00,30.00,R,REDACTED PERSONAL DATA,No
Http://opendatacommunities.org/id/metropolitan-district-council/leeds,Leeds City Council,31/12/2021,Children and Families,Social Care,Appropriations,16 Plus Top Up Allowance,625,10/12/2021,2112-00224,0.00,30.00,R,REDACTED PERSONAL DATA,No
Http://opendatacommunities.org/id/metropolitan-district-council/leeds,Leeds City Council,31/12/2021,Children and Families,Social Care,Appropriations,16 Plus Top Up Allowance,625,17/12/2021,2112-00225,0.00,30.00,R,REDACTED PERSONAL DATA,No
Http://opendatacommunities.org/id/metropolitan-district-council/leeds,Leeds City Council,31/12/2021,Children and Families,Social Care,Appropriations,16 Plus Top Up Allowance,625,24/12/2021,2112-00226,0.00,30.00,R,REDACTED PERSONAL DATA,No
Http://opendatacommunities.org/id/metropolitan-district-council/leeds,Leeds City Council,31/12/2021,Children and Families,Social Care,Appropriations,16 Plus Top Up Allowance,625,31/12/2021,2112-00227,0.00,30.00,R,REDACTED PERSONAL DATA,No
Http://opendatacommunities.org/id/metropolitan-district-council/leeds,Leeds City Council,31/12/2021,Children and Families,Social Care,Appropriations,16 Plus Top Up Allowance,625,31/12/2021,2112-00228,0.00,30.00,R,REDACTED PERSONAL DATA,No
Http://opendatacommunities.org/id/metropolitan-district-council/leeds,Leeds City Council,31/12/2021,Adults and Health,Services For Older People - 65 And Over,Agency Payments,Nursing Home,570,08/12/2021,2112-00229,0.00,28061.27,R,Aberford Hall,No
Http://opendatacommunities.org/id/metropolitan-district-council/leeds,Leeds City Council,31/12/2021,Communities and Environment,Elections Licensing and Registration,External Income,Admissions Booking Fees & Ticket Sales,933,23/12/2021,2112-00230,0.00,260.00,R,REDACTED PERSONAL DATA,No
Http://opendatacommunities.org/id/metropolitan-district-council/leeds,Leeds City Council,31/12/2021,Communities and Environment,Customer Access,Supplies and Services,Bought In Professional Services,277,22/12/2021,2112-00231,0.00,9.00,R,Abida Begum,No
Http://opendatacommunities.org/id/metropolitan-district-council/leeds,Leeds City Council,31/12/2021,Children and Families,Social Care,Appropriations,Leaving Care Allowances,634,03/12/2021,2112-00232,0.00,40.00,R,REDACTED PERSONAL DATA,No
Http://opendatacommunities.org/id/metropolitan-district-council/leeds,Leeds City Council,31/12/2021,Children and Families,Social Care,Appropriations,Leaving Care Allowances,634,10/12/2021,2112-00233,0.00,40.00,R,REDACTED PERSONAL DATA,No
Http://opendatacommunities.org/id/metropolitan-district-council/leeds,Leeds City Council,31/12/2021,Children and Families,Social Care,Appropriations,Leaving Care Allowances,634,17/12/2021,2112-00234,0.00,40.00,R,REDACTED PERSONAL DATA,No
Http://opendatacommunities.org/id/metropolitan-district-council/leeds,Leeds City Council,31/12/2021,Children and Families,Social Care,Appropriations,Leaving Care Allowances,634,24/12/2021,2112-00235,0.00,40.00,R,REDACTED PERSONAL DATA,No
Http://opendatacommunities.org/id/metropolitan-district-council/leeds,Leeds City Council,31/12/2021,Children and Families,Social Care,Appropriations,Leaving Care Allowances,634,31/12/2021,2112-00236,0.00,40.00,R,REDACTED PERSONAL DATA,No
Http://opendatacommunities.org/id/metropolitan-district-council/leeds,Leeds City Council,31/12/2021,Children and Families,Social Care,Appropriations,Leaving Care Allowances,634,31/12/2021,2112-00237,0.00,40.00,R,REDACTED PERSONAL DATA,No
Http://opendatacommunities.org/id/metropolitan-district-council/leeds,Leeds City Council,31/12/2021,Children and Families,Social Care,Appropriations,Leaving Care Allowances,634,20/12/2021,2112-00238,0.00,50.00,R,REDACTED PERSONAL DATA,No
Http://opendatacommunities.org/id/metropolitan-district-council/leeds,Leeds City Council,31/12/2021,Strategic Landlord,Property and Contracts,Internal Recharges,Legal Disbursements,411,10/12/2021,2112-00239,0.00,1250.00,R,Abigail Cheetham,No
Http://opendatacommunities.org/id/metropolitan-district-council/leeds,Leeds City Council,31/12/2021,Strategic Landlord,Property and Contracts,Internal Recharges,Legal Disbursements,411,31/12/2021,2112-00240,0.00,400.00,R,Abigail Cheetham,No
Http://opendatacommunities.org/id/metropolitan-district-council/leeds,Leeds City Council,31/12/2021,City Development,Economic Development,Supplies and Services,Grant Related Expenditure,290,03/12/2021,2112-00241,0.00,4723.00,R,REDACTED PERSONAL DATA,No
Http://opendatacommunities.org/id/metropolitan-district-council/leeds,Leeds City Council,31/12/2021,Communities and Environment,Benefits Welfare and Poverty,Supplies and Services,Grant Related Expenditure,298,01/12/2021,2112-00242,0.00,500.00,R,REDACTED PERSONAL DATA,No
Http://opendatacommunities.org/id/metropolitan-district-council/leeds,Leeds City Council,31/12/2021,Communities and Environment,Benefits Welfare and Poverty,Supplies and Services,Grant Related Expenditure,298,22/12/2021,2112-00243,0.00,500.00,R,REDACTED PERSONAL DATA,No
Http://opendatacommunities.org/id/metropolitan-district-council/leeds,Leeds City Council,31/12/2021,Communities and Environment,Benefits Welfare and Poverty,Supplies and Services,Grant Related Expenditure,290,29/12/2021,2112-00244,0.00,500.00,R,REDACTED PERSONAL DATA,No
Http://opendatacommunities.org/id/metropolitan-district-council/leeds,Leeds City Council,31/12/2021,Communities and Environment,Benefits Welfare and Poverty,Supplies and Services,Grant Related Expenditure,298,08/12/2021,2112-00245,0.00,500.00,R,REDACTED PERSONAL DATA,No
Http://opendatacommunities.org/id/metropolitan-district-council/leeds,Leeds City Council,31/12/2021,Children and Families,Social Care,Agency Payments,Placement Support,550,09/12/2021,2112-00246,0.00,50.00,R,REDACTED PERSONAL DATA,No
Http://opendatacommunities.org/id/metropolitan-district-council/leeds,Leeds City Council,31/12/2021,City Development,Recreation,External Income,Swimming Bath Charges,923,23/12/2021,2112-00247,0.00,26.50,R,REDACTED PERSONAL DATA,No
Http://opendatacommunities.org/id/metropolitan-district-council/leeds,Leeds City Council,31/12/2021,Children and Families,Social Care,Agency Payments,Contact,548,13/12/2021,2112-00248,0.00,3.99,R,REDACTED PERSONAL DATA,No
Http://opendatacommunities.org/id/metropolitan-district-council/leeds,Leeds City Council,31/12/2021,Children and Families,Social Care,Appropriations,Leaving Care Allowances,634,13/12/2021,2112-00249,0.00,4.40,R,REDACTED PERSONAL DATA,No
Http://opendatacommunities.org/id/metropolitan-district-council/leeds,Leeds City Council,31/12/2021,Children and Families,Social Care,Appropriations,Leaving Care Allowances,634,14/12/2021,2112-00250,0.00,2.26,R,REDACTED PERSONAL DATA,No
Http://opendatacommunities.org/id/metropolitan-district-council/leeds,Leeds City Council,31/12/2021,Children and Families,Social Care,Agency Payments,Contact,548,24/12/2021,2112-00251,0.00,36.70,R,REDACTED PERSONAL DATA,No
Http://opendatacommunities.org/id/metropolitan-district-council/leeds,Leeds City Council,31/12/2021,City Development,Economic Development,Supplies and Services,Grant Related Expenditure,290,17/12/2021,2112-00252,0.00,4521.00,R,Abra Wynn,No
Http://opendatacommunities.org/id/metropolitan-district-council/leeds,Leeds City Council,31/12/2021,Communities and Environment,Parks and Countryside,Premises,Maintenance Of Buildings,101,10/11/2021,2112-00253,0.00,2549.52,R,Abram Pulman And Sons,Yes
Http://opendatacommunities.org/id/metropolitan-district-council/leeds,Leeds City Council,31/12/2021,Children and Families,Social Care,Agency Payments,Section 17,551,29/11/2021,2112-00254,0.00,7.15,R,Abu Bakar,Yes
Http://opendatacommunities.org/id/metropolitan-district-council/leeds,Leeds City Council,31/12/2021,Communities and Environment,Elections Licensing and Registration,External Income,Admissions Booking Fees & Ticket Sales,933,23/12/2021,2112-00255,0.00,260.00,R,REDACTED PERSONAL DATA,No
Http://opendatacommunities.org/id/metropolitan-district-council/leeds,Leeds City Council,31/12/2021,Communities and Environment,Benefits Welfare and Poverty,Supplies and Services,Grant Related Expenditure,290,08/12/2021,2112-00256,0.00,500.00,R,REDACTED PERSONAL DATA,No
Http://opendatacommunities.org/id/metropolitan-district-council/leeds,Leeds City Council,31/12/2021,Adults and Health,Services For Adults Under 65 Mental/Dis,Agency Payments,Fees - Level 4,520,15/12/2021,2112-00257,0.00,175.00,R,Abubaker Denja Mohammed,No
Http://opendatacommunities.org/id/metropolitan-district-council/leeds,Leeds City Council,31/12/2021,City Development,Economic Development,Supplies and Services,Grant Related Expenditure,290,13/12/2021,2112-00258,0.00,14094.00,R,ACADEMIC APPOINTMENTS LTD,No
Http://opendatacommunities.org/id/metropolitan-district-council/leeds,Leeds City Council,31/12/2021,Children and Families,Social Care,Agency Payments,Services Rendered By Other Organisations,511,01/12/2021,2112-00259,0.00,14793.60,R,Academies Enterprise Trust (AET),No
Http://opendatacommunities.org/id/metropolitan-district-council/leeds,Leeds City Council,31/12/2021,Children and Families,Social Care,Agency Payments,Services Rendered By Other Organisations,511,03/12/2021,2112-00260,0.00,28700.10,R,Academies Enterprise Trust (AET),No
Http://opendatacommunities.org/id/metropolitan-district-council/leeds,Leeds City Council,31/12/2021,Children and Families,Social Care,Agency Payments,Services Rendered By Other Organisations,511,03/12/2021,2112-00261,0.00,3734.25,R,Academies Enterprise Trust (AET),No
Http://opendatacommunities.org/id/metropolitan-district-council/leeds,Leeds City Council,31/12/2021,Children and Families,Social Care,Agency Payments,Services Rendered By Other Organisations,511,03/12/2021,2112-00262,0.00,310.05,R,Academies Enterprise Trust (AET),No
Http://opendatacommunities.org/id/metropolitan-district-council/leeds,Leeds City Council,31/12/2021,Communities and Environment,Benefits Welfare and Poverty,Supplies and Services,Schools related grant expenditure,299,20/12/2021,2112-00263,0.00,9690.00,R,Academies Enterprise Trust (AET),No
Http://opendatacommunities.org/id/metropolitan-district-council/leeds,Leeds City Council,31/12/2021,Adults and Health,Services For Older People - 65 And Over,Agency Payments,Home Care,568,15/12/2021,2112-00264,0.00,501.93,R,Academy Care Ltd,No
Http://opendatacommunities.org/id/metropolitan-district-council/leeds,Leeds City Council,31/12/2021,Communities and Environment,Strategic Housing Partnership & Support,Supplies and Services,Other Hired And Contracted Services,265,02/12/2021,2112-00265,0.00,644.62,R,Accent Foundation Ltd,No
Http://opendatacommunities.org/id/metropolitan-district-council/leeds,Leeds City Council,31/12/2021,Communities and Environment,Strategic Housing Partnership & Support,Supplies and Services,Other Hired And Contracted Services,265,17/12/2021,2112-00266,0.00,706.81,R,Accent Foundation Ltd,No
Http://opendatacommunities.org/id/metropolitan-district-council/leeds,Leeds City Council,31/12/2021,Resources and Housing,Technology,Supplies and Services,Computer Software & Equipment,214,31/12/2021,2112-00267,0.00,5130.00,R,ACCENTURE (UK) LTD,No
Http://opendatacommunities.org/id/metropolitan-district-council/leeds,Leeds City Council,31/12/2021,Communities and Environment,Cleaner Neighbourhood Teams,Supplies and Services,Operational Furniture And Equipment,203,10/11/2021,2112-00268,0.00,99.40,R,Access Locksmiths,Yes
Http://opendatacommunities.org/id/metropolitan-district-council/leeds,Leeds City Council,31/12/2021,Communities and Environment,Strategic Housing Partnership & Support,Supplies and Services,Subsistence,256,11/11/2021,2112-00269,0.00,22.05,R,Access Locksmiths,Yes
Http://opendatacommunities.org/id/metropolitan-district-council/leeds,Leeds City Council,31/12/2021,Resources and Housing,Leeds Building Services,Supplies and Services,Operational Materials,205,03/12/2021,2112-00270,0.00,154.52,R,ACCESS LOCKSMITHS (LEEDS) LIMITED,No
Http://opendatacommunities.org/id/metropolitan-district-council/leeds,Leeds City Council,31/12/2021,Resources and Housing,Leeds Building Services,Supplies and Services,Operational Materials,205,17/12/2021,2112-00271,0.00,103.00,R,ACCESS LOCKSMITHS (LEEDS) LIMITED,No
Http://opendatacommunities.org/id/metropolitan-district-council/leeds,Leeds City Council,31/12/2021,Resources and Housing,Leeds Building Services,Supplies and Services,Operational Materials,205,17/12/2021,2112-00272,0.00,-103.00,R,ACCESS LOCKSMITHS (LEEDS) LIMITED,No
Http://opendatacommunities.org/id/metropolitan-district-council/leeds,Leeds City Council,31/12/2021,Strategic Landlord,Housing Management,Premises,General Maintenance,104,24/12/2021,2112-00273,0.00,124.00,R,ACCESS LOCKSMITHS (LEEDS) LIMITED,No
Http://opendatacommunities.org/id/metropolitan-district-council/leeds,Leeds City Council,31/12/2021,Strategic Landlord,Housing Management,Supplies and Services,Grant Related Expenditure,298,24/12/2021,2112-00274,0.00,37.20,R,ACCESS LOCKSMITHS (LEEDS) LIMITED,No
Http://opendatacommunities.org/id/metropolitan-district-council/leeds,Leeds City Council,31/12/2021,Strategic Landlord,Housing Management,Supplies and Services,Resaleable Materials,204,24/12/2021,2112-00275,0.00,37.20,R,ACCESS LOCKSMITHS (LEEDS) LIMITED,No
Http://opendatacommunities.org/id/metropolitan-district-council/leeds,Leeds City Council,31/12/2021,Resources and Housing,Commercial Services,Supplies and Services,Operational Furniture And Equipment,203,24/12/2021,2112-00276,0.00,460.00,R,ACCESS LOCKSMITHS (LEEDS) LIMITED,No
Http://opendatacommunities.org/id/metropolitan-district-council/leeds,Leeds City Council,31/12/2021,Strategic Landlord,Housing Management,Supplies and Services,Resaleable Materials,204,24/12/2021,2112-00277,0.00,49.86,R,ACCESS LOCKSMITHS (LEEDS) LIMITED,No
Http://opendatacommunities.org/id/metropolitan-district-council/leeds,Leeds City Council,31/12/2021,Resources and Housing,HRA Housing Leeds,Capital,CONSTRUCTION,3,24/12/2021,2112-00278,0.00,11.55,C,ACCESS LOCKSMITHS (LEEDS) LIMITED,No
Http://opendatacommunities.org/id/metropolitan-district-council/leeds,Leeds City Council,31/12/2021,Resources and Housing,Leeds Building Services,Supplies and Services,Operational Materials,205,24/12/2021,2112-00279,0.00,31.80,R,ACCESS LOCKSMITHS (LEEDS) LIMITED,No
Http://opendatacommunities.org/id/metropolitan-district-council/leeds,Leeds City Council,31/12/2021,Resources and Housing,Leeds Building Services,Supplies and Services,Operational Materials,205,24/12/2021,2112-00280,0.00,9.00,R,ACCESS LOCKSMITHS (LEEDS) LIMITED,No
Http://opendatacommunities.org/id/metropolitan-district-council/leeds,Leeds City Council,31/12/2021,Resources and Housing,Leeds Building Services,Supplies and Services,Operational Materials,205,24/12/2021,2112-00281,0.00,7.50,R,ACCESS LOCKSMITHS (LEEDS) LIMITED,No
Http://opendatacommunities.org/id/metropolitan-district-council/leeds,Leeds City Council,31/12/2021,Resources and Housing,Leeds Building Services,Supplies and Services,Operational Materials,205,24/12/2021,2112-00282,0.00,21.17,R,ACCESS LOCKSMITHS (LEEDS) LIMITED,No
Http://opendatacommunities.org/id/metropolitan-district-council/leeds,Leeds City Council,31/12/2021,Resources and Housing,Leeds Building Services,Supplies and Services,Operational Materials,205,24/12/2021,2112-00283,0.00,164.36,R,ACCESS LOCKSMITHS (LEEDS) LIMITED,No
Http://opendatacommunities.org/id/metropolitan-district-council/leeds,Leeds City Council,31/12/2021,Resources and Housing,Leeds Building Services,Supplies and Services,Operational Materials,205,24/12/2021,2112-00284,0.00,164.36,R,ACCESS LOCKSMITHS (LEEDS) LIMITED,No
Http://opendatacommunities.org/id/metropolitan-district-council/leeds,Leeds City Council,31/12/2021,Resources and Housing,Leeds Building Services,Supplies and Services,Operational Materials,205,24/12/2021,2112-00285,0.00,164.36,R,ACCESS LOCKSMITHS (LEEDS) LIMITED,No
Http://opendatacommunities.org/id/metropolitan-district-council/leeds,Leeds City Council,31/12/2021,Resources and Housing,Leeds Building Services,Supplies and Services,Operational Materials,205,24/12/2021,2112-00286,0.00,164.36,R,ACCESS LOCKSMITHS (LEEDS) LIMITED,No
Http://opendatacommunities.org/id/metropolitan-district-council/leeds,Leeds City Council,31/12/2021,Resources and Housing,Leeds Building Services,Supplies and Services,Operational Materials,205,24/12/2021,2112-00287,0.00,11.68,R,ACCESS LOCKSMITHS (LEEDS) LIMITED,No
Http://opendatacommunities.org/id/metropolitan-district-council/leeds,Leeds City Council,31/12/2021,Resources and Housing,Leeds Building Services,Supplies and Services,Operational Materials,205,24/12/2021,2112-00288,0.00,11.68,R,ACCESS LOCKSMITHS (LEEDS) LIMITED,No
Http://opendatacommunities.org/id/metropolitan-district-council/leeds,Leeds City Council,31/12/2021,Resources and Housing,Leeds Building Services,Supplies and Services,Operational Materials,205,24/12/2021,2112-00289,0.00,41.32,R,ACCESS LOCKSMITHS (LEEDS) LIMITED,No
Http://opendatacommunities.org/id/metropolitan-district-council/leeds,Leeds City Council,31/12/2021,Resources and Housing,Leeds Building Services,Supplies and Services,Operational Materials,205,30/12/2021,2112-00290,0.00,323.98,R,ACCESS LOCKSMITHS (LEEDS) LIMITED,No
Http://opendatacommunities.org/id/metropolitan-district-council/leeds,Leeds City Council,31/12/2021,Strategic Landlord,Property and Contracts,Premises,General Maintenance,104,31/12/2021,2112-00291,0.00,544.84,R,ACCESS LOCKSMITHS (LEEDS) LIMITED,No
Http://opendatacommunities.org/id/metropolitan-district-council/leeds,Leeds City Council,31/12/2021,Strategic Landlord,Housing Management,Supplies and Services,Resaleable Materials,204,31/12/2021,2112-00292,0.00,173.60,R,ACCESS LOCKSMITHS (LEEDS) LIMITED,No
Http://opendatacommunities.org/id/metropolitan-district-council/leeds,Leeds City Council,31/12/2021,Strategic Landlord,Property and Contracts,Premises,General Maintenance,104,31/12/2021,2112-00293,0.00,74.79,R,ACCESS LOCKSMITHS (LEEDS) LIMITED,No
Http://opendatacommunities.org/id/metropolitan-district-council/leeds,Leeds City Council,31/12/2021,Strategic Landlord,Property and Contracts,Premises,General Maintenance,104,10/12/2021,2112-00294,0.00,62.70,R,ACCESS SOLUTIONS NORTHERN LTD,No
Http://opendatacommunities.org/id/metropolitan-district-council/leeds,Leeds City Council,31/12/2021,City Development,Recreation,Supplies and Services,Operational Furniture And Equipment,203,29/12/2021,2112-00295,0.00,3275.00,R,ACE CONTAINER SERVICES LIMITED,No
Http://opendatacommunities.org/id/metropolitan-district-council/leeds,Leeds City Council,31/12/2021,City Development,Recreation,Transport,External Hire -Occasional,304,31/12/2021,2112-00296,0.00,128.65,R,ACE CONTAINER SERVICES LIMITED,No
Http://opendatacommunities.org/id/metropolitan-district-council/leeds,Leeds City Council,31/12/2021,City Development,Economic Development,Supplies and Services,Grant Related Expenditure,290,29/12/2021,2112-00297,0.00,10965.00,R,Ace Leaflet Distribution & Print Ltd,No
Http://opendatacommunities.org/id/metropolitan-district-council/leeds,Leeds City Council,31/12/2021,Children and Families,Learning,Agency Payments,SEN Placements,566,30/12/2021,2112-00298,0.00,19014.93,R,ACKWORTH SCHOOL,No
Http://opendatacommunities.org/id/metropolitan-district-council/leeds,Leeds City Council,31/12/2021,Children and Families,Learning,Agency Payments,SEN Placements,566,30/12/2021,2112-00299,0.00,19014.93,R,ACKWORTH SCHOOL,No
Http://opendatacommunities.org/id/metropolitan-district-council/leeds,Leeds City Council,31/12/2021,Children and Families,Learning,Agency Payments,SEN Placements,566,30/12/2021,2112-00300,0.00,26357.43,R,ACKWORTH SCHOOL,No
Http://opendatacommunities.org/id/metropolitan-district-council/leeds,Leeds City Council,31/12/2021,Children and Families,Learning,Agency Payments,SEN Placements,566,30/12/2021,2112-00301,0.00,19014.93,R,ACKWORTH SCHOOL,No
Http://opendatacommunities.org/id/metropolitan-district-council/leeds,Leeds City Council,31/12/2021,Children and Families,Learning,Agency Payments,SEN Placements,566,30/12/2021,2112-00302,0.00,19020.87,R,ACKWORTH SCHOOL,No
Http://opendatacommunities.org/id/metropolitan-district-council/leeds,Leeds City Council,31/12/2021,Children and Families,Learning,Agency Payments,SEN Placements,566,30/12/2021,2112-00303,0.00,19014.93,R,ACKWORTH SCHOOL,No
Http://opendatacommunities.org/id/metropolitan-district-council/leeds,Leeds City Council,31/12/2021,Children and Families,Learning,Agency Payments,SEN Placements,566,30/12/2021,2112-00304,0.00,19014.93,R,ACKWORTH SCHOOL,No
Http://opendatacommunities.org/id/metropolitan-district-council/leeds,Leeds City Council,31/12/2021,Children and Families,Learning,Agency Payments,SEN Placements,566,30/12/2021,2112-00305,0.00,-19044.63,R,ACKWORTH SCHOOL,No
Http://opendatacommunities.org/id/metropolitan-district-council/leeds,Leeds City Council,31/12/2021,Communities and Environment,Parks and Countryside,Premises,Maintenance Of Buildings,101,03/11/2021,2112-00306,0.00,905.00,R,Acme Facilities Group,Yes
Http://opendatacommunities.org/id/metropolitan-district-council/leeds,Leeds City Council,31/12/2021,Communities and Environment,Parks and Countryside,Supplies and Services,Operational Materials,205,11/11/2021,2112-00307,0.00,308.94,R,Acme Facilities Group,Yes
Http://opendatacommunities.org/id/metropolitan-district-council/leeds,Leeds City Council,31/12/2021,Children and Families,Social Care,Agency Payments,General External Residential Placements,507,06/12/2021,2112-00308,0.00,20374.46,R,Acorn Care & Education Ltd (Sales),No
Http://opendatacommunities.org/id/metropolitan-district-council/leeds,Leeds City Council,31/12/2021,Children and Families,Social Care,Agency Payments,General External Residential Placements,507,06/12/2021,2112-00309,0.00,20374.46,R,Acorn Care & Education Ltd (Sales),No
Http://opendatacommunities.org/id/metropolitan-district-council/leeds,Leeds City Council,31/12/2021,Children and Families,Social Care,Agency Payments,General External Residential Placements,507,06/12/2021,2112-00310,0.00,19717.22,R,Acorn Care & Education Ltd (Sales),No
Http://opendatacommunities.org/id/metropolitan-district-council/leeds,Leeds City Council,31/12/2021,Children and Families,Social Care,Agency Payments,General External Residential Placements,507,06/12/2021,2112-00311,0.00,20374.46,R,Acorn Care & Education Ltd (Sales),No
Http://opendatacommunities.org/id/metropolitan-district-council/leeds,Leeds City Council,31/12/2021,Children and Families,Learning,Agency Payments,SEN Placements,566,06/12/2021,2112-00312,0.00,-762.89,R,Acorn Care & Education Ltd (Sales),No
Http://opendatacommunities.org/id/metropolitan-district-council/leeds,Leeds City Council,31/12/2021,Children and Families,Learning,Agency Payments,SEN Placements,566,06/12/2021,2112-00313,0.00,-11754.00,R,Acorn Care & Education Ltd (Sales),No
Http://opendatacommunities.org/id/metropolitan-district-council/leeds,Leeds City Council,31/12/2021,Children and Families,Learning,Agency Payments,SEN Placements,566,07/12/2021,2112-00314,0.00,1980.23,R,Acorn Care & Education Ltd (Sales),No
Http://opendatacommunities.org/id/metropolitan-district-council/leeds,Leeds City Council,31/12/2021,Children and Families,Learning,Agency Payments,SEN Placements,566,07/12/2021,2112-00315,0.00,19261.87,R,Acorn Care & Education Ltd (Sales),No
Http://opendatacommunities.org/id/metropolitan-district-council/leeds,Leeds City Council,31/12/2021,Children and Families,Learning,Agency Payments,SEN Placements,566,07/12/2021,2112-00316,0.00,8500.00,R,Acorn Care & Education Ltd (Sales),No
Http://opendatacommunities.org/id/metropolitan-district-council/leeds,Leeds City Council,31/12/2021,Children and Families,Learning,Agency Payments,SEN Placements,566,08/12/2021,2112-00317,0.00,768.49,R,Acorn Care & Education Ltd (Sales),No
Http://opendatacommunities.org/id/metropolitan-district-council/leeds,Leeds City Council,31/12/2021,Children and Families,Social Care,Agency Payments,General External Residential Placements,507,08/12/2021,2112-00318,0.00,16692.86,R,Acorn Care & Education Ltd (Sales),No
Http://opendatacommunities.org/id/metropolitan-district-council/leeds,Leeds City Council,31/12/2021,Children and Families,Social Care,Agency Payments,General External Residential Placements,507,08/12/2021,2112-00319,0.00,16692.86,R,Acorn Care & Education Ltd (Sales),No
Http://opendatacommunities.org/id/metropolitan-district-council/leeds,Leeds City Council,31/12/2021,Children and Families,Social Care,Agency Payments,General External Residential Placements,507,08/12/2021,2112-00320,0.00,17249.29,R,Acorn Care & Education Ltd (Sales),No
Http://opendatacommunities.org/id/metropolitan-district-council/leeds,Leeds City Council,31/12/2021,Children and Families,Social Care,Agency Payments,General External Residential Placements,507,08/12/2021,2112-00321,0.00,17249.29,R,Acorn Care & Education Ltd (Sales),No
Http://opendatacommunities.org/id/metropolitan-district-council/leeds,Leeds City Council,31/12/2021,Children and Families,Learning,Agency Payments,SEN Placements,566,10/12/2021,2112-00322,0.00,58000.00,R,Acorn Care & Education Ltd (Sales),No
Http://opendatacommunities.org/id/metropolitan-district-council/leeds,Leeds City Council,31/12/2021,Children and Families,Learning,Agency Payments,SEN Placements,566,10/12/2021,2112-00323,0.00,74668.66,R,Acorn Care & Education Ltd (Sales),No
Http://opendatacommunities.org/id/metropolitan-district-council/leeds,Leeds City Council,31/12/2021,Children and Families,Social Care,Agency Payments,General External Residential Placements,507,15/12/2021,2112-00324,0.00,15694.99,R,Acorn Care & Education Ltd (Sales),No
Http://opendatacommunities.org/id/metropolitan-district-council/leeds,Leeds City Council,31/12/2021,Children and Families,Social Care,Agency Payments,General External Residential Placements,507,17/12/2021,2112-00325,0.00,19717.22,R,Acorn Care & Education Ltd (Sales),No
Http://opendatacommunities.org/id/metropolitan-district-council/leeds,Leeds City Council,31/12/2021,Children and Families,Social Care,Agency Payments,General External Residential Placements,507,17/12/2021,2112-00326,0.00,23339.44,R,Acorn Care & Education Ltd (Sales),No
Http://opendatacommunities.org/id/metropolitan-district-council/leeds,Leeds City Council,31/12/2021,Adults and Health,Other Adult Services,Agency Payments,Residential Care Dementia,571,17/12/2021,2112-00327,0.00,1881.68,R,Acorn Care & Education Ltd (Sales),No
Http://opendatacommunities.org/id/metropolitan-district-council/leeds,Leeds City Council,31/12/2021,Children and Families,Social Care,Agency Payments,General External Residential Placements,507,24/12/2021,2112-00328,0.00,512.65,R,Acorn Care & Education Ltd (Sales),No
Http://opendatacommunities.org/id/metropolitan-district-council/leeds,Leeds City Council,31/12/2021,Children and Families,Social Care,Agency Payments,General External Residential Placements,507,24/12/2021,2112-00329,0.00,606.83,R,Acorn Care & Education Ltd (Sales),No
Http://opendatacommunities.org/id/metropolitan-district-council/leeds,Leeds City Council,31/12/2021,Resources and Housing,Commercial Services,Transport,Private Hire,360,24/12/2021,2112-00330,0.00,1680.00,R,Acorn Care & Education Ltd (Sales),No
Http://opendatacommunities.org/id/metropolitan-district-council/leeds,Leeds City Council,31/12/2021,Children and Families,Learning,Agency Payments,SEN Placements,566,29/12/2021,2112-00331,0.00,19261.87,R,Acorn Care & Education Ltd (Sales),No
Http://opendatacommunities.org/id/metropolitan-district-council/leeds,Leeds City Council,31/12/2021,Children and Families,Learning,Agency Payments,SEN Placements,566,29/12/2021,2112-00332,0.00,19261.87,R,Acorn Care & Education Ltd (Sales),No
Http://opendatacommunities.org/id/metropolitan-district-council/leeds,Leeds City Council,31/12/2021,Children and Families,Learning,Agency Payments,SEN Placements,566,29/12/2021,2112-00333,0.00,19261.87,R,Acorn Care & Education Ltd (Sales),No
Http://opendatacommunities.org/id/metropolitan-district-council/leeds,Leeds City Council,31/12/2021,Children and Families,Learning,Agency Payments,SEN Placements,566,29/12/2021,2112-00334,0.00,18726.30,R,Acorn Care & Education Ltd (Sales),No
Http://opendatacommunities.org/id/metropolitan-district-council/leeds,Leeds City Council,31/12/2021,Children and Families,Learning,Agency Payments,SEN Placements,566,29/12/2021,2112-00335,0.00,18726.30,R,Acorn Care & Education Ltd (Sales),No
Http://opendatacommunities.org/id/metropolitan-district-council/leeds,Leeds City Council,31/12/2021,Children and Families,Social Care,Agency Payments,General External Residential Placements,507,31/12/2021,2112-00336,0.00,16692.86,R,Acorn Care & Education Ltd (Sales),No
Http://opendatacommunities.org/id/metropolitan-district-council/leeds,Leeds City Council,31/12/2021,Children and Families,Social Care,Agency Payments,General External Residential Placements,507,31/12/2021,2112-00337,0.00,16692.86,R,Acorn Care & Education Ltd (Sales),No
Http://opendatacommunities.org/id/metropolitan-district-council/leeds,Leeds City Council,31/12/2021,Children and Families,Social Care,Agency Payments,General External Residential Placements,507,31/12/2021,2112-00338,0.00,529.74,R,Acorn Care & Education Ltd (Sales),No
Http://opendatacommunities.org/id/metropolitan-district-council/leeds,Leeds City Council,31/12/2021,Children and Families,Social Care,Agency Payments,General External Residential Placements,507,31/12/2021,2112-00339,0.00,627.05,R,Acorn Care & Education Ltd (Sales),No
Http://opendatacommunities.org/id/metropolitan-district-council/leeds,Leeds City Council,31/12/2021,Adults and Health,Other Adult Services,Agency Payments,Residential - Drugs & Alcohol,583,31/12/2021,2112-00340,0.00,1367.58,R,Acorn Treatment & Housing,No
Http://opendatacommunities.org/id/metropolitan-district-council/leeds,Leeds City Council,31/12/2021,Children and Families,Social Care,Agency Payments,Services Rendered By Other Organisations,511,01/12/2021,2112-00341,0.00,1246.20,R,ACORNS NURSERY,No
Http://opendatacommunities.org/id/metropolitan-district-council/leeds,Leeds City Council,31/12/2021,Children and Families,Social Care,Agency Payments,Services Rendered By Other Organisations,511,03/12/2021,2112-00342,0.00,1652.43,R,ACORNS NURSERY,No
Http://opendatacommunities.org/id/metropolitan-district-council/leeds,Leeds City Council,31/12/2021,Children and Families,Social Care,Agency Payments,Services Rendered By Other Organisations,511,03/12/2021,2112-00343,0.00,117.00,R,ACORNS NURSERY,No
Http://opendatacommunities.org/id/metropolitan-district-council/leeds,Leeds City Council,31/12/2021,Adults and Health,Services For Older People - 65 And Over,Agency Payments,Nursing Home,570,08/12/2021,2112-00344,0.00,58135.15,R,Acre Green,No
Http://opendatacommunities.org/id/metropolitan-district-council/leeds,Leeds City Council,31/12/2021,Adults and Health,Services For Older People - 65 And Over,Agency Payments,Residential,580,08/12/2021,2112-00345,0.00,3927.20,R,Acre Green,No
Http://opendatacommunities.org/id/metropolitan-district-council/leeds,Leeds City Council,31/12/2021,Adults and Health,Services For Older People Under 65 P/Dis,Agency Payments,Nursing Home,570,08/12/2021,2112-00346,0.00,1970.40,R,Acre Green,No
Http://opendatacommunities.org/id/metropolitan-district-council/leeds,Leeds City Council,31/12/2021,Adults and Health,Services For Older People Under 65 P/Dis,Agency Payments,Residential,580,08/12/2021,2112-00347,0.00,1767.20,R,Acre Green,No
Http://opendatacommunities.org/id/metropolitan-district-council/leeds,Leeds City Council,31/12/2021,Children and Families,Social Care,Agency Payments,Services Rendered By Other Organisations,511,01/12/2021,2112-00348,0.00,7316.40,R,Acre Wood Day Nursery,No
Http://opendatacommunities.org/id/metropolitan-district-council/leeds,Leeds City Council,31/12/2021,Children and Families,Social Care,Agency Payments,Services Rendered By Other Organisations,511,03/12/2021,2112-00349,0.00,1300.65,R,Acre Wood Day Nursery,No
Http://opendatacommunities.org/id/metropolitan-district-council/leeds,Leeds City Council,31/12/2021,Children and Families,Learning,Supplies and Services,Bought In Professional Services,277,14/12/2021,2112-00350,0.00,3810.66,R,Act Fast NL Ltd,No
Http://opendatacommunities.org/id/metropolitan-district-council/leeds,Leeds City Council,31/12/2021,Children and Families,Learning,Supplies and Services,Bought In Professional Services,277,20/12/2021,2112-00351,0.00,5171.61,R,Act Fast NL Ltd,No
Http://opendatacommunities.org/id/metropolitan-district-council/leeds,Leeds City Council,31/12/2021,Resources and Housing,Leeds Building Services,Supplies and Services,Operational Materials,205,07/12/2021,2112-00352,0.00,14.00,R,Actavo Hire And Sales Uk Limited,No
Http://opendatacommunities.org/id/metropolitan-district-council/leeds,Leeds City Council,31/12/2021,Children and Families,Social Care,Agency Payments,Independent Fostering Agencies,509,09/12/2021,2112-00353,0.00,5060.44,R,Action For Children Services Ltd,No
Http://opendatacommunities.org/id/metropolitan-district-council/leeds,Leeds City Council,31/12/2021,Children and Families,Social Care,Agency Payments,Independent Fostering Agencies,509,09/12/2021,2112-00354,0.00,4897.20,R,Action For Children Services Ltd,No
Http://opendatacommunities.org/id/metropolitan-district-council/leeds,Leeds City Council,31/12/2021,Adults and Health,Services For Older People - 65 And Over,Agency Payments,Payments To Voluntary Organisations,561,31/12/2021,2112-00355,0.00,45009.02,R,ACTION FOR GIPTON ELDERLY,No
Http://opendatacommunities.org/id/metropolitan-district-council/leeds,Leeds City Council,31/12/2021,Children and Families,Social Care,Agency Payments,Services Rendered By Other Organisations,511,01/12/2021,2112-00356,0.00,1567.80,R,ACTIVE KIDS YEADON LLP,No
Http://opendatacommunities.org/id/metropolitan-district-council/leeds,Leeds City Council,31/12/2021,City Development,Recreation,Supplies and Services,Other Hired And Contracted Services,265,08/11/2021,2112-00357,0.00,2.70,R,Active Leeds,Yes
Http://opendatacommunities.org/id/metropolitan-district-council/leeds,Leeds City Council,31/12/2021,Adults and Health,Services For Adults Under 65 Mental/Dis,Agency Payments,Sheltered Accommodation,569,08/12/2021,2112-00358,0.00,18263.68,R,Active Pathways,No
Http://opendatacommunities.org/id/metropolitan-district-council/leeds,Leeds City Council as Accountable Body,31/12/2021,Social Services Pooled Budgets,Jcs For People With Learning Disabilitie,Agency Payments,Sheltered Accommodation,569,08/12/2021,2112-00359,0.00,12452.52,R,Active Pathways,No
Http://opendatacommunities.org/id/metropolitan-district-council/leeds,Leeds City Council,31/12/2021,Adults and Health,Other Adult Services,Agency Payments,Residential Care Dementia,571,10/12/2021,2112-00360,0.00,4704.20,R,Active Pathways Supported Living Ltd,No
Http://opendatacommunities.org/id/metropolitan-district-council/leeds,Leeds City Council,31/12/2021,Communities and Environment,Waste Management,Supplies and Services,Waste Disposal Charges,236,02/12/2021,2112-00361,0.00,55.00,R,Acumen Waste Services Ltd,No
Http://opendatacommunities.org/id/metropolitan-district-council/leeds,Leeds City Council,31/12/2021,Communities and Environment,Waste Management,Supplies and Services,Recycling & Reuse Charges,234,02/12/2021,2112-00362,0.00,872.64,R,Acumen Waste Services Ltd,No
Http://opendatacommunities.org/id/metropolitan-district-council/leeds,Leeds City Council,31/12/2021,Communities and Environment,Waste Management,Supplies and Services,Waste Disposal Charges,236,02/12/2021,2112-00363,0.00,955.80,R,Acumen Waste Services Ltd,No
Http://opendatacommunities.org/id/metropolitan-district-council/leeds,Leeds City Council,31/12/2021,Communities and Environment,Waste Management,Supplies and Services,Recycling & Reuse Charges,234,08/12/2021,2112-00364,0.00,795.60,R,Acumen Waste Services Ltd,No
Http://opendatacommunities.org/id/metropolitan-district-council/leeds,Leeds City Council,31/12/2021,Communities and Environment,Waste Management,Supplies and Services,Recycling & Reuse Charges,234,08/12/2021,2112-00365,0.00,924.48,R,Acumen Waste Services Ltd,No
Http://opendatacommunities.org/id/metropolitan-district-council/leeds,Leeds City Council,31/12/2021,Communities and Environment,Waste Management,Supplies and Services,Recycling & Reuse Charges,234,08/12/2021,2112-00366,0.00,778.32,R,Acumen Waste Services Ltd,No
Http://opendatacommunities.org/id/metropolitan-district-council/leeds,Leeds City Council,31/12/2021,Communities and Environment,Waste Management,Supplies and Services,Recycling & Reuse Charges,234,09/12/2021,2112-00367,0.00,743.04,R,Acumen Waste Services Ltd,No
Http://opendatacommunities.org/id/metropolitan-district-council/leeds,Leeds City Council,31/12/2021,Communities and Environment,Waste Management,Supplies and Services,Recycling & Reuse Charges,234,09/12/2021,2112-00368,0.00,852.48,R,Acumen Waste Services Ltd,No
Http://opendatacommunities.org/id/metropolitan-district-council/leeds,Leeds City Council,31/12/2021,Communities and Environment,Waste Management,Supplies and Services,Waste Disposal Charges,236,09/12/2021,2112-00369,0.00,975.25,R,Acumen Waste Services Ltd,No
Http://opendatacommunities.org/id/metropolitan-district-council/leeds,Leeds City Council,31/12/2021,Communities and Environment,Waste Management,Supplies and Services,Recycling & Reuse Charges,234,10/12/2021,2112-00370,0.00,912.24,R,Acumen Waste Services Ltd,No
Http://opendatacommunities.org/id/metropolitan-district-council/leeds,Leeds City Council,31/12/2021,Communities and Environment,Waste Management,Supplies and Services,Recycling & Reuse Charges,234,10/12/2021,2112-00371,0.00,882.00,R,Acumen Waste Services Ltd,No
Http://opendatacommunities.org/id/metropolitan-district-council/leeds,Leeds City Council,31/12/2021,Communities and Environment,Waste Management,Supplies and Services,Recycling & Reuse Charges,234,10/12/2021,2112-00372,0.00,902.16,R,Acumen Waste Services Ltd,No
Http://opendatacommunities.org/id/metropolitan-district-council/leeds,Leeds City Council,31/12/2021,Communities and Environment,Waste Management,Supplies and Services,Recycling & Reuse Charges,234,10/12/2021,2112-00373,0.00,921.60,R,Acumen Waste Services Ltd,No
Http://opendatacommunities.org/id/metropolitan-district-council/leeds,Leeds City Council,31/12/2021,Communities and Environment,Waste Management,Supplies and Services,Waste Disposal Charges,236,10/12/2021,2112-00374,0.00,1769.02,R,Acumen Waste Services Ltd,No
Http://opendatacommunities.org/id/metropolitan-district-council/leeds,Leeds City Council,31/12/2021,Communities and Environment,Waste Management,Supplies and Services,Waste Disposal Charges,236,10/12/2021,2112-00375,0.00,1091.92,R,Acumen Waste Services Ltd,No
Http://opendatacommunities.org/id/metropolitan-district-council/leeds,Leeds City Council,31/12/2021,Communities and Environment,Waste Management,Supplies and Services,Waste Disposal Charges,236,10/12/2021,2112-00376,0.00,883.32,R,Acumen Waste Services Ltd,No
Http://opendatacommunities.org/id/metropolitan-district-council/leeds,Leeds City Council,31/12/2021,Communities and Environment,Waste Management,Supplies and Services,Waste Disposal Charges,236,10/12/2021,2112-00377,0.00,487.45,R,Acumen Waste Services Ltd,No
Http://opendatacommunities.org/id/metropolitan-district-council/leeds,Leeds City Council,31/12/2021,Communities and Environment,Waste Management,Supplies and Services,Recycling & Reuse Charges,234,10/12/2021,2112-00378,0.00,890.64,R,Acumen Waste Services Ltd,No
Http://opendatacommunities.org/id/metropolitan-district-council/leeds,Leeds City Council,31/12/2021,Communities and Environment,Waste Management,Supplies and Services,Recycling & Reuse Charges,234,15/12/2021,2112-00379,0.00,704.16,R,Acumen Waste Services Ltd,No
Http://opendatacommunities.org/id/metropolitan-district-council/leeds,Leeds City Council,31/12/2021,Communities and Environment,Waste Management,Supplies and Services,Recycling & Reuse Charges,234,17/12/2021,2112-00380,0.00,888.48,R,Acumen Waste Services Ltd,No
Http://opendatacommunities.org/id/metropolitan-district-council/leeds,Leeds City Council,31/12/2021,Communities and Environment,Waste Management,Supplies and Services,Recycling & Reuse Charges,234,17/12/2021,2112-00381,0.00,3582.72,R,Acumen Waste Services Ltd,No
Http://opendatacommunities.org/id/metropolitan-district-council/leeds,Leeds City Council,31/12/2021,Communities and Environment,Waste Management,Supplies and Services,Recycling & Reuse Charges,234,17/12/2021,2112-00382,0.00,4981.68,R,Acumen Waste Services Ltd,No
Http://opendatacommunities.org/id/metropolitan-district-council/leeds,Leeds City Council,31/12/2021,Communities and Environment,Waste Management,Supplies and Services,Recycling & Reuse Charges,234,23/12/2021,2112-00383,0.00,835.20,R,Acumen Waste Services Ltd,No
Http://opendatacommunities.org/id/metropolitan-district-council/leeds,Leeds City Council,31/12/2021,Communities and Environment,Waste Management,Supplies and Services,Recycling & Reuse Charges,234,23/12/2021,2112-00384,0.00,905.76,R,Acumen Waste Services Ltd,No
Http://opendatacommunities.org/id/metropolitan-district-council/leeds,Leeds City Council,31/12/2021,Communities and Environment,Waste Management,Supplies and Services,Recycling & Reuse Charges,234,24/12/2021,2112-00385,0.00,553.68,R,Acumen Waste Services Ltd,No
Http://opendatacommunities.org/id/metropolitan-district-council/leeds,Leeds City Council,31/12/2021,Communities and Environment,Waste Management,Supplies and Services,Waste Disposal Charges,236,24/12/2021,2112-00386,0.00,1131.10,R,Acumen Waste Services Ltd,No
Http://opendatacommunities.org/id/metropolitan-district-council/leeds,Leeds City Council,31/12/2021,Communities and Environment,Waste Management,Supplies and Services,Recycling & Reuse Charges,234,24/12/2021,2112-00387,0.00,959.04,R,Acumen Waste Services Ltd,No
Http://opendatacommunities.org/id/metropolitan-district-council/leeds,Leeds City Council,31/12/2021,Communities and Environment,Waste Management,Supplies and Services,Recycling & Reuse Charges,234,24/12/2021,2112-00388,0.00,925.20,R,Acumen Waste Services Ltd,No
Http://opendatacommunities.org/id/metropolitan-district-council/leeds,Leeds City Council,31/12/2021,Communities and Environment,Waste Management,Supplies and Services,Recycling & Reuse Charges,234,24/12/2021,2112-00389,0.00,872.64,R,Acumen Waste Services Ltd,No
Http://opendatacommunities.org/id/metropolitan-district-council/leeds,Leeds City Council,31/12/2021,Communities and Environment,Waste Management,Supplies and Services,Recycling & Reuse Charges,234,24/12/2021,2112-00390,0.00,673.20,R,Acumen Waste Services Ltd,No
Http://opendatacommunities.org/id/metropolitan-district-council/leeds,Leeds City Council,31/12/2021,Communities and Environment,Waste Management,Supplies and Services,Recycling & Reuse Charges,234,24/12/2021,2112-00391,0.00,789.84,R,Acumen Waste Services Ltd,No
Http://opendatacommunities.org/id/metropolitan-district-council/leeds,Leeds City Council,31/12/2021,Communities and Environment,Waste Management,Supplies and Services,Recycling & Reuse Charges,234,24/12/2021,2112-00392,0.00,442.80,R,Acumen Waste Services Ltd,No
Http://opendatacommunities.org/id/metropolitan-district-council/leeds,Leeds City Council,31/12/2021,Communities and Environment,Waste Management,Supplies and Services,Recycling & Reuse Charges,234,24/12/2021,2112-00393,0.00,502.56,R,Acumen Waste Services Ltd,No
Http://opendatacommunities.org/id/metropolitan-district-council/leeds,Leeds City Council,31/12/2021,Communities and Environment,Waste Management,Supplies and Services,Recycling & Reuse Charges,234,30/12/2021,2112-00394,0.00,929.52,R,Acumen Waste Services Ltd,No
Http://opendatacommunities.org/id/metropolitan-district-council/leeds,Leeds City Council,31/12/2021,Communities and Environment,Waste Management,Supplies and Services,Recycling & Reuse Charges,234,30/12/2021,2112-00395,0.00,693.36,R,Acumen Waste Services Ltd,No
Http://opendatacommunities.org/id/metropolitan-district-council/leeds,Leeds City Council,31/12/2021,Communities and Environment,Waste Management,Supplies and Services,Recycling & Reuse Charges,234,30/12/2021,2112-00396,0.00,653.04,R,Acumen Waste Services Ltd,No
Http://opendatacommunities.org/id/metropolitan-district-council/leeds,Leeds City Council,31/12/2021,Communities and Environment,Waste Management,Supplies and Services,Waste Disposal Charges,236,30/12/2021,2112-00397,0.00,1075.00,R,Acumen Waste Services Ltd,No
Http://opendatacommunities.org/id/metropolitan-district-council/leeds,Leeds City Council,31/12/2021,Communities and Environment,Waste Management,Supplies and Services,Recycling & Reuse Charges,234,31/12/2021,2112-00398,0.00,665.28,R,Acumen Waste Services Ltd,No
Http://opendatacommunities.org/id/metropolitan-district-council/leeds,Leeds City Council,31/12/2021,Resources and Housing,Shared Services,Supplies and Services,Other Hired And Contracted Services,265,09/12/2021,2112-00399,0.00,77.18,R,AD3 Envelope Printers Limited,No
Http://opendatacommunities.org/id/metropolitan-district-council/leeds,Leeds City Council,31/12/2021,Resources and Housing,Shared Services,Supplies and Services,Operational Materials,205,09/12/2021,2112-00400,0.00,1131.75,R,AD3 Envelope Printers Limited,No
Http://opendatacommunities.org/id/metropolitan-district-council/leeds,Leeds City Council,31/12/2021,Resources and Housing,Shared Services,Supplies and Services,Operational Materials,205,09/12/2021,2112-00401,0.00,211.30,R,AD3 Envelope Printers Limited,No
Http://opendatacommunities.org/id/metropolitan-district-council/leeds,Leeds City Council,31/12/2021,Resources and Housing,Shared Services,Supplies and Services,Other Hired And Contracted Services,265,17/12/2021,2112-00402,0.00,366.60,R,AD3 Envelope Printers Limited,No
Http://opendatacommunities.org/id/metropolitan-district-council/leeds,Leeds City Council,31/12/2021,Resources and Housing,Shared Services,Supplies and Services,Operational Materials,205,23/12/2021,2112-00403,0.00,1131.75,R,AD3 Envelope Printers Limited,No
Http://opendatacommunities.org/id/metropolitan-district-council/leeds,Leeds City Council,31/12/2021,Resources and Housing,Shared Services,Supplies and Services,Operational Materials,205,23/12/2021,2112-00404,0.00,211.30,R,AD3 Envelope Printers Limited,No
Http://opendatacommunities.org/id/metropolitan-district-council/leeds,Leeds City Council,31/12/2021,Communities and Environment,Benefits Welfare and Poverty,Supplies and Services,Grant Related Expenditure,298,22/12/2021,2112-00405,0.00,500.00,R,REDACTED PERSONAL DATA,No
Http://opendatacommunities.org/id/metropolitan-district-council/leeds,Leeds City Council,31/12/2021,Communities and Environment,Benefits Welfare and Poverty,Supplies and Services,Grant Related Expenditure,298,21/12/2021,2112-00406,0.00,500.00,R,REDACTED PERSONAL DATA,No
Http://opendatacommunities.org/id/metropolitan-district-council/leeds,Leeds City Council,31/12/2021,Children and Families,Social Care,Agency Payments,Allowances,546,01/12/2021,2112-00407,0.00,100.00,R,REDACTED PERSONAL DATA,No
Http://opendatacommunities.org/id/metropolitan-district-council/leeds,Leeds City Council,31/12/2021,Children and Families,Social Care,Appropriations,Leaving Care Allowances,634,02/12/2021,2112-00408,0.00,50.00,R,REDACTED PERSONAL DATA,No
Http://opendatacommunities.org/id/metropolitan-district-council/leeds,Leeds City Council,31/12/2021,Children and Families,Social Care,Appropriations,Leaving Care Allowances,634,02/12/2021,2112-00409,0.00,60.00,R,REDACTED PERSONAL DATA,No
Http://opendatacommunities.org/id/metropolitan-district-council/leeds,Leeds City Council,31/12/2021,Children and Families,Social Care,Agency Payments,Allowances,546,03/12/2021,2112-00410,0.00,200.00,R,REDACTED PERSONAL DATA,No
Http://opendatacommunities.org/id/metropolitan-district-council/leeds,Leeds City Council,31/12/2021,Children and Families,Social Care,Appropriations,Leaving Care Allowances,634,09/12/2021,2112-00411,0.00,110.00,R,REDACTED PERSONAL DATA,No
Http://opendatacommunities.org/id/metropolitan-district-council/leeds,Leeds City Council,31/12/2021,Children and Families,Social Care,Appropriations,Leaving Care Allowances,634,09/12/2021,2112-00412,0.00,246.44,R,REDACTED PERSONAL DATA,No
Http://opendatacommunities.org/id/metropolitan-district-council/leeds,Leeds City Council,31/12/2021,Children and Families,Social Care,Appropriations,Leaving Care Allowances,634,17/12/2021,2112-00413,0.00,50.00,R,REDACTED PERSONAL DATA,No
Http://opendatacommunities.org/id/metropolitan-district-council/leeds,Leeds City Council,31/12/2021,Children and Families,Social Care,Appropriations,Leaving Care Allowances,634,23/12/2021,2112-00414,0.00,50.00,R,REDACTED PERSONAL DATA,No
Http://opendatacommunities.org/id/metropolitan-district-council/leeds,Leeds City Council,31/12/2021,Children and Families,Social Care,Agency Payments,Allowances,546,23/12/2021,2112-00415,0.00,170.00,R,REDACTED PERSONAL DATA,No
Http://opendatacommunities.org/id/metropolitan-district-council/leeds,Leeds City Council,31/12/2021,Children and Families,Social Care,Appropriations,Leaving Care Allowances,634,31/12/2021,2112-00416,0.00,50.00,R,REDACTED PERSONAL DATA,No
Http://opendatacommunities.org/id/metropolitan-district-council/leeds,Leeds City Council,31/12/2021,Children and Families,Social Care,Appropriations,Leaving Care Allowances,634,31/12/2021,2112-00417,0.00,50.00,R,REDACTED PERSONAL DATA,No
Http://opendatacommunities.org/id/metropolitan-district-council/leeds,Leeds City Council,31/12/2021,Children and Families,Social Care,Internal Recharges,Legal Disbursements,411,20/12/2021,2112-00418,0.00,437.76,R,Adam Oates Radiology Services Ltd,No
Http://opendatacommunities.org/id/metropolitan-district-council/leeds,Leeds City Council,31/12/2021,Communities and Environment,Benefits Welfare and Poverty,Supplies and Services,Grant Related Expenditure,298,09/12/2021,2112-00419,0.00,500.00,R,REDACTED PERSONAL DATA,No
Http://opendatacommunities.org/id/metropolitan-district-council/leeds,Leeds City Council,31/12/2021,Communities and Environment,Benefits Welfare and Poverty,Supplies and Services,Grant Related Expenditure,298,30/12/2021,2112-00420,0.00,500.00,R,REDACTED PERSONAL DATA,No
Http://opendatacommunities.org/id/metropolitan-district-council/leeds,Leeds City Council,31/12/2021,Adults and Health,Services For Older People - 65 And Over,Agency Payments,Nursing Home,570,08/12/2021,2112-00421,0.00,2648.00,R,Adbolton Hall,No
Http://opendatacommunities.org/id/metropolitan-district-council/leeds,Leeds City Council,31/12/2021,Communities and Environment,Parks and Countryside,Premises,Rents,141,01/12/2021,2112-00422,0.00,6282.57,R,ADDPLANT Limited,No
Http://opendatacommunities.org/id/metropolitan-district-council/leeds,Leeds City Council,31/12/2021,Resources and Housing,Technology,Employees,Agency Staff,8,03/11/2021,2112-00423,0.00,20200.55,R,Adecco Alfred Marks,Yes
Http://opendatacommunities.org/id/metropolitan-district-council/leeds,Leeds City Council,31/12/2021,Resources and Housing,Technology,Employees,Agency Staff,8,22/11/2021,2112-00424,0.00,9035.85,R,Adecco Alfred Marks,Yes
Http://opendatacommunities.org/id/metropolitan-district-council/leeds,Leeds City Council,31/12/2021,Children and Families,Social Care,Agency Payments,Services Rendered By Voluntary Sector,505,01/12/2021,2112-00425,0.00,6210.90,R,ADEL PRE SCHOOL,No
Http://opendatacommunities.org/id/metropolitan-district-council/leeds,Leeds City Council,31/12/2021,Children and Families,Social Care,Agency Payments,Services Rendered By Other Organisations,511,03/12/2021,2112-00426,0.00,10004.11,R,ADEL PRE SCHOOL,No
Http://opendatacommunities.org/id/metropolitan-district-council/leeds,Leeds City Council,31/12/2021,Children and Families,Social Care,Agency Payments,Services Rendered By Voluntary Sector,505,03/12/2021,2112-00427,0.00,701.10,R,ADEL PRE SCHOOL,No
Http://opendatacommunities.org/id/metropolitan-district-council/leeds,Leeds City Council,31/12/2021,Children and Families,Social Care,Agency Payments,Services Rendered By Other Organisations,511,03/12/2021,2112-00428,0.00,413.40,R,ADEL PRE SCHOOL,No
Http://opendatacommunities.org/id/metropolitan-district-council/leeds,Leeds City Council,31/12/2021,Children and Families,Social Care,Agency Payments,Contact,548,03/12/2021,2112-00429,0.00,5.30,R,REDACTED PERSONAL DATA,No
Http://opendatacommunities.org/id/metropolitan-district-council/leeds,Leeds City Council,31/12/2021,Children and Families,Social Care,Agency Payments,Contact,548,16/12/2021,2112-00430,0.00,10.60,R,REDACTED PERSONAL DATA,No
Http://opendatacommunities.org/id/metropolitan-district-council/leeds,Leeds City Council,31/12/2021,City Development,Recreation,Supplies and Services,Bought In Professional Services,277,30/12/2021,2112-00431,0.00,150.00,R,Adele Battersby,No
Http://opendatacommunities.org/id/metropolitan-district-council/leeds,Leeds City Council,31/12/2021,City Development,Recreation,Supplies and Services,Bought In Professional Services,277,30/12/2021,2112-00432,0.00,460.00,R,Adele Battersby,No
Http://opendatacommunities.org/id/metropolitan-district-council/leeds,Leeds City Council,31/12/2021,City Development,Recreation,Supplies and Services,Bought In Professional Services,277,30/12/2021,2112-00433,0.00,20.00,R,Adele Battersby,No
Http://opendatacommunities.org/id/metropolitan-district-council/leeds,Leeds City Council,31/12/2021,City Development,Recreation,Supplies and Services,Bought In Professional Services,277,31/12/2021,2112-00434,0.00,20.00,R,Adele Battersby,No
Http://opendatacommunities.org/id/metropolitan-district-council/leeds,Leeds City Council,31/12/2021,Children and Families,Social Care,Agency Payments,Services Rendered By Other Organisations,511,01/12/2021,2112-00435,0.00,911.20,R,REDACTED PERSONAL DATA,No
Http://opendatacommunities.org/id/metropolitan-district-council/leeds,Leeds City Council,31/12/2021,Children and Families,Social Care,Agency Payments,Services Rendered By Other Organisations,511,03/12/2021,2112-00436,0.00,1087.12,R,REDACTED PERSONAL DATA,No
Http://opendatacommunities.org/id/metropolitan-district-council/leeds,Leeds City Council,31/12/2021,Children and Families,Social Care,Agency Payments,Services Rendered By Other Organisations,511,03/12/2021,2112-00437,0.00,68.25,R,REDACTED PERSONAL DATA,No
Http://opendatacommunities.org/id/metropolitan-district-council/leeds,Leeds City Council,31/12/2021,Communities and Environment,Customer Access,Supplies and Services,Other Hired And Contracted Services,265,29/12/2021,2112-00438,0.00,90.00,R,Adele Hirst,No
Http://opendatacommunities.org/id/metropolitan-district-council/leeds,Leeds City Council,31/12/2021,Children and Families,Social Care,Agency Payments,Contact,548,20/12/2021,2112-00439,0.00,32.00,R,REDACTED PERSONAL DATA,No
Http://opendatacommunities.org/id/metropolitan-district-council/leeds,Leeds City Council,31/12/2021,Children and Families,Social Care,Agency Payments,Contact,548,03/12/2021,2112-00440,0.00,24.90,R,REDACTED PERSONAL DATA,No
Http://opendatacommunities.org/id/metropolitan-district-council/leeds,Leeds City Council,31/12/2021,Children and Families,Social Care,Agency Payments,Contact,548,10/12/2021,2112-00441,0.00,24.90,R,REDACTED PERSONAL DATA,No
Http://opendatacommunities.org/id/metropolitan-district-council/leeds,Leeds City Council,31/12/2021,Children and Families,Social Care,Agency Payments,Contact,548,17/12/2021,2112-00442,0.00,24.90,R,REDACTED PERSONAL DATA,No
Http://opendatacommunities.org/id/metropolitan-district-council/leeds,Leeds City Council,31/12/2021,Children and Families,Social Care,Agency Payments,Contact,548,24/12/2021,2112-00443,0.00,24.90,R,REDACTED PERSONAL DATA,No
Http://opendatacommunities.org/id/metropolitan-district-council/leeds,Leeds City Council,31/12/2021,Children and Families,Social Care,Agency Payments,Contact,548,31/12/2021,2112-00444,0.00,24.90,R,REDACTED PERSONAL DATA,No
Http://opendatacommunities.org/id/metropolitan-district-council/leeds,Leeds City Council,31/12/2021,Children and Families,Social Care,Appropriations,Young Peoples Activities,652,01/11/2021,2112-00445,0.00,96.50,R,Adelphi,Yes
Http://opendatacommunities.org/id/metropolitan-district-council/leeds,Leeds City Council,31/12/2021,Children and Families,Social Care,Agency Payments,Section 17,551,03/12/2021,2112-00446,0.00,79.20,R,REDACTED PERSONAL DATA,No
Http://opendatacommunities.org/id/metropolitan-district-council/leeds,Leeds City Council,31/12/2021,Children and Families,Social Care,Agency Payments,Section 17,551,10/12/2021,2112-00447,0.00,79.20,R,REDACTED PERSONAL DATA,No
Http://opendatacommunities.org/id/metropolitan-district-council/leeds,Leeds City Council,31/12/2021,Children and Families,Social Care,Agency Payments,Section 17,551,17/12/2021,2112-00448,0.00,79.20,R,REDACTED PERSONAL DATA,No
Http://opendatacommunities.org/id/metropolitan-district-council/leeds,Leeds City Council,31/12/2021,Children and Families,Social Care,Agency Payments,Section 17,551,24/12/2021,2112-00449,0.00,79.20,R,REDACTED PERSONAL DATA,No
Http://opendatacommunities.org/id/metropolitan-district-council/leeds,Leeds City Council,31/12/2021,Children and Families,Social Care,Agency Payments,Section 17,551,31/12/2021,2112-00450,0.00,79.20,R,REDACTED PERSONAL DATA,No
Http://opendatacommunities.org/id/metropolitan-district-council/leeds,Leeds City Council,31/12/2021,Children and Families,Social Care,Agency Payments,Section 17,551,31/12/2021,2112-00451,0.00,79.20,R,REDACTED PERSONAL DATA,No
Http://opendatacommunities.org/id/metropolitan-district-council/leeds,Leeds City Council,31/12/2021,Children and Families,Social Care,Supplies and Services,Operational Furniture And Equipment,203,05/11/2021,2112-00452,0.00,228.00,R,Adexa.Co.Uk,Yes
Http://opendatacommunities.org/id/metropolitan-district-council/leeds,Leeds City Council,31/12/2021,Communities and Environment,Benefits Welfare and Poverty,Supplies and Services,Grant Related Expenditure,290,30/12/2021,2112-00453,0.00,500.00,R,REDACTED PERSONAL DATA,No
Http://opendatacommunities.org/id/metropolitan-district-council/leeds,Leeds City Council,31/12/2021,Resources and Housing,Leeds Building Services,Supplies and Services,Operational Materials,205,03/12/2021,2112-00454,0.00,95.16,R,ADI Global,No
Http://opendatacommunities.org/id/metropolitan-district-council/leeds,Leeds City Council,31/12/2021,Resources and Housing,Leeds Building Services,Supplies and Services,Operational Materials,205,03/12/2021,2112-00455,0.00,582.86,R,ADI Global,No
Http://opendatacommunities.org/id/metropolitan-district-council/leeds,Leeds City Council,31/12/2021,Resources and Housing,Leeds Building Services,Supplies and Services,Operational Materials,205,09/12/2021,2112-00456,0.00,147.56,R,ADI Global,No
Http://opendatacommunities.org/id/metropolitan-district-council/leeds,Leeds City Council,31/12/2021,Resources and Housing,Leeds Building Services,Supplies and Services,Operational Materials,205,09/12/2021,2112-00457,0.00,10.44,R,ADI Global,No
Http://opendatacommunities.org/id/metropolitan-district-council/leeds,Leeds City Council,31/12/2021,Resources and Housing,Leeds Building Services,Supplies and Services,Operational Materials,205,10/12/2021,2112-00458,0.00,22.35,R,ADI Global,No
Http://opendatacommunities.org/id/metropolitan-district-council/leeds,Leeds City Council,31/12/2021,Resources and Housing,Leeds Building Services,Supplies and Services,Operational Materials,205,23/12/2021,2112-00459,0.00,58.34,R,ADI Global,No
Http://opendatacommunities.org/id/metropolitan-district-council/leeds,Leeds City Council,31/12/2021,Resources and Housing,Leeds Building Services,Supplies and Services,Operational Materials,205,24/12/2021,2112-00460,0.00,158.60,R,ADI Global,No
Http://opendatacommunities.org/id/metropolitan-district-council/leeds,Leeds City Council,31/12/2021,Resources and Housing,Leeds Building Services,Supplies and Services,Operational Materials,205,24/12/2021,2112-00461,0.00,165.64,R,ADI Global,No
Http://opendatacommunities.org/id/metropolitan-district-council/leeds,Leeds City Council,31/12/2021,Resources and Housing,Leeds Building Services,Supplies and Services,Operational Materials,205,24/12/2021,2112-00462,0.00,94.15,R,ADI Global,No
Http://opendatacommunities.org/id/metropolitan-district-council/leeds,Leeds City Council,31/12/2021,Resources and Housing,Leeds Building Services,Supplies and Services,Operational Materials,205,24/12/2021,2112-00463,0.00,10.64,R,ADI Global,No
Http://opendatacommunities.org/id/metropolitan-district-council/leeds,Leeds City Council,31/12/2021,Resources and Housing,Leeds Building Services,Supplies and Services,Operational Materials,205,31/12/2021,2112-00464,0.00,104.80,R,ADI Global,No
Http://opendatacommunities.org/id/metropolitan-district-council/leeds,Leeds City Council,31/12/2021,Resources and Housing,Leeds Building Services,Supplies and Services,Operational Materials,205,31/12/2021,2112-00465,0.00,126.88,R,ADI Global,No
Http://opendatacommunities.org/id/metropolitan-district-council/leeds,Leeds City Council,31/12/2021,Resources and Housing,Leeds Building Services,Supplies and Services,Operational Materials,205,31/12/2021,2112-00466,0.00,11.19,R,ADI Global,No
Http://opendatacommunities.org/id/metropolitan-district-council/leeds,Leeds City Council,31/12/2021,Resources and Housing,Leeds Building Services,Supplies and Services,Operational Materials,205,31/12/2021,2112-00467,0.00,11.19,R,ADI Global,No
Http://opendatacommunities.org/id/metropolitan-district-council/leeds,Leeds City Council,31/12/2021,Resources and Housing,Leeds Building Services,Supplies and Services,Operational Materials,205,31/12/2021,2112-00468,0.00,11.19,R,ADI Global,No
Http://opendatacommunities.org/id/metropolitan-district-council/leeds,Leeds City Council,31/12/2021,Resources and Housing,Leeds Building Services,Supplies and Services,Operational Materials,205,31/12/2021,2112-00469,0.00,11.19,R,ADI Global,No
Http://opendatacommunities.org/id/metropolitan-district-council/leeds,Leeds City Council,31/12/2021,Resources and Housing,Leeds Building Services,Supplies and Services,Operational Materials,205,31/12/2021,2112-00470,0.00,11.19,R,ADI Global,No
Http://opendatacommunities.org/id/metropolitan-district-council/leeds,Leeds City Council,31/12/2021,Resources and Housing,Leeds Building Services,Supplies and Services,Operational Materials,205,31/12/2021,2112-00471,0.00,11.19,R,ADI Global,No
Http://opendatacommunities.org/id/metropolitan-district-council/leeds,Leeds City Council,31/12/2021,Resources and Housing,Leeds Building Services,Supplies and Services,Operational Materials,205,31/12/2021,2112-00472,0.00,11.19,R,ADI Global,No
Http://opendatacommunities.org/id/metropolitan-district-council/leeds,Leeds City Council,31/12/2021,Resources and Housing,Leeds Building Services,Supplies and Services,Operational Materials,205,31/12/2021,2112-00473,0.00,11.19,R,ADI Global,No
Http://opendatacommunities.org/id/metropolitan-district-council/leeds,Leeds City Council,31/12/2021,Resources and Housing,Leeds Building Services,Supplies and Services,Operational Materials,205,31/12/2021,2112-00474,0.00,11.19,R,ADI Global,No
Http://opendatacommunities.org/id/metropolitan-district-council/leeds,Leeds City Council,31/12/2021,Resources and Housing,Leeds Building Services,Supplies and Services,Operational Materials,205,31/12/2021,2112-00475,0.00,11.19,R,ADI Global,No
Http://opendatacommunities.org/id/metropolitan-district-council/leeds,Leeds City Council,31/12/2021,Resources and Housing,Leeds Building Services,Supplies and Services,Operational Materials,205,31/12/2021,2112-00476,0.00,11.19,R,ADI Global,No
Http://opendatacommunities.org/id/metropolitan-district-council/leeds,Leeds City Council,31/12/2021,Resources and Housing,Leeds Building Services,Supplies and Services,Operational Materials,205,31/12/2021,2112-00477,0.00,11.19,R,ADI Global,No
Http://opendatacommunities.org/id/metropolitan-district-council/leeds,Leeds City Council,31/12/2021,Resources and Housing,Leeds Building Services,Supplies and Services,Operational Materials,205,31/12/2021,2112-00478,0.00,11.19,R,ADI Global,No
Http://opendatacommunities.org/id/metropolitan-district-council/leeds,Leeds City Council,31/12/2021,Resources and Housing,Leeds Building Services,Supplies and Services,Operational Materials,205,31/12/2021,2112-00479,0.00,11.19,R,ADI Global,No
Http://opendatacommunities.org/id/metropolitan-district-council/leeds,Leeds City Council,31/12/2021,Resources and Housing,Leeds Building Services,Supplies and Services,Operational Materials,205,31/12/2021,2112-00480,0.00,11.19,R,ADI Global,No
Http://opendatacommunities.org/id/metropolitan-district-council/leeds,Leeds City Council,31/12/2021,Communities and Environment,Elections Licensing and Registration,External Income,Admissions Booking Fees & Ticket Sales,933,02/12/2021,2112-00481,0.00,260.00,R,REDACTED PERSONAL DATA,No
Http://opendatacommunities.org/id/metropolitan-district-council/leeds,Leeds City Council,31/12/2021,City Development,Libraries Arts & Heritage,Supplies and Services,Computer Software & Equipment,214,03/11/2021,2112-00482,0.00,41.62,R,Adobe Creative Cloud,Yes
Http://opendatacommunities.org/id/metropolitan-district-council/leeds,Leeds City Council,31/12/2021,City Development,Libraries Arts & Heritage,Supplies and Services,Computer Software & Equipment,214,25/11/2021,2112-00483,0.00,8.32,R,Adobe Photogphy Plan,Yes
Http://opendatacommunities.org/id/metropolitan-district-council/leeds,Leeds City Council,31/12/2021,City Development,Libraries Arts & Heritage,Supplies and Services,Computer Software & Equipment,214,09/11/2021,2112-00484,0.00,947.88,R,Adobe Products,Yes
Http://opendatacommunities.org/id/metropolitan-district-council/leeds,Leeds City Council,31/12/2021,Children and Families,Social Care,Agency Payments,Independent Fostering Agencies,509,03/12/2021,2112-00485,0.00,3565.00,R,Adolescent And Childrens Trust,No
Http://opendatacommunities.org/id/metropolitan-district-council/leeds,Leeds City Council,31/12/2021,Children and Families,Social Care,Agency Payments,Independent Fostering Agencies,509,03/12/2021,2112-00486,0.00,3565.00,R,Adolescent And Childrens Trust,No
Http://opendatacommunities.org/id/metropolitan-district-council/leeds,Leeds City Council,31/12/2021,Children and Families,Social Care,Agency Payments,Independent Fostering Agencies,509,03/12/2021,2112-00487,0.00,3565.00,R,Adolescent And Childrens Trust,No
Http://opendatacommunities.org/id/metropolitan-district-council/leeds,Leeds City Council,31/12/2021,Children and Families,Social Care,Agency Payments,Independent Fostering Agencies,509,03/12/2021,2112-00488,0.00,3706.00,R,Adolescent And Childrens Trust,No
Http://opendatacommunities.org/id/metropolitan-district-council/leeds,Leeds City Council,31/12/2021,Children and Families,Social Care,Agency Payments,Independent Fostering Agencies,509,03/12/2021,2112-00489,0.00,3751.00,R,Adolescent And Childrens Trust,No
Http://opendatacommunities.org/id/metropolitan-district-council/leeds,Leeds City Council,31/12/2021,Children and Families,Social Care,Agency Payments,Independent Fostering Agencies,509,03/12/2021,2112-00490,0.00,3565.00,R,Adolescent And Childrens Trust,No
Http://opendatacommunities.org/id/metropolitan-district-council/leeds,Leeds City Council,31/12/2021,Children and Families,Social Care,Agency Payments,Independent Fostering Agencies,509,03/12/2021,2112-00491,0.00,3751.00,R,Adolescent And Childrens Trust,No
Http://opendatacommunities.org/id/metropolitan-district-council/leeds,Leeds City Council,31/12/2021,Children and Families,Social Care,Agency Payments,Independent Fostering Agencies,509,03/12/2021,2112-00492,0.00,3751.00,R,Adolescent And Childrens Trust,No
Http://opendatacommunities.org/id/metropolitan-district-council/leeds,Leeds City Council,31/12/2021,Children and Families,Social Care,Agency Payments,Independent Fostering Agencies,509,03/12/2021,2112-00493,0.00,3551.67,R,Adolescent And Childrens Trust,No
Http://opendatacommunities.org/id/metropolitan-district-council/leeds,Leeds City Council,31/12/2021,Children and Families,Social Care,Agency Payments,Independent Fostering Agencies,509,03/12/2021,2112-00494,0.00,3751.00,R,Adolescent And Childrens Trust,No
Http://opendatacommunities.org/id/metropolitan-district-council/leeds,Leeds City Council,31/12/2021,Children and Families,Social Care,Agency Payments,Independent Fostering Agencies,509,31/12/2021,2112-00495,0.00,3450.00,R,Adolescent And Childrens Trust,No
Http://opendatacommunities.org/id/metropolitan-district-council/leeds,Leeds City Council,31/12/2021,Children and Families,Social Care,Agency Payments,Independent Fostering Agencies,509,31/12/2021,2112-00496,0.00,3450.00,R,Adolescent And Childrens Trust,No
Http://opendatacommunities.org/id/metropolitan-district-council/leeds,Leeds City Council,31/12/2021,Children and Families,Social Care,Agency Payments,Independent Fostering Agencies,509,31/12/2021,2112-00497,0.00,3450.00,R,Adolescent And Childrens Trust,No
Http://opendatacommunities.org/id/metropolitan-district-council/leeds,Leeds City Council,31/12/2021,Children and Families,Social Care,Agency Payments,Independent Fostering Agencies,509,31/12/2021,2112-00498,0.00,3630.00,R,Adolescent And Childrens Trust,No
Http://opendatacommunities.org/id/metropolitan-district-council/leeds,Leeds City Council,31/12/2021,Children and Families,Social Care,Agency Payments,Independent Fostering Agencies,509,31/12/2021,2112-00499,0.00,3630.00,R,Adolescent And Childrens Trust,No
Http://opendatacommunities.org/id/metropolitan-district-council/leeds,Leeds City Council,31/12/2021,Children and Families,Social Care,Agency Payments,Independent Fostering Agencies,509,31/12/2021,2112-00500,0.00,3450.00,R,Adolescent And Childrens Trust,No
Http://opendatacommunities.org/id/metropolitan-district-council/leeds,Leeds City Council,31/12/2021,Children and Families,Social Care,Agency Payments,Independent Fostering Agencies,509,31/12/2021,2112-00501,0.00,3630.00,R,Adolescent And Childrens Trust,No
Http://opendatacommunities.org/id/metropolitan-district-council/leeds,Leeds City Council,31/12/2021,Children and Families,Social Care,Agency Payments,Independent Fostering Agencies,509,31/12/2021,2112-00502,0.00,3630.00,R,Adolescent And Childrens Trust,No
Http://opendatacommunities.org/id/metropolitan-district-council/leeds,Leeds City Council,31/12/2021,Children and Families,Social Care,Agency Payments,Independent Fostering Agencies,509,31/12/2021,2112-00503,0.00,3630.00,R,Adolescent And Childrens Trust,No
Http://opendatacommunities.org/id/metropolitan-district-council/leeds,Leeds City Council,31/12/2021,Adults and Health,Services For Adults Under 65 Mental/Dis,Agency Payments,Home Care,568,01/12/2021,2112-00504,0.00,132.00,R,Adopt Healthcare,No
Http://opendatacommunities.org/id/metropolitan-district-council/leeds,Leeds City Council,31/12/2021,Adults and Health,Services For Adults Under 65 Mental/Dis,Agency Payments,Home Care,568,08/12/2021,2112-00505,0.00,221.25,R,Adopt Healthcare,No
Http://opendatacommunities.org/id/metropolitan-district-council/leeds,Leeds City Council,31/12/2021,Adults and Health,Services For Adults Under 65 Mental/Dis,Agency Payments,Home Care,568,10/12/2021,2112-00506,0.00,198.00,R,Adopt Healthcare,No
Http://opendatacommunities.org/id/metropolitan-district-council/leeds,Leeds City Council,31/12/2021,Adults and Health,Services For Adults Under 65 Mental/Dis,Agency Payments,Home Care,568,15/12/2021,2112-00507,0.00,180.75,R,Adopt Healthcare,No
Http://opendatacommunities.org/id/metropolitan-district-council/leeds,Leeds City Council,31/12/2021,Adults and Health,Services For Adults Under 65 Mental/Dis,Agency Payments,Home Care,568,15/12/2021,2112-00508,0.00,287.25,R,Adopt Healthcare,No
Http://opendatacommunities.org/id/metropolitan-district-council/leeds,Leeds City Council,31/12/2021,Adults and Health,Services For Adults Under 65 Mental/Dis,Agency Payments,Home Care,568,15/12/2021,2112-00509,0.00,132.00,R,Adopt Healthcare,No
Http://opendatacommunities.org/id/metropolitan-district-council/leeds,Leeds City Council,31/12/2021,Adults and Health,Services For Adults Under 65 Mental/Dis,Agency Payments,Home Care,568,21/12/2021,2112-00510,0.00,198.00,R,Adopt Healthcare,No
Http://opendatacommunities.org/id/metropolitan-district-council/leeds,Leeds City Council,31/12/2021,Adults and Health,Services For Adults Under 65 Mental/Dis,Agency Payments,Home Care,568,23/12/2021,2112-00511,0.00,189.00,R,Adopt Healthcare,No
Http://opendatacommunities.org/id/metropolitan-district-council/leeds,Leeds City Council,31/12/2021,Adults and Health,Services For Adults Under 65 Mental/Dis,Agency Payments,Home Care,568,23/12/2021,2112-00512,0.00,287.25,R,Adopt Healthcare,No
Http://opendatacommunities.org/id/metropolitan-district-council/leeds,Leeds City Council,31/12/2021,Adults and Health,Services For Adults Under 65 Mental/Dis,Agency Payments,Home Care,568,23/12/2021,2112-00513,0.00,198.00,R,Adopt Healthcare,No
Http://opendatacommunities.org/id/metropolitan-district-council/leeds,Leeds City Council,31/12/2021,Adults and Health,Services For Adults Under 65 Mental/Dis,Agency Payments,Home Care,568,24/12/2021,2112-00514,0.00,287.25,R,Adopt Healthcare,No
Http://opendatacommunities.org/id/metropolitan-district-council/leeds,Leeds City Council,31/12/2021,Adults and Health,Services For Adults Under 65 Mental/Dis,Agency Payments,Home Care,568,30/12/2021,2112-00515,0.00,165.00,R,Adopt Healthcare,No
Http://opendatacommunities.org/id/metropolitan-district-council/leeds,Leeds City Council,31/12/2021,Adults and Health,Services For Adults Under 65 Mental/Dis,Agency Payments,Home Care,568,30/12/2021,2112-00516,0.00,189.00,R,Adopt Healthcare,No
Http://opendatacommunities.org/id/metropolitan-district-council/leeds,Leeds City Council,31/12/2021,Adults and Health,Services For Adults Under 65 Mental/Dis,Agency Payments,Home Care,568,30/12/2021,2112-00517,0.00,287.25,R,Adopt Healthcare,No
Http://opendatacommunities.org/id/metropolitan-district-council/leeds,Leeds City Council,31/12/2021,Adults and Health,Services For Adults Under 65 Mental/Dis,Agency Payments,Home Care,568,30/12/2021,2112-00518,0.00,-198.00,R,Adopt Healthcare,No
Http://opendatacommunities.org/id/metropolitan-district-council/leeds,Leeds City Council,31/12/2021,Children and Families,Social Care,Agency Payments,Placement Support,550,03/12/2021,2112-00519,0.00,21.15,R,REDACTED PERSONAL DATA,No
Http://opendatacommunities.org/id/metropolitan-district-council/leeds,Leeds City Council,31/12/2021,Children and Families,Social Care,Agency Payments,Placement Support,550,10/12/2021,2112-00520,0.00,21.15,R,REDACTED PERSONAL DATA,No
Http://opendatacommunities.org/id/metropolitan-district-council/leeds,Leeds City Council as Accountable Body,31/12/2021,Social Services Pooled Budgets,Jcs For People With Learning Disabilitie,Agency Payments,Residential,580,10/12/2021,2112-00521,0.00,2609.36,R,ADRIAN HOUSE,No
Http://opendatacommunities.org/id/metropolitan-district-council/leeds,Leeds City Council,31/12/2021,Resources and Housing,Strategic Housing Partnerships,Capital,OTHER COSTS,7,29/12/2021,2112-00522,0.00,62250.00,C,Adriatic Land GR8 (2) Ltd,No
Http://opendatacommunities.org/id/metropolitan-district-council/leeds,Leeds City Council,31/12/2021,City Development,Libraries Arts & Heritage,Supplies and Services,External Audit Fees,261,02/12/2021,2112-00523,0.00,90.00,R,ADVANCE STOCKS LTD,No
Http://opendatacommunities.org/id/metropolitan-district-council/leeds,Leeds City Council,31/12/2021,City Development,Recreation,Supplies and Services,Other Hired And Contracted Services,265,17/12/2021,2112-00524,0.00,135.00,R,ADVANCE STOCKS LTD,No
Http://opendatacommunities.org/id/metropolitan-district-council/leeds,Leeds City Council,31/12/2021,Children and Families,Social Care,Internal Recharges,Legal Disbursements,411,01/12/2021,2112-00525,0.00,692.20,R,ADVANCED CHILD CARE ASSESSMENTS LTD,No
Http://opendatacommunities.org/id/metropolitan-district-council/leeds,Leeds City Council,31/12/2021,Children and Families,Social Care,Internal Recharges,Legal Disbursements,411,03/12/2021,2112-00526,0.00,692.20,R,ADVANCED CHILD CARE ASSESSMENTS LTD,No
Http://opendatacommunities.org/id/metropolitan-district-council/leeds,Leeds City Council,31/12/2021,Children and Families,Social Care,Internal Recharges,Legal Disbursements,411,10/12/2021,2112-00527,0.00,692.20,R,ADVANCED CHILD CARE ASSESSMENTS LTD,No
Http://opendatacommunities.org/id/metropolitan-district-council/leeds,Leeds City Council,31/12/2021,Children and Families,Social Care,Internal Recharges,Legal Disbursements,411,23/12/2021,2112-00528,0.00,692.20,R,ADVANCED CHILD CARE ASSESSMENTS LTD,No
Http://opendatacommunities.org/id/metropolitan-district-council/leeds,Leeds City Council,31/12/2021,Communities and Environment,Customer Access,Supplies and Services,Grant Related Expenditure,290,24/11/2021,2112-00529,0.00,534.20,R,Advanced Moulds Ltd,Yes
Http://opendatacommunities.org/id/metropolitan-district-council/leeds,Leeds City Council as Accountable Body,31/12/2021,Social Services Pooled Budgets,Jcs For People With Learning Disabilitie,Agency Payments,Home Care,568,03/12/2021,2112-00530,0.00,1003.10,R,Advantage Healthcare Ltd,No
Http://opendatacommunities.org/id/metropolitan-district-council/leeds,Leeds City Council,31/12/2021,Adults and Health,Other Adult Services,Agency Payments,HCAIT Community Support,575,10/12/2021,2112-00531,0.00,3557.20,R,Advantage Healthcare Ltd,No
Http://opendatacommunities.org/id/metropolitan-district-council/leeds,Leeds City Council as Accountable Body,31/12/2021,Social Services Pooled Budgets,Jcs For People With Learning Disabilitie,Agency Payments,Home Care,568,17/12/2021,2112-00532,0.00,2070.00,R,Advantage Healthcare Ltd,No
Http://opendatacommunities.org/id/metropolitan-district-council/leeds,Leeds City Council as Accountable Body,31/12/2021,Social Services Pooled Budgets,Jcs For People With Learning Disabilitie,Agency Payments,Home Care,568,17/12/2021,2112-00533,0.00,2242.50,R,Advantage Healthcare Ltd,No
Http://opendatacommunities.org/id/metropolitan-district-council/leeds,Leeds City Council as Accountable Body,31/12/2021,Social Services Pooled Budgets,Jcs For People With Learning Disabilitie,Agency Payments,Home Care,568,17/12/2021,2112-00534,0.00,2242.50,R,Advantage Healthcare Ltd,No
Http://opendatacommunities.org/id/metropolitan-district-council/leeds,Leeds City Council as Accountable Body,31/12/2021,Social Services Pooled Budgets,Jcs For People With Learning Disabilitie,Agency Payments,Home Care,568,17/12/2021,2112-00535,0.00,3268.52,R,Advantage Healthcare Ltd,No
Http://opendatacommunities.org/id/metropolitan-district-council/leeds,Leeds City Council as Accountable Body,31/12/2021,Social Services Pooled Budgets,Jcs For People With Learning Disabilitie,Agency Payments,Home Care,568,17/12/2021,2112-00536,0.00,1330.20,R,Advantage Healthcare Ltd,No
Http://opendatacommunities.org/id/metropolitan-district-council/leeds,Leeds City Council as Accountable Body,31/12/2021,Social Services Pooled Budgets,Jcs For People With Learning Disabilitie,Agency Payments,Home Care,568,17/12/2021,2112-00537,0.00,2388.75,R,Advantage Healthcare Ltd,No
Http://opendatacommunities.org/id/metropolitan-district-council/leeds,Leeds City Council as Accountable Body,31/12/2021,Social Services Pooled Budgets,Jcs For People With Learning Disabilitie,Agency Payments,Home Care,568,24/12/2021,2112-00538,0.00,2156.25,R,Advantage Healthcare Ltd,No
Http://opendatacommunities.org/id/metropolitan-district-council/leeds,Leeds City Council as Accountable Body,31/12/2021,Social Services Pooled Budgets,Jcs For People With Learning Disabilitie,Agency Payments,Home Care,568,24/12/2021,2112-00539,0.00,2170.00,R,Advantage Healthcare Ltd,No
Http://opendatacommunities.org/id/metropolitan-district-council/leeds,Leeds City Council as Accountable Body,31/12/2021,Social Services Pooled Budgets,Jcs For People With Learning Disabilitie,Agency Payments,Home Care,568,24/12/2021,2112-00540,0.00,2608.60,R,Advantage Healthcare Ltd,No
Http://opendatacommunities.org/id/metropolitan-district-council/leeds,Leeds City Council as Accountable Body,31/12/2021,Social Services Pooled Budgets,Jcs For People With Learning Disabilitie,Agency Payments,Home Care,568,31/12/2021,2112-00541,0.00,2117.62,R,Advantage Healthcare Ltd,No
Http://opendatacommunities.org/id/metropolitan-district-council/leeds,Leeds City Council as Accountable Body,31/12/2021,Social Services Pooled Budgets,Jcs For People With Learning Disabilitie,Agency Payments,Home Care,568,31/12/2021,2112-00542,0.00,1398.20,R,Advantage Healthcare Ltd,No
Http://opendatacommunities.org/id/metropolitan-district-council/leeds,Leeds City Council as Accountable Body,31/12/2021,Social Services Pooled Budgets,Jcs For People With Learning Disabilitie,Agency Payments,Residential,580,08/12/2021,2112-00543,0.00,17105.76,R,ADVITAM LTD,No
Http://opendatacommunities.org/id/metropolitan-district-council/leeds,Leeds City Council,31/12/2021,Adults and Health,Services For Older People - 65 And Over,Agency Payments,Payments To Voluntary Organisations,561,17/12/2021,2112-00544,0.00,104750.00,R,Advonet,No
Http://opendatacommunities.org/id/metropolitan-district-council/leeds,Leeds City Council,31/12/2021,Adults and Health,Services For Older People - 65 And Over,Agency Payments,Payments To Voluntary Organisations,561,31/12/2021,2112-00545,0.00,104750.00,R,Advonet,No
Http://opendatacommunities.org/id/metropolitan-district-council/leeds,Leeds City Council,31/12/2021,Adults and Health,Services For Adults Under 65 Mental/Dis,Agency Payments,Fees - Level 4,520,23/12/2021,2112-00546,0.00,227.80,R,AE BIA Assessments Limited,No
Http://opendatacommunities.org/id/metropolitan-district-council/leeds,Leeds City Council,31/12/2021,Adults and Health,Services For Adults Under 65 Mental/Dis,Agency Payments,Fees - Level 4,520,23/12/2021,2112-00547,0.00,227.80,R,AE BIA Assessments Limited,No
Http://opendatacommunities.org/id/metropolitan-district-council/leeds,Leeds City Council,31/12/2021,Adults and Health,Services For Adults Under 65 Mental/Dis,Agency Payments,Fees - Level 4,520,24/12/2021,2112-00548,0.00,211.01,R,AE BIA Assessments Limited,No
Http://opendatacommunities.org/id/metropolitan-district-council/leeds,Leeds City Council,31/12/2021,City Development,Asset Management,Capital,OTHER COSTS,7,15/12/2021,2112-00549,0.00,11535.00,C,Aecom Limited,No
Http://opendatacommunities.org/id/metropolitan-district-council/leeds,Leeds City Council,31/12/2021,City Development,Highways,Capital,OTHER COSTS,7,15/12/2021,2112-00550,0.00,49661.25,C,Aecom Limited,No
Http://opendatacommunities.org/id/metropolitan-district-council/leeds,Leeds City Council,31/12/2021,Adults and Health,Services For Older People - 65 And Over,Agency Payments,Home Care,568,01/12/2021,2112-00551,0.00,26182.46,R,Aegis Care Solutions Ltd,No
Http://opendatacommunities.org/id/metropolitan-district-council/leeds,Leeds City Council,31/12/2021,Adults and Health,Services For Older People - 65 And Over,Agency Payments,HCAIT Other,577,01/12/2021,2112-00552,0.00,134.52,R,Aegis Care Solutions Ltd,No
Http://opendatacommunities.org/id/metropolitan-district-council/leeds,Leeds City Council,31/12/2021,Adults and Health,Services For Older People Under 65 P/Dis,Agency Payments,Home Care,568,01/12/2021,2112-00553,0.00,9991.77,R,Aegis Care Solutions Ltd,No
Http://opendatacommunities.org/id/metropolitan-district-council/leeds,Leeds City Council as Accountable Body,31/12/2021,Social Services Pooled Budgets,Jcs For People With Learning Disabilitie,Agency Payments,Home Care,568,01/12/2021,2112-00554,0.00,1977.92,R,Aegis Care Solutions Ltd,No
Http://opendatacommunities.org/id/metropolitan-district-council/leeds,Leeds City Council,31/12/2021,Adults and Health,Services For Adults Under 65 Mental/Dis,Agency Payments,Home Care,568,02/12/2021,2112-00555,0.00,594.00,R,Aegis Care Solutions Ltd,No
Http://opendatacommunities.org/id/metropolitan-district-council/leeds,Leeds City Council,31/12/2021,Adults and Health,Services For Adults Under 65 Mental/Dis,Agency Payments,Home Care,568,02/12/2021,2112-00556,0.00,1308.60,R,Aegis Care Solutions Ltd,No
Http://opendatacommunities.org/id/metropolitan-district-council/leeds,Leeds City Council,31/12/2021,Adults and Health,Services For Adults Under 65 Mental/Dis,Agency Payments,Home Care,568,02/12/2021,2112-00557,0.00,4313.60,R,Aegis Care Solutions Ltd,No
Http://opendatacommunities.org/id/metropolitan-district-council/leeds,Leeds City Council,31/12/2021,Adults and Health,Services For Adults Under 65 Mental/Dis,Agency Payments,Home Care,568,02/12/2021,2112-00558,0.00,2006.01,R,Aegis Care Solutions Ltd,No
Http://opendatacommunities.org/id/metropolitan-district-council/leeds,Leeds City Council,31/12/2021,Adults and Health,Services For Adults Under 65 Mental/Dis,Agency Payments,Home Care,568,02/12/2021,2112-00559,0.00,1728.40,R,Aegis Care Solutions Ltd,No
Http://opendatacommunities.org/id/metropolitan-district-council/leeds,Leeds City Council,31/12/2021,Adults and Health,Services For Adults Under 65 Mental/Dis,Agency Payments,Home Care,568,02/12/2021,2112-00560,0.00,320.40,R,Aegis Care Solutions Ltd,No
Http://opendatacommunities.org/id/metropolitan-district-council/leeds,Leeds City Council,31/12/2021,Adults and Health,Services For Adults Under 65 Mental/Dis,Agency Payments,Home Care,568,03/12/2021,2112-00561,0.00,1329.00,R,Aegis Care Solutions Ltd,No
Http://opendatacommunities.org/id/metropolitan-district-council/leeds,Leeds City Council,31/12/2021,Adults and Health,Services For Adults Under 65 Mental/Dis,Agency Payments,Home Care,568,03/12/2021,2112-00562,0.00,1081.35,R,Aegis Care Solutions Ltd,No
Http://opendatacommunities.org/id/metropolitan-district-council/leeds,Leeds City Council,31/12/2021,Adults and Health,Services For Adults Under 65 Mental/Dis,Agency Payments,Home Care,568,03/12/2021,2112-00563,0.00,1161.40,R,Aegis Care Solutions Ltd,No
Http://opendatacommunities.org/id/metropolitan-district-council/leeds,Leeds City Council,31/12/2021,Adults and Health,Services For Older People - 65 And Over,Agency Payments,Home Care,568,22/12/2021,2112-00564,0.00,30514.20,R,Aegis Care Solutions Ltd,No
Http://opendatacommunities.org/id/metropolitan-district-council/leeds,Leeds City Council,31/12/2021,Adults and Health,Services For Older People - 65 And Over,Agency Payments,HCAIT Other,577,22/12/2021,2112-00565,0.00,272.16,R,Aegis Care Solutions Ltd,No
Http://opendatacommunities.org/id/metropolitan-district-council/leeds,Leeds City Council,31/12/2021,Adults and Health,Services For Older People Under 65 P/Dis,Agency Payments,Home Care,568,22/12/2021,2112-00566,0.00,12494.66,R,Aegis Care Solutions Ltd,No
Http://opendatacommunities.org/id/metropolitan-district-council/leeds,Leeds City Council as Accountable Body,31/12/2021,Social Services Pooled Budgets,Jcs For People With Learning Disabilitie,Agency Payments,Home Care,568,22/12/2021,2112-00567,0.00,1977.92,R,Aegis Care Solutions Ltd,No
Http://opendatacommunities.org/id/metropolitan-district-council/leeds,Leeds City Council,31/12/2021,Adults and Health,Services For Adults Under 65 Mental/Dis,Agency Payments,Home Care,568,31/12/2021,2112-00568,0.00,1186.60,R,Aegis Care Solutions Ltd,No
Http://opendatacommunities.org/id/metropolitan-district-council/leeds,Leeds City Council,31/12/2021,Adults and Health,Services For Adults Under 65 Mental/Dis,Agency Payments,Home Care,568,31/12/2021,2112-00569,0.00,1941.30,R,Aegis Care Solutions Ltd,No
Http://opendatacommunities.org/id/metropolitan-district-council/leeds,Leeds City Council,31/12/2021,Adults and Health,Services For Adults Under 65 Mental/Dis,Agency Payments,Home Care,568,31/12/2021,2112-00570,0.00,1263.00,R,Aegis Care Solutions Ltd,No
Http://opendatacommunities.org/id/metropolitan-district-council/leeds,Leeds City Council,31/12/2021,Adults and Health,Services For Adults Under 65 Mental/Dis,Agency Payments,Home Care,568,31/12/2021,2112-00571,0.00,1112.49,R,Aegis Care Solutions Ltd,No
Http://opendatacommunities.org/id/metropolitan-district-council/leeds,Leeds City Council,31/12/2021,Adults and Health,Services For Adults Under 65 Mental/Dis,Agency Payments,Home Care,568,31/12/2021,2112-00572,0.00,320.40,R,Aegis Care Solutions Ltd,No
Http://opendatacommunities.org/id/metropolitan-district-council/leeds,Leeds City Council,31/12/2021,City Development,Economic Development,Supplies and Services,Grant Related Expenditure,290,10/12/2021,2112-00573,0.00,10000.00,R,Aeroservices Ltd,No
Http://opendatacommunities.org/id/metropolitan-district-council/leeds,Leeds City Council,31/12/2021,Children and Families,Learning,Supplies and Services,Conference Meetings,253,06/12/2021,2112-00574,0.00,658.33,R,Aesculap Academia,No
Http://opendatacommunities.org/id/metropolitan-district-council/leeds,Leeds City Council,31/12/2021,Children and Families,Learning,Supplies and Services,Conference Meetings,253,24/12/2021,2112-00575,0.00,208.33,R,Aesculap Academia,No
Http://opendatacommunities.org/id/metropolitan-district-council/leeds,Leeds City Council,31/12/2021,Resources and Housing,Democratic Services,Supplies and Services,Operational Materials,205,17/12/2021,2112-00576,0.00,659.10,R,Aesg Ltd,No
Http://opendatacommunities.org/id/metropolitan-district-council/leeds,Leeds City Council,31/12/2021,City Development,Recreation,Supplies and Services,Other Hired And Contracted Services,265,23/12/2021,2112-00577,0.00,150.84,R,AFC Gledhow,No
Http://opendatacommunities.org/id/metropolitan-district-council/leeds,Leeds City Council as Accountable Body,31/12/2021,Social Services Pooled Budgets,Jcs For People With Learning Disabilitie,Agency Payments,Day Centre,564,02/12/2021,2112-00578,0.00,15266.88,R,Affinity Trust,No
Http://opendatacommunities.org/id/metropolitan-district-council/leeds,Leeds City Council,31/12/2021,Adults and Health,Assessment And Care Management,Agency Payments,Home Care,568,02/12/2021,2112-00579,0.00,669.60,R,Affinity Trust,No
Http://opendatacommunities.org/id/metropolitan-district-council/leeds,Leeds City Council,31/12/2021,Adults and Health,Services For Older People - 65 And Over,Agency Payments,Home Care,568,02/12/2021,2112-00580,0.00,535.68,R,Affinity Trust,No
Http://opendatacommunities.org/id/metropolitan-district-council/leeds,Leeds City Council,31/12/2021,Adults and Health,Services For Adults Under 65 Mental/Dis,Agency Payments,Home Care,568,02/12/2021,2112-00581,0.00,1071.36,R,Affinity Trust,No
Http://opendatacommunities.org/id/metropolitan-district-council/leeds,Leeds City Council as Accountable Body,31/12/2021,Social Services Pooled Budgets,Jcs For People With Learning Disabilitie,Agency Payments,Day Centre,564,02/12/2021,2112-00582,0.00,-11629.55,R,Affinity Trust,No
Http://opendatacommunities.org/id/metropolitan-district-council/leeds,Leeds City Council,31/12/2021,Adults and Health,Assessment And Care Management,Agency Payments,Home Care,568,08/12/2021,2112-00583,0.00,133.92,R,Affinity Trust,No
Http://opendatacommunities.org/id/metropolitan-district-council/leeds,Leeds City Council,31/12/2021,Adults and Health,Services For Adults Under 65 Mental/Dis,Agency Payments,Home Care,568,08/12/2021,2112-00584,0.00,535.68,R,Affinity Trust,No
Http://opendatacommunities.org/id/metropolitan-district-council/leeds,Leeds City Council,31/12/2021,Adults and Health,Services For Adults Under 65 Mental/Dis,Agency Payments,HCAIT Community Support,575,08/12/2021,2112-00585,0.00,334.80,R,Affinity Trust,No
Http://opendatacommunities.org/id/metropolitan-district-council/leeds,Leeds City Council,31/12/2021,Adults and Health,Services For Older People - 65 And Over,Agency Payments,HCAIT Community Support,575,08/12/2021,2112-00586,0.00,602.64,R,Affinity Trust,No
Http://opendatacommunities.org/id/metropolitan-district-council/leeds,Leeds City Council,31/12/2021,Adults and Health,Services For Older People Under 65 P/Dis,Agency Payments,Home Care,568,08/12/2021,2112-00587,0.00,803.52,R,Affinity Trust,No
Http://opendatacommunities.org/id/metropolitan-district-council/leeds,Leeds City Council,31/12/2021,Adults and Health,Services For Older People Under 65 P/Dis,Agency Payments,HCAIT Community Support,575,08/12/2021,2112-00588,0.00,736.56,R,Affinity Trust,No
Http://opendatacommunities.org/id/metropolitan-district-council/leeds,Leeds City Council as Accountable Body,31/12/2021,Social Services Pooled Budgets,Jcs For People With Learning Disabilitie,Agency Payments,Home Care,568,08/12/2021,2112-00589,0.00,334.80,R,Affinity Trust,No
Http://opendatacommunities.org/id/metropolitan-district-council/leeds,Leeds City Council as Accountable Body,31/12/2021,Social Services Pooled Budgets,Jcs For People With Learning Disabilitie,Agency Payments,Day Centre,564,17/12/2021,2112-00590,0.00,27828.90,R,Affinity Trust,No
Http://opendatacommunities.org/id/metropolitan-district-council/leeds,Leeds City Council as Accountable Body,31/12/2021,Social Services Pooled Budgets,Jcs For People With Learning Disabilitie,Agency Payments,Day Centre,564,17/12/2021,2112-00591,0.00,25661.16,R,Affinity Trust,No
Http://opendatacommunities.org/id/metropolitan-district-council/leeds,Leeds City Council,31/12/2021,Adults and Health,Other Adult Services,Agency Payments,HCAIT Community Support,575,17/12/2021,2112-00592,0.00,6613.09,R,Affinity Trust,No
Http://opendatacommunities.org/id/metropolitan-district-council/leeds,Leeds City Council as Accountable Body,31/12/2021,Social Services Pooled Budgets,Jcs For People With Learning Disabilitie,Agency Payments,Day Centre,564,17/12/2021,2112-00593,0.00,-20.24,R,Affinity Trust,No
Http://opendatacommunities.org/id/metropolitan-district-council/leeds,Leeds City Council,31/12/2021,Adults and Health,Assessment And Care Management,Agency Payments,Home Care,568,30/12/2021,2112-00594,0.00,669.60,R,Affinity Trust,No
Http://opendatacommunities.org/id/metropolitan-district-council/leeds,Leeds City Council,31/12/2021,Adults and Health,Services For Older People - 65 And Over,Agency Payments,Home Care,568,30/12/2021,2112-00595,0.00,535.68,R,Affinity Trust,No
Http://opendatacommunities.org/id/metropolitan-district-council/leeds,Leeds City Council,31/12/2021,Adults and Health,Services For Adults Under 65 Mental/Dis,Agency Payments,Home Care,568,30/12/2021,2112-00596,0.00,1071.36,R,Affinity Trust,No
Http://opendatacommunities.org/id/metropolitan-district-council/leeds,Leeds City Council as Accountable Body,31/12/2021,Social Services Pooled Budgets,Jcs For People With Learning Disabilitie,Agency Payments,Day Centre,564,31/12/2021,2112-00597,0.00,15266.88,R,Affinity Trust,No
Http://opendatacommunities.org/id/metropolitan-district-council/leeds,Leeds City Council as Accountable Body,31/12/2021,Social Services Pooled Budgets,Jcs For People With Learning Disabilitie,Agency Payments,Sheltered Accommodation,569,08/12/2021,2112-00598,0.00,148216.60,R,Affinity Trust North Divisional Office,No
Http://opendatacommunities.org/id/metropolitan-district-council/leeds,Leeds City Council,31/12/2021,Communities and Environment,Parks and Countryside,Transport,Hire Of Movable Plant & Machinery,315,05/11/2021,2112-00599,0.00,2850.00,R,Afi Uplift,Yes
Http://opendatacommunities.org/id/metropolitan-district-council/leeds,Leeds City Council,31/12/2021,Communities and Environment,Parks and Countryside,Transport,Hire Of Movable Plant & Machinery,315,05/11/2021,2112-00600,0.00,4750.00,R,Afi Uplift,Yes
Http://opendatacommunities.org/id/metropolitan-district-council/leeds,Leeds City Council,31/12/2021,Communities and Environment,Parks and Countryside,Transport,Hire Of Movable Plant & Machinery,315,16/11/2021,2112-00601,0.00,1900.00,R,Afi Uplift,Yes
Http://opendatacommunities.org/id/metropolitan-district-council/leeds,Leeds City Council,31/12/2021,Communities and Environment,Parks and Countryside,Transport,Hire Of Movable Plant & Machinery,315,16/11/2021,2112-00602,0.00,950.00,R,Afi Uplift,Yes
Http://opendatacommunities.org/id/metropolitan-district-council/leeds,Leeds City Council,31/12/2021,Resources and Housing,Sustainable Energy & Climate Change,Capital,OTHER COSTS,7,14/12/2021,2112-00603,0.00,2100.00,C,REDACTED COMMERCIAL CONFIDENTIALITY,No
Http://opendatacommunities.org/id/metropolitan-district-council/leeds,Leeds City Council,31/12/2021,Communities and Environment,Elections Licensing and Registration,External Income,Admissions Booking Fees & Ticket Sales,933,23/12/2021,2112-00604,0.00,260.00,R,REDACTED PERSONAL DATA,No
Http://opendatacommunities.org/id/metropolitan-district-council/leeds,Leeds City Council,31/12/2021,Adults and Health,Public Health,Agency Payments,Services Rendered By Voluntary Sector,505,14/12/2021,2112-00605,0.00,30000.00,R,Age Uk Leeds,No
Http://opendatacommunities.org/id/metropolitan-district-council/leeds,Leeds City Council,31/12/2021,Adults and Health,Services For Older People - 65 And Over,Agency Payments,Payments To Voluntary Organisations,561,31/12/2021,2112-00606,0.00,10599.75,R,Age Uk Leeds,No
Http://opendatacommunities.org/id/metropolitan-district-council/leeds,Leeds City Council,31/12/2021,Insurance,Insurance,Supplies and Services,Insurance Claims,248,23/12/2021,2112-00607,0.00,2278.74,R,Ageas Insurance Ltd,No
Http://opendatacommunities.org/id/metropolitan-district-council/leeds,Leeds City Council,31/12/2021,Communities and Environment,Customer Access,Supplies and Services,Other Hired And Contracted Services,265,17/12/2021,2112-00608,0.00,300.00,R,Agency For Good Ltd,No
Http://opendatacommunities.org/id/metropolitan-district-council/leeds,Leeds City Council,31/12/2021,City Development,Libraries Arts & Heritage,Supplies and Services,Subsistence,256,08/11/2021,2112-00609,0.00,10.26,R,Ah To Go 5835,Yes
Http://opendatacommunities.org/id/metropolitan-district-council/leeds,Leeds City Council,31/12/2021,Communities and Environment,Customer Access,Supplies and Services,Bought In Professional Services,277,15/12/2021,2112-00610,0.00,27.00,R,Ahmed Moustafa Moustafa Mousa,No
Http://opendatacommunities.org/id/metropolitan-district-council/leeds,Leeds City Council,31/12/2021,Communities and Environment,Customer Access,Supplies and Services,Bought In Professional Services,277,15/12/2021,2112-00611,0.00,18.00,R,Ahmed Moustafa Moustafa Mousa,No
Http://opendatacommunities.org/id/metropolitan-district-council/leeds,Leeds City Council,31/12/2021,Communities and Environment,Customer Access,Supplies and Services,Bought In Professional Services,277,22/12/2021,2112-00612,0.00,9.00,R,Ahmed Moustafa Moustafa Mousa,No
Http://opendatacommunities.org/id/metropolitan-district-council/leeds,Leeds City Council,31/12/2021,City Development,Economic Development,Supplies and Services,Grant Related Expenditure,290,14/12/2021,2112-00613,0.00,15000.00,R,AIA Solicitors,No
Http://opendatacommunities.org/id/metropolitan-district-council/leeds,Leeds City Council,31/12/2021,City Development,Economic Development,Supplies and Services,Grant Related Expenditure,290,29/12/2021,2112-00614,0.00,3367.00,R,AIA Solicitors,No
Http://opendatacommunities.org/id/metropolitan-district-council/leeds,Leeds City Council as Accountable Body,31/12/2021,Social Services Pooled Budgets,Leeds Community Equip Store Pooled Budgt,Supplies and Services,Other Equipment,203,02/12/2021,2112-00615,0.00,1077.04,R,AIDAPT BATHROOMS LTD,No
Http://opendatacommunities.org/id/metropolitan-district-council/leeds,Leeds City Council as Accountable Body,31/12/2021,Social Services Pooled Budgets,Leeds Community Equip Store Pooled Budgt,Supplies and Services,Other Equipment,203,03/12/2021,2112-00616,0.00,250.00,R,AIDAPT BATHROOMS LTD,No
Http://opendatacommunities.org/id/metropolitan-district-council/leeds,Leeds City Council as Accountable Body,31/12/2021,Social Services Pooled Budgets,Leeds Community Equip Store Pooled Budgt,Supplies and Services,Other Equipment,203,10/12/2021,2112-00617,0.00,380.00,R,AIDAPT BATHROOMS LTD,No
Http://opendatacommunities.org/id/metropolitan-district-council/leeds,Leeds City Council as Accountable Body,31/12/2021,Social Services Pooled Budgets,Leeds Community Equip Store Pooled Budgt,Supplies and Services,Other Equipment,203,10/12/2021,2112-00618,0.00,1152.00,R,AIDAPT BATHROOMS LTD,No
Http://opendatacommunities.org/id/metropolitan-district-council/leeds,Leeds City Council as Accountable Body,31/12/2021,Social Services Pooled Budgets,Leeds Community Equip Store Pooled Budgt,Supplies and Services,Other Equipment,203,10/12/2021,2112-00619,0.00,912.00,R,AIDAPT BATHROOMS LTD,No
Http://opendatacommunities.org/id/metropolitan-district-council/leeds,Leeds City Council as Accountable Body,31/12/2021,Social Services Pooled Budgets,Leeds Community Equip Store Pooled Budgt,Supplies and Services,Other Equipment,203,10/12/2021,2112-00620,0.00,1320.00,R,AIDAPT BATHROOMS LTD,No
Http://opendatacommunities.org/id/metropolitan-district-council/leeds,Leeds City Council as Accountable Body,31/12/2021,Social Services Pooled Budgets,Leeds Community Equip Store Pooled Budgt,Supplies and Services,Other Equipment,203,17/12/2021,2112-00621,0.00,1000.00,R,AIDAPT BATHROOMS LTD,No
Http://opendatacommunities.org/id/metropolitan-district-council/leeds,Leeds City Council as Accountable Body,31/12/2021,Social Services Pooled Budgets,Leeds Community Equip Store Pooled Budgt,Supplies and Services,Other Equipment,203,24/12/2021,2112-00622,0.00,6400.00,R,AIDAPT BATHROOMS LTD,No
Http://opendatacommunities.org/id/metropolitan-district-council/leeds,Leeds City Council as Accountable Body,31/12/2021,Social Services Pooled Budgets,Leeds Community Equip Store Pooled Budgt,Supplies and Services,Other Equipment,203,24/12/2021,2112-00623,0.00,464.00,R,AIDAPT BATHROOMS LTD,No
Http://opendatacommunities.org/id/metropolitan-district-council/leeds,Leeds City Council as Accountable Body,31/12/2021,Social Services Pooled Budgets,Leeds Community Equip Store Pooled Budgt,Supplies and Services,Other Equipment,203,24/12/2021,2112-00624,0.00,11760.00,R,AIDAPT BATHROOMS LTD,No
Http://opendatacommunities.org/id/metropolitan-district-council/leeds,Leeds City Council,31/12/2021,Adults and Health,Services For Older People - 65 And Over,Supplies and Services,Operational Furniture And Equipment,203,24/12/2021,2112-00625,0.00,40.50,R,AIDAPT BATHROOMS LTD,No
Http://opendatacommunities.org/id/metropolitan-district-council/leeds,Leeds City Council as Accountable Body,31/12/2021,Social Services Pooled Budgets,Leeds Community Equip Store Pooled Budgt,Supplies and Services,Other Equipment,203,30/12/2021,2112-00626,0.00,62.50,R,AIDAPT BATHROOMS LTD,No
Http://opendatacommunities.org/id/metropolitan-district-council/leeds,Leeds City Council as Accountable Body,31/12/2021,Social Services Pooled Budgets,Leeds Community Equip Store Pooled Budgt,Supplies and Services,Other Equipment,203,31/12/2021,2112-00627,0.00,570.00,R,AIDAPT BATHROOMS LTD,No
Http://opendatacommunities.org/id/metropolitan-district-council/leeds,Leeds City Council,31/12/2021,Children and Families,Social Care,Appropriations,Leaving Care Allowances,634,20/12/2021,2112-00628,0.00,50.00,R,REDACTED PERSONAL DATA,No
Http://opendatacommunities.org/id/metropolitan-district-council/leeds,Leeds City Council,31/12/2021,Children and Families,Social Care,Appropriations,Leaving Care Allowances,634,13/12/2021,2112-00629,0.00,50.00,R,REDACTED PERSONAL DATA,No
Http://opendatacommunities.org/id/metropolitan-district-council/leeds,Leeds City Council,31/12/2021,Communities and Environment,Benefits Welfare and Poverty,Supplies and Services,Grant Related Expenditure,290,16/12/2021,2112-00630,0.00,500.00,R,REDACTED PERSONAL DATA,No
Http://opendatacommunities.org/id/metropolitan-district-council/leeds,Leeds City Council,31/12/2021,Resources and Housing,Commercial Services,Supplies and Services,Other Hired And Contracted Services,265,08/12/2021,2112-00631,0.00,321.90,R,REDACTED PERSONAL DATA,No
Http://opendatacommunities.org/id/metropolitan-district-council/leeds,Leeds City Council,31/12/2021,Resources and Housing,Commercial Services,Supplies and Services,Other Hired And Contracted Services,265,30/12/2021,2112-00632,0.00,204.00,R,REDACTED PERSONAL DATA,No
Http://opendatacommunities.org/id/metropolitan-district-council/leeds,Leeds City Council,31/12/2021,Children and Families,Social Care,Agency Payments,Contact,548,06/12/2021,2112-00633,0.00,10.00,R,REDACTED PERSONAL DATA,No
Http://opendatacommunities.org/id/metropolitan-district-council/leeds,Leeds City Council,31/12/2021,Children and Families,Social Care,Agency Payments,Contact,548,14/12/2021,2112-00634,0.00,10.00,R,REDACTED PERSONAL DATA,No
Http://opendatacommunities.org/id/metropolitan-district-council/leeds,Leeds City Council,31/12/2021,Communities and Environment,Environmental Health,Supplies and Services,Other Hired And Contracted Services,265,03/12/2021,2112-00635,0.00,11.25,R,AIR LIQUIDE UK,No
Http://opendatacommunities.org/id/metropolitan-district-council/leeds,Leeds City Council,31/12/2021,Communities and Environment,Environmental Health,Supplies and Services,Other Hired And Contracted Services,265,03/12/2021,2112-00636,0.00,11.25,R,AIR LIQUIDE UK,No
Http://opendatacommunities.org/id/metropolitan-district-council/leeds,Leeds City Council,31/12/2021,Communities and Environment,Environmental Health,Supplies and Services,Other Hired And Contracted Services,265,03/12/2021,2112-00637,0.00,17.38,R,AIR LIQUIDE UK,No
Http://opendatacommunities.org/id/metropolitan-district-council/leeds,Leeds City Council,31/12/2021,Communities and Environment,Environmental Health,Supplies and Services,Other Hired And Contracted Services,265,03/12/2021,2112-00638,0.00,78.75,R,AIR LIQUIDE UK,No
Http://opendatacommunities.org/id/metropolitan-district-council/leeds,Leeds City Council,31/12/2021,Communities and Environment,Environmental Health,Supplies and Services,Other Hired And Contracted Services,265,31/12/2021,2112-00639,0.00,11.25,R,AIR LIQUIDE UK,No
Http://opendatacommunities.org/id/metropolitan-district-council/leeds,Leeds City Council,31/12/2021,Communities and Environment,Environmental Health,Supplies and Services,Other Hired And Contracted Services,265,31/12/2021,2112-00640,0.00,17.38,R,AIR LIQUIDE UK,No
Http://opendatacommunities.org/id/metropolitan-district-council/leeds,Leeds City Council,31/12/2021,Communities and Environment,Environmental Health,Supplies and Services,Other Hired And Contracted Services,265,31/12/2021,2112-00641,0.00,78.75,R,AIR LIQUIDE UK,No
Http://opendatacommunities.org/id/metropolitan-district-council/leeds,Leeds City Council,31/12/2021,Communities and Environment,Parks and Countryside,Supplies and Services,Other Hired And Contracted Services,265,24/12/2021,2112-00642,0.00,440.00,R,Aire Valley Tree Services Ltd,No
Http://opendatacommunities.org/id/metropolitan-district-council/leeds,Leeds City Council,31/12/2021,Communities and Environment,Parks and Countryside,Supplies and Services,Other Hired And Contracted Services,265,24/12/2021,2112-00643,0.00,775.00,R,Aire Valley Tree Services Ltd,No
Http://opendatacommunities.org/id/metropolitan-district-council/leeds,Leeds City Council,31/12/2021,Adults and Health,Services For Older People - 65 And Over,Agency Payments,Residential Care Dementia,571,08/12/2021,2112-00644,0.00,43590.05,R,Aire View Residential Home,No
Http://opendatacommunities.org/id/metropolitan-district-council/leeds,Leeds City Council,31/12/2021,Adults and Health,Services For Older People - 65 And Over,Agency Payments,Residential,580,08/12/2021,2112-00645,0.00,3124.42,R,Aire View Residential Home,No
Http://opendatacommunities.org/id/metropolitan-district-council/leeds,Leeds City Council,31/12/2021,City Development,Recreation,Supplies and Services,Hospitality,255,10/11/2021,2112-00646,0.00,2.35,R,Aireborough Leisure Centr,Yes
Http://opendatacommunities.org/id/metropolitan-district-council/leeds,Leeds City Council,31/12/2021,Adults and Health,Services For Older People - 65 And Over,Agency Payments,Residential Care Dementia,571,08/12/2021,2112-00647,0.00,1518.60,R,Airedale Care Home,No
Http://opendatacommunities.org/id/metropolitan-district-council/leeds,Leeds City Council,31/12/2021,Adults and Health,Services For Older People - 65 And Over,Agency Payments,Residential,580,08/12/2021,2112-00648,0.00,21463.71,R,Airedale Care Home,No
Http://opendatacommunities.org/id/metropolitan-district-council/leeds,Leeds City Council,31/12/2021,City Development,Libraries Arts & Heritage,Supplies and Services,Operational Furniture And Equipment,203,17/12/2021,2112-00649,0.00,4480.00,R,AIREDALE CATERING EQUIPMENT LTD,No
Http://opendatacommunities.org/id/metropolitan-district-council/leeds,Leeds City Council,31/12/2021,Resources and Housing,Commercial Services,Supplies and Services,Operational Furniture And Equipment,203,21/12/2021,2112-00650,0.00,1238.00,R,AIREDALE CATERING EQUIPMENT LTD,No
Http://opendatacommunities.org/id/metropolitan-district-council/leeds,Leeds City Council,31/12/2021,Resources and Housing,Leeds Building Services,Supplies and Services,Operational Materials,205,24/12/2021,2112-00651,0.00,3370.00,R,AIREDALE CATERING EQUIPMENT LTD,No
Http://opendatacommunities.org/id/metropolitan-district-council/leeds,Leeds City Council as Accountable Body,31/12/2021,Social Services Pooled Budgets,Jcs For People With Learning Disabilitie,Agency Payments,Day Centre,564,14/12/2021,2112-00652,0.00,121.84,R,Airedale Nhs Foundation Trust,No
Http://opendatacommunities.org/id/metropolitan-district-council/leeds,Leeds City Council as Accountable Body,31/12/2021,Social Services Pooled Budgets,Jcs For People With Learning Disabilitie,Agency Payments,Day Centre,564,14/12/2021,2112-00653,0.00,121.84,R,Airedale Nhs Foundation Trust,No
Http://opendatacommunities.org/id/metropolitan-district-council/leeds,Leeds City Council as Accountable Body,31/12/2021,Social Services Pooled Budgets,Jcs For People With Learning Disabilitie,Agency Payments,Day Centre,564,14/12/2021,2112-00654,0.00,121.84,R,Airedale Nhs Foundation Trust,No
Http://opendatacommunities.org/id/metropolitan-district-council/leeds,Leeds City Council as Accountable Body,31/12/2021,Social Services Pooled Budgets,Jcs For People With Learning Disabilitie,Agency Payments,Day Centre,564,14/12/2021,2112-00655,0.00,243.67,R,Airedale Nhs Foundation Trust,No
Http://opendatacommunities.org/id/metropolitan-district-council/leeds,Leeds City Council,31/12/2021,Communities and Environment,Environmental Health,Supplies and Services,Other Hired And Contracted Services,265,02/12/2021,2112-00656,0.00,254.31,R,Aireworth Vets,No
Http://opendatacommunities.org/id/metropolitan-district-council/leeds,Leeds City Council,31/12/2021,Children and Families,Social Care,Transport,Public Transport Expenses,310,26/11/2021,2112-00657,0.00,12.55,R,Airpay 39827885-Amber Car,Yes
Http://opendatacommunities.org/id/metropolitan-district-council/leeds,Leeds City Council,31/12/2021,Children and Families,Social Care,Transport,Public Transport Expenses,310,29/11/2021,2112-00658,0.00,11.25,R,Airpay 39836918-Amber Car,Yes
Http://opendatacommunities.org/id/metropolitan-district-council/leeds,Leeds City Council,31/12/2021,Children and Families,Social Care,Transport,Public Transport Expenses,310,29/11/2021,2112-00659,0.00,12.45,R,Airpay 39841025-Amber Car,Yes
Http://opendatacommunities.org/id/metropolitan-district-council/leeds,Leeds City Council,31/12/2021,Communities and Environment,Community Safety,Supplies and Services,Bought In Professional Services,277,01/12/2021,2112-00660,0.00,1044.80,R,AIRWAVE SOLUTIONS LTD,No
Http://opendatacommunities.org/id/metropolitan-district-council/leeds,Leeds City Council,31/12/2021,Communities and Environment,Benefits Welfare and Poverty,Supplies and Services,Grant Related Expenditure,290,06/12/2021,2112-00661,0.00,500.00,R,REDACTED PERSONAL DATA,No
Http://opendatacommunities.org/id/metropolitan-district-council/leeds,Leeds City Council,31/12/2021,Adults and Health,Services For Adults Under 65 Mental/Dis,Agency Payments,Fees - Level 4,520,02/12/2021,2112-00662,0.00,175.00,R,AIT Mitra Limited,No
Http://opendatacommunities.org/id/metropolitan-district-council/leeds,Leeds City Council,31/12/2021,Adults and Health,Services For Adults Under 65 Mental/Dis,Agency Payments,Fees - Level 4,520,02/12/2021,2112-00663,0.00,175.00,R,AIT Mitra Limited,No
Http://opendatacommunities.org/id/metropolitan-district-council/leeds,Leeds City Council,31/12/2021,Adults and Health,Services For Adults Under 65 Mental/Dis,Agency Payments,Fees - Level 4,520,03/12/2021,2112-00664,0.00,175.00,R,AIT Mitra Limited,No
Http://opendatacommunities.org/id/metropolitan-district-council/leeds,Leeds City Council,31/12/2021,Adults and Health,Services For Adults Under 65 Mental/Dis,Agency Payments,Fees - Level 4,520,08/12/2021,2112-00665,0.00,175.00,R,AIT Mitra Limited,No
Http://opendatacommunities.org/id/metropolitan-district-council/leeds,Leeds City Council,31/12/2021,Adults and Health,Services For Adults Under 65 Mental/Dis,Agency Payments,Fees - Level 4,520,08/12/2021,2112-00666,0.00,261.00,R,AIT Mitra Limited,No
Http://opendatacommunities.org/id/metropolitan-district-council/leeds,Leeds City Council,31/12/2021,Adults and Health,Services For Adults Under 65 Mental/Dis,Agency Payments,Fees - Level 4,520,08/12/2021,2112-00667,0.00,175.00,R,AIT Mitra Limited,No
Http://opendatacommunities.org/id/metropolitan-district-council/leeds,Leeds City Council,31/12/2021,Adults and Health,Services For Adults Under 65 Mental/Dis,Agency Payments,Fees - Level 4,520,08/12/2021,2112-00668,0.00,175.00,R,AIT Mitra Limited,No
Http://opendatacommunities.org/id/metropolitan-district-council/leeds,Leeds City Council,31/12/2021,Adults and Health,Services For Adults Under 65 Mental/Dis,Agency Payments,Fees - Level 4,520,08/12/2021,2112-00669,0.00,261.00,R,AIT Mitra Limited,No
Http://opendatacommunities.org/id/metropolitan-district-council/leeds,Leeds City Council,31/12/2021,Adults and Health,Services For Adults Under 65 Mental/Dis,Agency Payments,Fees - Level 4,520,08/12/2021,2112-00670,0.00,261.00,R,AIT Mitra Limited,No
Http://opendatacommunities.org/id/metropolitan-district-council/leeds,Leeds City Council,31/12/2021,Adults and Health,Services For Adults Under 65 Mental/Dis,Agency Payments,Fees - Level 4,520,17/12/2021,2112-00671,0.00,261.00,R,AIT Mitra Limited,No
Http://opendatacommunities.org/id/metropolitan-district-council/leeds,Leeds City Council,31/12/2021,Adults and Health,Services For Adults Under 65 Mental/Dis,Agency Payments,Fees - Level 4,520,17/12/2021,2112-00672,0.00,261.00,R,AIT Mitra Limited,No
Http://opendatacommunities.org/id/metropolitan-district-council/leeds,Leeds City Council,31/12/2021,Adults and Health,Services For Adults Under 65 Mental/Dis,Agency Payments,Fees - Level 4,520,17/12/2021,2112-00673,0.00,250.25,R,AIT Mitra Limited,No
Http://opendatacommunities.org/id/metropolitan-district-council/leeds,Leeds City Council,31/12/2021,Adults and Health,Services For Adults Under 65 Mental/Dis,Agency Payments,Fees - Level 4,520,29/12/2021,2112-00674,0.00,175.00,R,AIT Mitra Limited,No
Http://opendatacommunities.org/id/metropolitan-district-council/leeds,Leeds City Council,31/12/2021,Adults and Health,Services For Adults Under 65 Mental/Dis,Agency Payments,Fees - Level 4,520,29/12/2021,2112-00675,0.00,175.00,R,AIT Mitra Limited,No
Http://opendatacommunities.org/id/metropolitan-district-council/leeds,Leeds City Council,31/12/2021,Adults and Health,Services For Adults Under 65 Mental/Dis,Agency Payments,Fees - Level 4,520,29/12/2021,2112-00676,0.00,175.00,R,AIT Mitra Limited,No
Http://opendatacommunities.org/id/metropolitan-district-council/leeds,Leeds City Council,31/12/2021,Adults and Health,Services For Adults Under 65 Mental/Dis,Agency Payments,Fees - Level 4,520,29/12/2021,2112-00677,0.00,175.00,R,AIT Mitra Limited,No
Http://opendatacommunities.org/id/metropolitan-district-council/leeds,Leeds City Council,31/12/2021,Adults and Health,Services For Adults Under 65 Mental/Dis,Agency Payments,Fees - Level 4,520,29/12/2021,2112-00678,0.00,175.00,R,AIT Mitra Limited,No
Http://opendatacommunities.org/id/metropolitan-district-council/leeds,Leeds City Council,31/12/2021,Adults and Health,Services For Adults Under 65 Mental/Dis,Agency Payments,Fees - Level 4,520,29/12/2021,2112-00679,0.00,175.00,R,AIT Mitra Limited,No
Http://opendatacommunities.org/id/metropolitan-district-council/leeds,Leeds City Council,31/12/2021,Adults and Health,Services For Adults Under 65 Mental/Dis,Agency Payments,Fees - Level 4,520,29/12/2021,2112-00680,0.00,175.00,R,AIT Mitra Limited,No
Http://opendatacommunities.org/id/metropolitan-district-council/leeds,Leeds City Council,31/12/2021,Adults and Health,Services For Adults Under 65 Mental/Dis,Agency Payments,Fees - Level 4,520,29/12/2021,2112-00681,0.00,175.00,R,AIT Mitra Limited,No
Http://opendatacommunities.org/id/metropolitan-district-council/leeds,Leeds City Council,31/12/2021,Adults and Health,Services For Adults Under 65 Mental/Dis,Agency Payments,Fees - Level 4,520,29/12/2021,2112-00682,0.00,175.00,R,AIT Mitra Limited,No
Http://opendatacommunities.org/id/metropolitan-district-council/leeds,Leeds City Council,31/12/2021,Adults and Health,Services For Adults Under 65 Mental/Dis,Agency Payments,Fees - Level 4,520,29/12/2021,2112-00683,0.00,175.00,R,AIT Mitra Limited,No
Http://opendatacommunities.org/id/metropolitan-district-council/leeds,Leeds City Council as Accountable Body,31/12/2021,Social Services Pooled Budgets,Jcs For People With Learning Disabilitie,Agency Payments,Residential,580,08/12/2021,2112-00684,0.00,6778.44,R,AITCH care homes,No
Http://opendatacommunities.org/id/metropolitan-district-council/leeds,Leeds City Council,31/12/2021,Resources and Housing,Leeds Building Services,Supplies and Services,Operational Furniture And Equipment,203,09/12/2021,2112-00685,0.00,399.00,R,AJM FIXINGS & POWER TOOLS LTD,No
Http://opendatacommunities.org/id/metropolitan-district-council/leeds,Leeds City Council,31/12/2021,Resources and Housing,Leeds Building Services,Supplies and Services,Operational Furniture And Equipment,203,09/12/2021,2112-00686,0.00,270.00,R,AJM FIXINGS & POWER TOOLS LTD,No
Http://opendatacommunities.org/id/metropolitan-district-council/leeds,Leeds City Council,31/12/2021,Resources and Housing,Leeds Building Services,Supplies and Services,Operational Furniture And Equipment,203,09/12/2021,2112-00687,0.00,2350.00,R,AJM FIXINGS & POWER TOOLS LTD,No
Http://opendatacommunities.org/id/metropolitan-district-council/leeds,Leeds City Council,31/12/2021,Resources and Housing,Leeds Building Services,Premises,Cleaning Maintenance & Toiletries,127,09/12/2021,2112-00688,0.00,67.00,R,AJM FIXINGS & POWER TOOLS LTD,No
Http://opendatacommunities.org/id/metropolitan-district-council/leeds,Leeds City Council,31/12/2021,Resources and Housing,Leeds Building Services,Supplies and Services,Operational Furniture And Equipment,203,09/12/2021,2112-00689,0.00,149.16,R,AJM FIXINGS & POWER TOOLS LTD,No
Http://opendatacommunities.org/id/metropolitan-district-council/leeds,Leeds City Council,31/12/2021,Resources and Housing,Leeds Building Services,Supplies and Services,Operational Furniture And Equipment,203,09/12/2021,2112-00690,0.00,492.00,R,AJM FIXINGS & POWER TOOLS LTD,No
Http://opendatacommunities.org/id/metropolitan-district-council/leeds,Leeds City Council,31/12/2021,Resources and Housing,Leeds Building Services,Supplies and Services,Operational Furniture And Equipment,203,09/12/2021,2112-00691,0.00,3582.35,R,AJM FIXINGS & POWER TOOLS LTD,No
Http://opendatacommunities.org/id/metropolitan-district-council/leeds,Leeds City Council,31/12/2021,Resources and Housing,Leeds Building Services,Supplies and Services,Operational Furniture And Equipment,203,09/12/2021,2112-00692,0.00,110.00,R,AJM FIXINGS & POWER TOOLS LTD,No
Http://opendatacommunities.org/id/metropolitan-district-council/leeds,Leeds City Council,31/12/2021,Resources and Housing,Leeds Building Services,Supplies and Services,Operational Furniture And Equipment,203,09/12/2021,2112-00693,0.00,216.16,R,AJM FIXINGS & POWER TOOLS LTD,No
Http://opendatacommunities.org/id/metropolitan-district-council/leeds,Leeds City Council,31/12/2021,Resources and Housing,Leeds Building Services,Supplies and Services,Operational Furniture And Equipment,203,09/12/2021,2112-00694,0.00,149.16,R,AJM FIXINGS & POWER TOOLS LTD,No
Http://opendatacommunities.org/id/metropolitan-district-council/leeds,Leeds City Council,31/12/2021,Resources and Housing,Leeds Building Services,Supplies and Services,STORES - CENTRAL AND OTHER DEPOTS,005,09/12/2021,2112-00695,0.00,560.00,R,AJM FIXINGS & POWER TOOLS LTD,No
Http://opendatacommunities.org/id/metropolitan-district-council/leeds,Leeds City Council,31/12/2021,Resources and Housing,Leeds Building Services,Supplies and Services,STORES - CENTRAL AND OTHER DEPOTS,005,09/12/2021,2112-00696,0.00,208.50,R,AJM FIXINGS & POWER TOOLS LTD,No
Http://opendatacommunities.org/id/metropolitan-district-council/leeds,Leeds City Council,31/12/2021,Resources and Housing,Leeds Building Services,Supplies and Services,Operational Furniture And Equipment,203,09/12/2021,2112-00697,0.00,72.00,R,AJM FIXINGS & POWER TOOLS LTD,No
Http://opendatacommunities.org/id/metropolitan-district-council/leeds,Leeds City Council,31/12/2021,Resources and Housing,Leeds Building Services,Supplies and Services,Operational Furniture And Equipment,203,09/12/2021,2112-00698,0.00,432.32,R,AJM FIXINGS & POWER TOOLS LTD,No
Http://opendatacommunities.org/id/metropolitan-district-council/leeds,Leeds City Council,31/12/2021,Resources and Housing,Leeds Building Services,Supplies and Services,Operational Furniture And Equipment,203,09/12/2021,2112-00699,0.00,2308.95,R,AJM FIXINGS & POWER TOOLS LTD,No
Http://opendatacommunities.org/id/metropolitan-district-council/leeds,Leeds City Council,31/12/2021,Resources and Housing,Leeds Building Services,Premises,Cleaning Maintenance & Toiletries,127,09/12/2021,2112-00700,0.00,60.00,R,AJM FIXINGS & POWER TOOLS LTD,No
Http://opendatacommunities.org/id/metropolitan-district-council/leeds,Leeds City Council,31/12/2021,Resources and Housing,Leeds Building Services,Supplies and Services,Operational Furniture And Equipment,203,09/12/2021,2112-00701,0.00,536.64,R,AJM FIXINGS & POWER TOOLS LTD,No
Http://opendatacommunities.org/id/metropolitan-district-council/leeds,Leeds City Council,31/12/2021,Resources and Housing,Leeds Building Services,Supplies and Services,Operational Furniture And Equipment,203,09/12/2021,2112-00702,0.00,1857.75,R,AJM FIXINGS & POWER TOOLS LTD,No
Http://opendatacommunities.org/id/metropolitan-district-council/leeds,Leeds City Council,31/12/2021,Resources and Housing,Leeds Building Services,Supplies and Services,STORES - CENTRAL AND OTHER DEPOTS,005,09/12/2021,2112-00703,0.00,249.95,R,AJM FIXINGS & POWER TOOLS LTD,No
Http://opendatacommunities.org/id/metropolitan-district-council/leeds,Leeds City Council,31/12/2021,Resources and Housing,Leeds Building Services,Supplies and Services,Operational Furniture And Equipment,203,09/12/2021,2112-00704,0.00,317.91,R,AJM FIXINGS & POWER TOOLS LTD,No
Http://opendatacommunities.org/id/metropolitan-district-council/leeds,Leeds City Council,31/12/2021,Resources and Housing,Leeds Building Services,Supplies and Services,Operational Furniture And Equipment,203,09/12/2021,2112-00705,0.00,292.52,R,AJM FIXINGS & POWER TOOLS LTD,No
Http://opendatacommunities.org/id/metropolitan-district-council/leeds,Leeds City Council,31/12/2021,Resources and Housing,Leeds Building Services,Supplies and Services,Operational Furniture And Equipment,203,09/12/2021,2112-00706,0.00,244.76,R,AJM FIXINGS & POWER TOOLS LTD,No
Http://opendatacommunities.org/id/metropolitan-district-council/leeds,Leeds City Council,31/12/2021,Resources and Housing,Leeds Building Services,Supplies and Services,STORES - CENTRAL AND OTHER DEPOTS,005,09/12/2021,2112-00707,0.00,441.00,R,AJM FIXINGS & POWER TOOLS LTD,No
Http://opendatacommunities.org/id/metropolitan-district-council/leeds,Leeds City Council,31/12/2021,Resources and Housing,Leeds Building Services,Supplies and Services,Operational Furniture And Equipment,203,09/12/2021,2112-00708,0.00,41.68,R,AJM FIXINGS & POWER TOOLS LTD,No
Http://opendatacommunities.org/id/metropolitan-district-council/leeds,Leeds City Council,31/12/2021,Resources and Housing,Leeds Building Services,Supplies and Services,Operational Furniture And Equipment,203,09/12/2021,2112-00709,0.00,221.74,R,AJM FIXINGS & POWER TOOLS LTD,No
Http://opendatacommunities.org/id/metropolitan-district-council/leeds,Leeds City Council,31/12/2021,Resources and Housing,Leeds Building Services,Supplies and Services,Operational Furniture And Equipment,203,09/12/2021,2112-00710,0.00,185.78,R,AJM FIXINGS & POWER TOOLS LTD,No
Http://opendatacommunities.org/id/metropolitan-district-council/leeds,Leeds City Council,31/12/2021,Resources and Housing,Leeds Building Services,Premises,Cleaning Maintenance & Toiletries,127,09/12/2021,2112-00711,0.00,9.03,R,AJM FIXINGS & POWER TOOLS LTD,No
Http://opendatacommunities.org/id/metropolitan-district-council/leeds,Leeds City Council,31/12/2021,Resources and Housing,Leeds Building Services,Supplies and Services,Operational Furniture And Equipment,203,09/12/2021,2112-00712,0.00,66.30,R,AJM FIXINGS & POWER TOOLS LTD,No
Http://opendatacommunities.org/id/metropolitan-district-council/leeds,Leeds City Council,31/12/2021,Resources and Housing,Leeds Building Services,Supplies and Services,Operational Furniture And Equipment,203,09/12/2021,2112-00713,0.00,492.00,R,AJM FIXINGS & POWER TOOLS LTD,No
Http://opendatacommunities.org/id/metropolitan-district-council/leeds,Leeds City Council,31/12/2021,Resources and Housing,Leeds Building Services,Premises,Cleaning Maintenance & Toiletries,127,09/12/2021,2112-00714,0.00,1071.75,R,AJM FIXINGS & POWER TOOLS LTD,No
Http://opendatacommunities.org/id/metropolitan-district-council/leeds,Leeds City Council,31/12/2021,Resources and Housing,Leeds Building Services,Supplies and Services,Operational Furniture And Equipment,203,09/12/2021,2112-00715,0.00,391.20,R,AJM FIXINGS & POWER TOOLS LTD,No
Http://opendatacommunities.org/id/metropolitan-district-council/leeds,Leeds City Council,31/12/2021,Resources and Housing,Leeds Building Services,Premises,Cleaning Maintenance & Toiletries,127,10/12/2021,2112-00716,0.00,217.00,R,AJM FIXINGS & POWER TOOLS LTD,No
Http://opendatacommunities.org/id/metropolitan-district-council/leeds,Leeds City Council,31/12/2021,Resources and Housing,Leeds Building Services,Supplies and Services,STORES - CENTRAL AND OTHER DEPOTS,005,10/12/2021,2112-00717,0.00,56.50,R,AJM FIXINGS & POWER TOOLS LTD,No
Http://opendatacommunities.org/id/metropolitan-district-council/leeds,Leeds City Council,31/12/2021,Resources and Housing,Leeds Building Services,Supplies and Services,Operational Furniture And Equipment,203,10/12/2021,2112-00718,0.00,1038.32,R,AJM FIXINGS & POWER TOOLS LTD,No
Http://opendatacommunities.org/id/metropolitan-district-council/leeds,Leeds City Council,31/12/2021,Resources and Housing,Leeds Building Services,Supplies and Services,Clothing & Uniforms,241,10/12/2021,2112-00719,0.00,139.99,R,AJM FIXINGS & POWER TOOLS LTD,No
Http://opendatacommunities.org/id/metropolitan-district-council/leeds,Leeds City Council,31/12/2021,Resources and Housing,Leeds Building Services,Supplies and Services,Clothing & Uniforms,241,10/12/2021,2112-00720,0.00,139.99,R,AJM FIXINGS & POWER TOOLS LTD,No
Http://opendatacommunities.org/id/metropolitan-district-council/leeds,Leeds City Council,31/12/2021,Resources and Housing,Leeds Building Services,Supplies and Services,Operational Furniture And Equipment,203,10/12/2021,2112-00721,0.00,54.45,R,AJM FIXINGS & POWER TOOLS LTD,No
Http://opendatacommunities.org/id/metropolitan-district-council/leeds,Leeds City Council,31/12/2021,Resources and Housing,Leeds Building Services,Supplies and Services,Operational Furniture And Equipment,203,10/12/2021,2112-00722,0.00,330.00,R,AJM FIXINGS & POWER TOOLS LTD,No
Http://opendatacommunities.org/id/metropolitan-district-council/leeds,Leeds City Council,31/12/2021,Resources and Housing,Leeds Building Services,Supplies and Services,Operational Furniture And Equipment,203,10/12/2021,2112-00723,0.00,999.60,R,AJM FIXINGS & POWER TOOLS LTD,No
Http://opendatacommunities.org/id/metropolitan-district-council/leeds,Leeds City Council,31/12/2021,Resources and Housing,Leeds Building Services,Supplies and Services,Operational Furniture And Equipment,203,10/12/2021,2112-00724,0.00,536.64,R,AJM FIXINGS & POWER TOOLS LTD,No
Http://opendatacommunities.org/id/metropolitan-district-council/leeds,Leeds City Council,31/12/2021,Resources and Housing,Leeds Building Services,Supplies and Services,Operational Furniture And Equipment,203,10/12/2021,2112-00725,0.00,670.00,R,AJM FIXINGS & POWER TOOLS LTD,No
Http://opendatacommunities.org/id/metropolitan-district-council/leeds,Leeds City Council,31/12/2021,Resources and Housing,Leeds Building Services,Supplies and Services,Operational Materials,205,10/12/2021,2112-00726,0.00,670.00,R,AJM FIXINGS & POWER TOOLS LTD,No
Http://opendatacommunities.org/id/metropolitan-district-council/leeds,Leeds City Council,31/12/2021,Resources and Housing,Leeds Building Services,Supplies and Services,Operational Furniture And Equipment,203,15/12/2021,2112-00727,0.00,6.00,R,AJM FIXINGS & POWER TOOLS LTD,No
Http://opendatacommunities.org/id/metropolitan-district-council/leeds,Leeds City Council,31/12/2021,Resources and Housing,Leeds Building Services,Supplies and Services,Operational Furniture And Equipment,203,15/12/2021,2112-00728,0.00,718.32,R,AJM FIXINGS & POWER TOOLS LTD,No
Http://opendatacommunities.org/id/metropolitan-district-council/leeds,Leeds City Council,31/12/2021,Resources and Housing,Leeds Building Services,Supplies and Services,Operational Furniture And Equipment,203,15/12/2021,2112-00729,0.00,718.32,R,AJM FIXINGS & POWER TOOLS LTD,No
Http://opendatacommunities.org/id/metropolitan-district-council/leeds,Leeds City Council,31/12/2021,Resources and Housing,Leeds Building Services,Supplies and Services,Operational Furniture And Equipment,203,15/12/2021,2112-00730,0.00,239.90,R,AJM FIXINGS & POWER TOOLS LTD,No
Http://opendatacommunities.org/id/metropolitan-district-council/leeds,Leeds City Council,31/12/2021,Resources and Housing,Leeds Building Services,Supplies and Services,Operational Furniture And Equipment,203,15/12/2021,2112-00731,0.00,139.98,R,AJM FIXINGS & POWER TOOLS LTD,No
Http://opendatacommunities.org/id/metropolitan-district-council/leeds,Leeds City Council,31/12/2021,Resources and Housing,Leeds Building Services,Supplies and Services,Operational Furniture And Equipment,203,17/12/2021,2112-00732,0.00,265.83,R,AJM FIXINGS & POWER TOOLS LTD,No
Http://opendatacommunities.org/id/metropolitan-district-council/leeds,Leeds City Council,31/12/2021,Resources and Housing,Leeds Building Services,Premises,Cleaning Maintenance & Toiletries,127,17/12/2021,2112-00733,0.00,274.50,R,AJM FIXINGS & POWER TOOLS LTD,No
Http://opendatacommunities.org/id/metropolitan-district-council/leeds,Leeds City Council,31/12/2021,Resources and Housing,Leeds Building Services,Supplies and Services,Operational Furniture And Equipment,203,17/12/2021,2112-00734,0.00,110.00,R,AJM FIXINGS & POWER TOOLS LTD,No
Http://opendatacommunities.org/id/metropolitan-district-council/leeds,Leeds City Council,31/12/2021,Resources and Housing,Leeds Building Services,Premises,Cleaning Maintenance & Toiletries,127,17/12/2021,2112-00735,0.00,323.70,R,AJM FIXINGS & POWER TOOLS LTD,No
Http://opendatacommunities.org/id/metropolitan-district-council/leeds,Leeds City Council,31/12/2021,Resources and Housing,Leeds Building Services,Premises,Cleaning Maintenance & Toiletries,127,22/12/2021,2112-00736,0.00,50.00,R,AJM FIXINGS & POWER TOOLS LTD,No
Http://opendatacommunities.org/id/metropolitan-district-council/leeds,Leeds City Council,31/12/2021,Resources and Housing,Leeds Building Services,Supplies and Services,Operational Materials,205,22/12/2021,2112-00737,0.00,129.80,R,AJM FIXINGS & POWER TOOLS LTD,No
Http://opendatacommunities.org/id/metropolitan-district-council/leeds,Leeds City Council,31/12/2021,Resources and Housing,Leeds Building Services,Supplies and Services,Operational Furniture And Equipment,203,22/12/2021,2112-00738,0.00,189.16,R,AJM FIXINGS & POWER TOOLS LTD,No
Http://opendatacommunities.org/id/metropolitan-district-council/leeds,Leeds City Council,31/12/2021,Resources and Housing,Leeds Building Services,Supplies and Services,Operational Furniture And Equipment,203,22/12/2021,2112-00739,0.00,525.00,R,AJM FIXINGS & POWER TOOLS LTD,No
Http://opendatacommunities.org/id/metropolitan-district-council/leeds,Leeds City Council,31/12/2021,Resources and Housing,Leeds Building Services,Supplies and Services,Operational Furniture And Equipment,203,22/12/2021,2112-00740,0.00,110.00,R,AJM FIXINGS & POWER TOOLS LTD,No
Http://opendatacommunities.org/id/metropolitan-district-council/leeds,Leeds City Council,31/12/2021,Resources and Housing,Leeds Building Services,Supplies and Services,Operational Furniture And Equipment,203,22/12/2021,2112-00741,0.00,52.54,R,AJM FIXINGS & POWER TOOLS LTD,No
Http://opendatacommunities.org/id/metropolitan-district-council/leeds,Leeds City Council,31/12/2021,Resources and Housing,Leeds Building Services,Supplies and Services,Operational Furniture And Equipment,203,22/12/2021,2112-00742,0.00,175.00,R,AJM FIXINGS & POWER TOOLS LTD,No
Http://opendatacommunities.org/id/metropolitan-district-council/leeds,Leeds City Council,31/12/2021,Resources and Housing,Leeds Building Services,Supplies and Services,Operational Furniture And Equipment,203,29/12/2021,2112-00743,0.00,265.83,R,AJM FIXINGS & POWER TOOLS LTD,No
Http://opendatacommunities.org/id/metropolitan-district-council/leeds,Leeds City Council,31/12/2021,Communities and Environment,Elections Licensing and Registration,External Income,Admissions Booking Fees & Ticket Sales,933,23/12/2021,2112-00744,0.00,260.00,R,Akhtar Jaji,No
Http://opendatacommunities.org/id/metropolitan-district-council/leeds,Leeds City Council,31/12/2021,Communities and Environment,Benefits Welfare and Poverty,Supplies and Services,Grant Related Expenditure,298,02/12/2021,2112-00745,0.00,500.00,R,REDACTED PERSONAL DATA,No
Http://opendatacommunities.org/id/metropolitan-district-council/leeds,Leeds City Council,31/12/2021,Adults and Health,Services For Older People - 65 And Over,Agency Payments,Payments To Voluntary Organisations,561,31/12/2021,2112-00746,0.00,2700.00,R,Al Khidmat Centre,No
Http://opendatacommunities.org/id/metropolitan-district-council/leeds,Leeds City Council,31/12/2021,City Development,Recreation,External Income,Swimming Bath Charges,923,22/12/2021,2112-00747,0.00,30.00,R,REDACTED PERSONAL DATA,No
Http://opendatacommunities.org/id/metropolitan-district-council/leeds,Leeds City Council,31/12/2021,Children and Families,Social Care,Appropriations,Leaving Care Grants,635,09/11/2021,2112-00748,0.00,270.83,R,Alams Beautiful Blinds,Yes
Http://opendatacommunities.org/id/metropolitan-district-council/leeds,Leeds City Council,31/12/2021,Resources and Housing,Democratic Services,Appropriations,Civic Allowances,651,18/11/2021,2112-00749,0.00,50.00,R,Alan Brown Flowers,Yes
Http://opendatacommunities.org/id/metropolitan-district-council/leeds,Leeds City Council,31/12/2021,Communities and Environment,Benefits Welfare and Poverty,Supplies and Services,Grant Related Expenditure,298,03/12/2021,2112-00750,0.00,500.00,R,REDACTED PERSONAL DATA,No
Http://opendatacommunities.org/id/metropolitan-district-council/leeds,Leeds City Council,31/12/2021,City Development,Recreation,External Income,Sporting & Other Recreational Fees,928,30/12/2021,2112-00751,0.00,35.12,R,REDACTED PERSONAL DATA,No
Http://opendatacommunities.org/id/metropolitan-district-council/leeds,Leeds City Council,31/12/2021,City Development,Recreation,External Income,Sporting & Other Recreational Fees,928,30/12/2021,2112-00752,0.00,20.56,R,REDACTED PERSONAL DATA,No
Http://opendatacommunities.org/id/metropolitan-district-council/leeds,Leeds City Council,31/12/2021,Communities and Environment,Benefits Welfare and Poverty,Supplies and Services,Grant Related Expenditure,290,16/12/2021,2112-00753,0.00,500.00,R,REDACTED PERSONAL DATA,No
Http://opendatacommunities.org/id/metropolitan-district-council/leeds,Leeds City Council,31/12/2021,Communities and Environment,Parks and Countryside,Supplies and Services,Operational Materials,205,12/11/2021,2112-00754,0.00,6751.65,R,Alba Trees Plc,Yes
Http://opendatacommunities.org/id/metropolitan-district-council/leeds,Leeds City Council,31/12/2021,Communities and Environment,Parks and Countryside,Supplies and Services,Operational Materials,205,12/11/2021,2112-00755,0.00,6751.65,R,Alba Trees Plc,Yes
Http://opendatacommunities.org/id/metropolitan-district-council/leeds,Leeds City Council,31/12/2021,Communities and Environment,Parks and Countryside,Supplies and Services,Operational Materials,205,12/11/2021,2112-00756,0.00,6751.65,R,Alba Trees Plc,Yes
Http://opendatacommunities.org/id/metropolitan-district-council/leeds,Leeds City Council,31/12/2021,Communities and Environment,Parks and Countryside,Supplies and Services,Operational Materials,205,12/11/2021,2112-00757,0.00,6751.65,R,Alba Trees Plc,Yes
Http://opendatacommunities.org/id/metropolitan-district-council/leeds,Leeds City Council,31/12/2021,City Development,Libraries Arts & Heritage,Supplies and Services,Subsistence,256,15/11/2021,2112-00758,0.00,5.25,R,Albert Heijn 3020,Yes
Http://opendatacommunities.org/id/metropolitan-district-council/leeds,Leeds City Council,31/12/2021,Resources and Housing,Commercial Services,Transport,Vehicle Spares,345,17/12/2021,2112-00759,0.00,91.95,R,ALBERT JAGGER LIMITED,No
Http://opendatacommunities.org/id/metropolitan-district-council/leeds,Leeds City Council,31/12/2021,Communities and Environment,Communities,Supplies and Services,Computer Software & Equipment,214,23/12/2021,2112-00760,0.00,1228.33,R,Alcium Software Ltd,No
Http://opendatacommunities.org/id/metropolitan-district-council/leeds,Leeds City Council,31/12/2021,City Development,Recreation,Premises,Cleaning Maintenance & Toiletries,127,01/11/2021,2112-00761,0.00,14.90,R,Aldi,Yes
Http://opendatacommunities.org/id/metropolitan-district-council/leeds,Leeds City Council,31/12/2021,Communities and Environment,Communities,Supplies and Services,Other Hired And Contracted Services,265,01/11/2021,2112-00762,0.00,24.12,R,Aldi 103 779,Yes
Http://opendatacommunities.org/id/metropolitan-district-council/leeds,Leeds City Council,31/12/2021,Children and Families,Social Care,Supplies and Services,Food & Drink,231,18/11/2021,2112-00763,0.00,24.31,R,Aldi 103 779,Yes
Http://opendatacommunities.org/id/metropolitan-district-council/leeds,Leeds City Council,31/12/2021,Children and Families,Social Care,Supplies and Services,Food & Drink,231,24/11/2021,2112-00764,0.00,27.10,R,Aldi 103 779,Yes
Http://opendatacommunities.org/id/metropolitan-district-council/leeds,Leeds City Council,31/12/2021,Children and Families,Social Care,Supplies and Services,Food & Drink,231,08/11/2021,2112-00765,0.00,6.25,R,Aldi 40 779,Yes
Http://opendatacommunities.org/id/metropolitan-district-council/leeds,Leeds City Council,31/12/2021,Children and Families,Social Care,Supplies and Services,Food & Drink,231,09/11/2021,2112-00766,0.00,47.53,R,Aldi 40 779,Yes
Http://opendatacommunities.org/id/metropolitan-district-council/leeds,Leeds City Council,31/12/2021,Children and Families,Social Care,Supplies and Services,Food & Drink,231,23/11/2021,2112-00767,0.00,1.78,R,Aldi 40 779,Yes
Http://opendatacommunities.org/id/metropolitan-district-council/leeds,Leeds City Council,31/12/2021,Children and Families,Social Care,Appropriations,Leaving Care Allowances,634,26/11/2021,2112-00768,0.00,9.78,R,Aldi 40 779,Yes
Http://opendatacommunities.org/id/metropolitan-district-council/leeds,Leeds City Council,31/12/2021,Children and Families,Social Care,Supplies and Services,Teaching Materials,202,03/11/2021,2112-00769,0.00,24.97,R,Aldi 49 779,Yes
Http://opendatacommunities.org/id/metropolitan-district-council/leeds,Leeds City Council,31/12/2021,Children and Families,Social Care,Supplies and Services,Food & Drink,231,08/11/2021,2112-00770,0.00,11.87,R,Aldi 49 779,Yes
Http://opendatacommunities.org/id/metropolitan-district-council/leeds,Leeds City Council,31/12/2021,Children and Families,Social Care,Supplies and Services,Office Consumables,210,10/11/2021,2112-00771,0.00,3.32,R,Aldi 49 779,Yes
Http://opendatacommunities.org/id/metropolitan-district-council/leeds,Leeds City Council,31/12/2021,Children and Families,Social Care,Supplies and Services,Food & Drink,231,17/11/2021,2112-00772,0.00,54.21,R,Aldi 49 779,Yes
Http://opendatacommunities.org/id/metropolitan-district-council/leeds,Leeds City Council,31/12/2021,Children and Families,Social Care,Supplies and Services,Food & Drink,231,23/11/2021,2112-00773,0.00,79.94,R,Aldi 49 779,Yes
Http://opendatacommunities.org/id/metropolitan-district-council/leeds,Leeds City Council,31/12/2021,Children and Families,Social Care,Supplies and Services,Teaching Materials,202,05/11/2021,2112-00774,0.00,23.31,R,Aldi 63779,Yes
Http://opendatacommunities.org/id/metropolitan-district-council/leeds,Leeds City Council,31/12/2021,Children and Families,Social Care,Appropriations,Leaving Care Allowances,634,25/11/2021,2112-00775,0.00,9.74,R,Aldi 71 779,Yes
Http://opendatacommunities.org/id/metropolitan-district-council/leeds,Leeds City Council,31/12/2021,Children and Families,Social Care,Agency Payments,Section 17,551,29/11/2021,2112-00776,0.00,14.34,R,Aldi 71 779,Yes
Http://opendatacommunities.org/id/metropolitan-district-council/leeds,Leeds City Council,31/12/2021,Adults and Health,Services For Adults Under 65 Mental/Dis,Supplies and Services,Food & Drink,231,30/11/2021,2112-00777,0.00,1.79,R,Aldi 71 779,Yes
Http://opendatacommunities.org/id/metropolitan-district-council/leeds,Leeds City Council,31/12/2021,Children and Families,Social Care,Agency Payments,Section 17,551,25/11/2021,2112-00778,0.00,8.65,R,Aldi 779117,Yes
Http://opendatacommunities.org/id/metropolitan-district-council/leeds,Leeds City Council,31/12/2021,Children and Families,Learning,Supplies and Services,Food & Drink,231,04/11/2021,2112-00779,0.00,3.19,R,Aldi 85 779,Yes
